{"text_format":"1","workbook":"xlsx","n_sheets":25,"sheets":["Events","Setup","Calendar","Targets","Weight","Load","Dashboard","Analytics","PivotAnalytics4","Log","Gauges","Tables","PivotAnalytics","PivotAnalytics1","PivotAnalytics2","PivotAnalytics3","PivotPlan","PivotCal","PivotSpeed","PivotWeight","PivotAddWeight","PivotWeightTarget","PivotCalTarget","PivotHRTarget","PivotPowerTarget"],"not_rendered":{"charts":19,"images":14,"macros":1,"external_links":0,"defined_names":236,"comments":0,"pivot_tables":14},"unopened":[],"bounds":{"document_bytes":16777216,"sheet_cells":100000,"rows_first":2000,"rows_last":500,"rows_between":2000,"halvings":0,"cell_chars":16384,"cell_head_chars":4096},"cells_cut":0,"cells_raw":0,"read":"whole","date_system":"1900"}

{"sheet":"Events","index":0,"n_rows":1019,"n_cols":10,"rows_kept":1019,"cut":false,"hidden":false,"merged":[]}
[null,"STATrider / Events"]
[]
[]
[null,"Date","Event","City / Venue","State","Country","Category","Class","Website"]
[null,null,null,null,null,null,null,null,null," "]
[null,null,null,null,null,null,null,null,null," "]
[null,null,null,null,null,null,null,null,null," "]
[null,null,null,null,null,null,null,null,null," "]
[null,null,null,null,null,null,null,null,null," "]
[null,null,null,null,null,null,null,null,null," "]
[null,null,null,null,null,null,null,null,null," "]
[null,null,null,null,null,null,null,null,null," "]
[null,null,null,null,null,null,null,null,null," "]
[null,null,null,null,null,null,null,null,null," "]
[]
[]
[]
[]
[null,"Date","Event","City / Venue","State","Country","Category","Class","Website"]
[null,"2021-11-13","KIngs County Challenge","Brooklyn","NY","UNITED STATES OF AMERICA","","",""," "]
[null,"2021-11-13","Kings County Challenge","Brooklyn","NY","UNITED STATES OF AMERICA","","","http://www.BikeReg.com/52644"," "]
[null,"2022-03-05","Randall's Island Crit #1 by Hilltop Bicycles and New York Bicycle Lawyers","New York","NY","UNITED STATES OF AMERICA","","","http://www.BikeReg.com/53755"," "]
[null,"2022-03-06","2022 CRCA Women's Development Series (Race 1)","Manhattan","NY","UNITED STATES OF AMERICA","","","http://www.BikeReg.com/54353"," "]
[null,"2022-03-12","Canceled! Randall's Island Crit #2 by Hilltop Bicycles and New York Bicycle Lawyers","New York","NY","UNITED STATES OF AMERICA","","","http://www.BikeReg.com/54042"," "]
[null,"2022-03-13","Lucarelli & Castaldi Cup","Brooklyn","NY","UNITED STATES OF AMERICA","","","http://www.BikeReg.com/54495"," "]
[null,"2022-03-19","CRCA Mengoni Grand Prix","New York","NY","UNITED STATES OF AMERICA","","",""," "]
[null,"2022-03-19","CRCA Mengoni Grand Prix p/b Hincapie (2022)","New York","NY","UNITED STATES OF AMERICA","","","http://www.BikeReg.com/54371"," "]
[null,"2022-03-20","Randall's Island Crit #3 by Hilltop Bicycles and New York Bicycle Lawyers","New York","NY","UNITED STATES OF AMERICA","","","http://www.BikeReg.com/54043"," "]
[null,"2022-03-20","Kissena Women's Track Clinic","New York","NY","UNITED STATES OF AMERICA","","","http://www.BikeReg.com/54708"," "]
[null,"2022-03-26","Randall's Island Crit #4 by Hilltop Bicycles and New York Bicycle Lawyers","New York","NY","UNITED STATES OF AMERICA","","","http://www.BikeReg.com/54045"," "]
[null,"2022-03-27","GVCC Spring Giro Series","Victor","NY","UNITED STATES OF AMERICA","","","http://www.BikeReg.com/54143"," "]
[null,"2022-03-27","Castelli Series","Brooklyn","NY","UNITED STATES OF AMERICA","","","http://www.BikeReg.com/54738"," "]
[null,"2022-04-02","2022 CRCA Men & Women's Beginner Racing Clinic p/b Ostroy NYC","New York","NY","UNITED STATES OF AMERICA","","","http://www.BikeReg.com/54364"," "]
[null,"2022-04-03","Randall's Island Crit","New York","NY","UNITED STATES OF AMERICA","","",""," "]
[null,"2022-04-03","Lucarelli & Castaldi Cup #2","Brooklyn","NY","UNITED STATES OF AMERICA","","","http://www.BikeReg.com/54736"," "]
[null,"2022-04-03","Toad Strangler","Chatham","NY","UNITED STATES OF AMERICA","","","http://www.BikeReg.com/53159"," "]
[null,"2022-04-09","Prospect Park race","Brooklyn","NY","UNITED STATES OF AMERICA","","",""," "]
[null,"2022-04-09","2022 CRCA Women's Development Series (Race 3)","Manhattan","NY","UNITED STATES OF AMERICA","","","http://www.BikeReg.com/54356"," "]
[null,"2022-04-09","Army Spring Classic - USA Cycling races - ***CANCELLED***","Stony Point","NY","UNITED STATES OF AMERICA","","","http://www.BikeReg.com/54638"," "]
[null,"2022-04-09","Prospect Park Circuit race by New York Triathlon Club","Brooklyn","NY","UNITED STATES OF AMERICA","","","http://www.BikeReg.com/53953"," "]
[null,"2022-04-10","Army Spring Classic - ECCC Races","Stony Point","NY","UNITED STATES OF AMERICA","","","http://www.BikeReg.com/54636"," "]
[null,"2022-04-10","Army Spring Classic","West Point","NY","UNITED STATES OF AMERICA","","",""," "]
[null,"2022-04-10","Castelli Series #2","Brooklyn","NY","UNITED STATES OF AMERICA","","","http://www.BikeReg.com/54741"," "]
[null,"2022-04-16","2022 CRCA Women's Development Series (Race 4)","Manhattan","NY","UNITED STATES OF AMERICA","","","http://www.BikeReg.com/54357"," "]
[null,"2022-04-17","Lucarelli & Castaldi Cup #3","Brooklyn","NY","UNITED STATES OF AMERICA","","","http://www.BikeReg.com/55109"," "]
[null,"2022-04-23","Trooper David Brinkerhoff Memorial Race Series","Coxsackie","NY","UNITED STATES OF AMERICA","","","http://www.BikeReg.com/53165"," "]
[null,"2022-04-23","Trooper David Brinkerhoff Memorial Race Series","Coxsackie","NY","UNITED STATES OF AMERICA","","",""," "]
[null,"2022-04-30","Castelli Series #3","Brooklyn","NY","UNITED STATES OF AMERICA","","","http://www.BikeReg.com/55110"," "]
[null,"2022-05-01","Women's Woodstock Cycling Grand Prix","Woodstock","NY","UNITED STATES OF AMERICA","","",""," "]
[null,"2022-05-01","Hollenbeck's Spring Classic Road Race","Virgil","NY","UNITED STATES OF AMERICA","","","http://www.BikeReg.com/54154"," "]
[null,"2022-05-01","Women's Woodstock Cycling Grand Prix","Woodstock","NY","UNITED STATES OF AMERICA","","","http://www.BikeReg.com/54712"," "]
[null,"2022-05-07","Cazenovia Hillbender 2022","Chittenango","NY","UNITED STATES OF AMERICA","","","http://www.BikeReg.com/53343"," "]
[null,"2022-05-07","CRCA Bear Mountain Classic (2022)","Stony Point","NY","UNITED STATES OF AMERICA","","","http://www.BikeReg.com/54122"," "]
[null,"2022-05-07","Central Park Time Trial p/b Collado.Live","Manhattan","NY","UNITED STATES OF AMERICA","","","http://www.BikeReg.com/55299"," "]
[null,"2022-05-14","2022 CRCA Women's Development Series (Race 5)","Manhattan","NY","UNITED STATES OF AMERICA","","","http://www.BikeReg.com/54358"," "]
[null,"2022-05-15","Farmer's Daughter Gravel Grinder","Chatham","NY","UNITED STATES OF AMERICA","","","http://www.BikeReg.com/52319"," "]
[null,"2022-05-21","MVP Health Care Rochester Twilight Criterium","Rochester","NY","UNITED STATES OF AMERICA","","","http://www.BikeReg.com/54194"," "]
[null,"2022-05-21","Beach Channel Time Trial p/b Long Beach Bicycles and New York Bike Lawyers","Rockaway Park","NY","UNITED STATES OF AMERICA","","","http://www.BikeReg.com/55234"," "]
[null,"2022-05-22","Keuka Lake Gravel Classic","Hammondsport","NY","UNITED STATES OF AMERICA","","","http://www.BikeReg.com/53065"," "]
[null,"2022-05-22","2022 CRCA Men & Women's Beginner Racing Clinic p/b Ostroy NYC","Manhattan","NY","UNITED STATES OF AMERICA","","","http://www.BikeReg.com/54359"," "]
[null,"2022-05-30","Tour of Buffalo","Buffalo","NY","UNITED STATES OF AMERICA","","","http://www.BikeReg.com/54349"," "]
[null,"2022-06-01","Charlton Road & River Rd Time Trial Series - Week 1","Ballston Spa","NY","UNITED STATES OF AMERICA","","","http://www.BikeReg.com/55217"," "]
[null,"2022-06-04","ShelterBox Ride","Henderson Harbor","NY","UNITED STATES OF AMERICA","","","http://www.BikeReg.com/53870"," "]
[null,"2022-06-04","CRCA Dave Jordan Central Park Classic - 10th Annual Edition","New York","NY","UNITED STATES OF AMERICA","","","http://www.BikeReg.com/55555"," "]
[null,"2022-06-04","Whiteface Mountain 20th Annual Uphill Bike Race","Wilmington","NY","UNITED STATES OF AMERICA","","","http://www.BikeReg.com/53930"," "]
[null,"2022-06-05","CNY Women's Road Racing Clinic - Beginner and Skills Refresher","Syracuse","NY","UNITED STATES OF AMERICA","","","http://www.BikeReg.com/54788"," "]
[null,"2022-06-07","Charlton Road & River Rd Time Trial Series - Week 2","Fort Edward","NY","UNITED STATES OF AMERICA","","","http://www.BikeReg.com/55231"," "]
[null,"2022-06-15","Charlton Road & River Rd Time Trial Series - Week 3","Ballston Spa","NY","UNITED STATES OF AMERICA","","","http://www.BikeReg.com/55227"," "]
[null,"2022-06-19","2022 Harlem Skyscraper Cycling Classic","Manhattan","NY","UNITED STATES OF AMERICA","","","http://www.BikeReg.com/55546"," "]
[null,"2022-06-19","Hamburg Weekend","Hamburg","NY","UNITED STATES OF AMERICA","","","http://www.BikeReg.com/54365"," "]
[null,"2022-06-21","Charlton Road & River Rd Time Trial Series - Week 4","Fort Edward","NY","UNITED STATES OF AMERICA","","","http://www.BikeReg.com/55273"," "]
[null,"2022-06-29","Charlton Road & River Rd Time Trial Series - Week 5","Ballston Spa","NY","UNITED STATES OF AMERICA","","","http://www.BikeReg.com/55228"," "]
[null,"2022-07-05","Charlton Road & River Rd Time Trial Series - Week 6","Fort Edward","NY","UNITED STATES OF AMERICA","","","http://www.BikeReg.com/55274"," "]
[null,"2022-07-10","Buffalo Bicycling Club's 50th Anniversary Criterium","Orchard Park","NY","UNITED STATES OF AMERICA","","","http://www.BikeReg.com/54373"," "]
[null,"2022-07-10","2022 New York State Time Trial Championships","Tioga Center","NY","UNITED STATES OF AMERICA","","","http://www.BikeReg.com/53135"," "]
[null,"2022-07-13","Charlton Road & River Rd Time Trial Series - Week 7","Ballston Spa","NY","UNITED STATES OF AMERICA","","","http://www.BikeReg.com/55229"," "]
[null,"2022-07-16","NY Capital Region Road Race","Albany (Ravena)","NY","UNITED STATES OF AMERICA","","","http://www.BikeReg.com/55387"," "]
[null,"2022-07-17","Freedom Run Winery Road Race powered by Kanberra","Lockport","NY","UNITED STATES OF AMERICA","","","http://www.BikeReg.com/54370"," "]
[null,"2022-07-17","2022 CRCA Women's Development Series (Race 8)","Manhattan","NY","UNITED STATES OF AMERICA","","","http://www.BikeReg.com/54360"," "]
[null,"2022-07-23","CRCA Grant's Tomb Crit (2022)","New York","NY","UNITED STATES OF AMERICA","","","http://www.BikeReg.com/53932"," "]
[null,"2022-08-07","2022 CRCA Women's Development Series (Race 9)","Manhattan","NY","UNITED STATES OF AMERICA","","","http://www.BikeReg.com/54361"," "]
[null,"2022-08-07","The Plan2Peak: Two Days of Buffalo Stage Race","Buffalo","NY","UNITED STATES OF AMERICA","","","http://www.BikeReg.com/53035"," "]
[null,"2022-08-13","Castelli Series","Brooklyn","NY","UNITED STATES OF AMERICA","","",""," "]
[null,"2022-08-14","2022 CRCA Women's Development Series (Series Championship)","Manhattan","NY","UNITED STATES OF AMERICA","","","http://www.BikeReg.com/54362"," "]
[null,"2022-08-20","Lucarelli & Castaldi Cup","Brooklyn","NY","UNITED STATES OF AMERICA","","",""," "]
[null,"2022-08-21","East Arcade Weekend","Arcade","NY","UNITED STATES OF AMERICA","","","http://www.BikeReg.com/54379"," "]
[null,"2022-09-03","2022 CRCA Women's Development Series (Race 12)","Manhattan","NY","UNITED STATES OF AMERICA","","","http://www.BikeReg.com/54363"," "]
[null,"2022-09-03","CRCA Club Series","New York","NY","UNITED STATES OF AMERICA","","",""," "]
[null,"2022-12-31","2022 Genesee Valley Cycling Club Membership","Rochester ","NY","UNITED STATES OF AMERICA","","","http://www.BikeReg.com/53972"," "]
[null,null,null,null,null,null,null,null,null," "]
[null,null,null,null,null,null,null,null,null," "]
[null,null,null,null,null,null,null,null,null," "]
[null,null,null,null,null,null,null,null,null," "]
[null,null,null,null,null,null,null,null,null," "]
[null,null,null,null,null,null,null,null,null," "]
[null,null,null,null,null,null,null,null,null," "]
[null,null,null,null,null,null,null,null,null," "]
[null,null,null,null,null,null,null,null,null," "]
[null,null,null,null,null,null,null,null,null," "]
[null,null,null,null,null,null,null,null,null," "]
[null,null,null,null,null,null,null,null,null," "]
[null,null,null,null,null,null,null,null,null," "]
[null,null,null,null,null,null,null,null,null," "]
[null,null,null,null,null,null,null,null,null," "]
[null,null,null,null,null,null,null,null,null," "]
[null,null,null,null,null,null,null,null,null," "]
[null,null,null,null,null,null,null,null,null," "]
[null,null,null,null,null,null,null,null,null," "]
[null,null,null,null,null,null,null,null,null," "]
[null,null,null,null,null,null,null,null,null," "]
[null,null,null,null,null,null,null,null,null," "]
[null,null,null,null,null,null,null,null,null," "]
[null,null,null,null,null,null,null,null,null," "]
[null,null,null,null,null,null,null,null,null," "]
[null,null,null,null,null,null,null,null,null," "]
[null,null,null,null,null,null,null,null,null," "]
[null,null,null,null,null,null,null,null,null," "]
[null,null,null,null,null,null,null,null,null," "]
[null,null,null,null,null,null,null,null,null," "]
[null,null,null,null,null,null,null,null,null," "]
[null,null,null,null,null,null,null,null,null," "]
[null,null,null,null,null,null,null,null,null," "]
[null,null,null,null,null,null,null,null,null," "]
[null,null,null,null,null,null,null,null,null," "]
[null,null,null,null,null,null,null,null,null," "]
[null,null,null,null,null,null,null,null,null," "]
[null,null,null,null,null,null,null,null,null," "]
[null,null,null,null,null,null,null,null,null," "]
[null,null,null,null,null,null,null,null,null," "]
[null,null,null,null,null,null,null,null,null," "]
[null,null,null,null,null,null,null,null,null," "]
[null,null,null,null,null,null,null,null,null," "]
[null,null,null,null,null,null,null,null,null," "]
[null,null,null,null,null,null,null,null,null," "]
[null,null,null,null,null,null,null,null,null," "]
[null,null,null,null,null,null,null,null,null," "]
[null,null,null,null,null,null,null,null,null," "]
[null,null,null,null,null,null,null,null,null," "]
[null,null,null,null,null,null,null,null,null," "]
[null,null,null,null,null,null,null,null,null," "]
[null,null,null,null,null,null,null,null,null," "]
[null,null,null,null,null,null,null,null,null," "]
[null,null,null,null,null,null,null,null,null," "]
[null,null,null,null,null,null,null,null,null," "]
[null,null,null,null,null,null,null,null,null," "]
[null,null,null,null,null,null,null,null,null," "]
[null,null,null,null,null,null,null,null,null," "]
[null,null,null,null,null,null,null,null,null," "]
[null,null,null,null,null,null,null,null,null," "]
[null,null,null,null,null,null,null,null,null," "]
[null,null,null,null,null,null,null,null,null," "]
[null,null,null,null,null,null,null,null,null," "]
[null,null,null,null,null,null,null,null,null," "]
[null,null,null,null,null,null,null,null,null," "]
[null,null,null,null,null,null,null,null,null," "]
[null,null,null,null,null,null,null,null,null," "]
[null,null,null,null,null,null,null,null,null," "]
[null,null,null,null,null,null,null,null,null," "]
[null,null,null,null,null,null,null,null,null," "]
[null,null,null,null,null,null,null,null,null," "]
[null,null,null,null,null,null,null,null,null," "]
[null,null,null,null,null,null,null,null,null," "]
[null,null,null,null,null,null,null,null,null," "]
[null,null,null,null,null,null,null,null,null," "]
[null,null,null,null,null,null,null,null,null," "]
[null,null,null,null,null,null,null,null,null," "]
[null,null,null,null,null,null,null,null,null," "]
[null,null,null,null,null,null,null,null,null," "]
[null,null,null,null,null,null,null,null,null," "]
[null,null,null,null,null,null,null,null,null," "]
[null,null,null,null,null,null,null,null,null," "]
[null,null,null,null,null,null,null,null,null," "]
[null,null,null,null,null,null,null,null,null," "]
[null,null,null,null,null,null,null,null,null," "]
[null,null,null,null,null,null,null,null,null," "]
[null,null,null,null,null,null,null,null,null," "]
[null,null,null,null,null,null,null,null,null," "]
[null,null,null,null,null,null,null,null,null," "]
[null,null,null,null,null,null,null,null,null," "]
[null,null,null,null,null,null,null,null,null," "]
[null,null,null,null,null,null,null,null,null," "]
[null,null,null,null,null,null,null,null,null," "]
[null,null,null,null,null,null,null,null,null," "]
[null,null,null,null,null,null,null,null,null," "]
[null,null,null,null,null,null,null,null,null," "]
[null,null,null,null,null,null,null,null,null," "]
[null,null,null,null,null,null,null,null,null," "]
[null,null,null,null,null,null,null,null,null," "]
[null,null,null,null,null,null,null,null,null," "]
[null,null,null,null,null,null,null,null,null," "]
[null,null,null,null,null,null,null,null,null," "]
[null,null,null,null,null,null,null,null,null," "]
[null,null,null,null,null,null,null,null,null," "]
[null,null,null,null,null,null,null,null,null," "]
[null,null,null,null,null,null,null,null,null," "]
[null,null,null,null,null,null,null,null,null," "]
[null,null,null,null,null,null,null,null,null," "]
[null,null,null,null,null,null,null,null,null," "]
[null,null,null,null,null,null,null,null,null," "]
[null,null,null,null,null,null,null,null,null," "]
[null,null,null,null,null,null,null,null,null," "]
[null,null,null,null,null,null,null,null,null," "]
[null,null,null,null,null,null,null,null,null," "]
[null,null,null,null,null,null,null,null,null," "]
[null,null,null,null,null,null,null,null,null," "]
[null,null,null,null,null,null,null,null,null," "]
[null,null,null,null,null,null,null,null,null," "]
[null,null,null,null,null,null,null,null,null," "]
[null,null,null,null,null,null,null,null,null," "]
[null,null,null,null,null,null,null,null,null," "]
[null,null,null,null,null,null,null,null,null," "]
[null,null,null,null,null,null,null,null,null," "]
[null,null,null,null,null,null,null,null,null," "]
[null,null,null,null,null,null,null,null,null," "]
[null,null,null,null,null,null,null,null,null," "]
[null,null,null,null,null,null,null,null,null," "]
[null,null,null,null,null,null,null,null,null," "]
[null,null,null,null,null,null,null,null,null," "]
[null,null,null,null,null,null,null,null,null," "]
[null,null,null,null,null,null,null,null,null," "]
[null,null,null,null,null,null,null,null,null," "]
[null,null,null,null,null,null,null,null,null," "]
[null,null,null,null,null,null,null,null,null," "]
[null,null,null,null,null,null,null,null,null," "]
[null,null,null,null,null,null,null,null,null," "]
[null,null,null,null,null,null,null,null,null," "]
[null,null,null,null,null,null,null,null,null," "]
[null,null,null,null,null,null,null,null,null," "]
[null,null,null,null,null,null,null,null,null," "]
[null,null,null,null,null,null,null,null,null," "]
[null,null,null,null,null,null,null,null,null," "]
[null,null,null,null,null,null,null,null,null," "]
[null,null,null,null,null,null,null,null,null," "]
[null,null,null,null,null,null,null,null,null," "]
[null,null,null,null,null,null,null,null,null," "]
[null,null,null,null,null,null,null,null,null," "]
[null,null,null,null,null,null,null,null,null," "]
[null,null,null,null,null,null,null,null,null," "]
[null,null,null,null,null,null,null,null,null," "]
[null,null,null,null,null,null,null,null,null," "]
[null,null,null,null,null,null,null,null,null," "]
[null,null,null,null,null,null,null,null,null," "]
[null,null,null,null,null,null,null,null,null," "]
[null,null,null,null,null,null,null,null,null," "]
[null,null,null,null,null,null,null,null,null," "]
[null,null,null,null,null,null,null,null,null," "]
[null,null,null,null,null,null,null,null,null," "]
[null,null,null,null,null,null,null,null,null," "]
[null,null,null,null,null,null,null,null,null," "]
[null,null,null,null,null,null,null,null,null," "]
[null,null,null,null,null,null,null,null,null," "]
[null,null,null,null,null,null,null,null,null," "]
[null,null,null,null,null,null,null,null,null," "]
[null,null,null,null,null,null,null,null,null," "]
[null,null,null,null,null,null,null,null,null," "]
[null,null,null,null,null,null,null,null,null," "]
[null,null,null,null,null,null,null,null,null," "]
[null,null,null,null,null,null,null,null,null," "]
[null,null,null,null,null,null,null,null,null," "]
[null,null,null,null,null,null,null,null,null," "]
[null,null,null,null,null,null,null,null,null," "]
[null,null,null,null,null,null,null,null,null," "]
[null,null,null,null,null,null,null,null,null," "]
[null,null,null,null,null,null,null,null,null," "]
[null,null,null,null,null,null,null,null,null," "]
[null,null,null,null,null,null,null,null,null," "]
[null,null,null,null,null,null,null,null,null," "]
[null,null,null,null,null,null,null,null,null," "]
[null,null,null,null,null,null,null,null,null," "]
[null,null,null,null,null,null,null,null,null," "]
[null,null,null,null,null,null,null,null,null," "]
[null,null,null,null,null,null,null,null,null," "]
[null,null,null,null,null,null,null,null,null," "]
[null,null,null,null,null,null,null,null,null," "]
[null,null,null,null,null,null,null,null,null," "]
[null,null,null,null,null,null,null,null,null," "]
[null,null,null,null,null,null,null,null,null," "]
[null,null,null,null,null,null,null,null,null," "]
[null,null,null,null,null,null,null,null,null," "]
[null,null,null,null,null,null,null,null,null," "]
[null,null,null,null,null,null,null,null,null," "]
[null,null,null,null,null,null,null,null,null," "]
[null,null,null,null,null,null,null,null,null," "]
[null,null,null,null,null,null,null,null,null," "]
[null,null,null,null,null,null,null,null,null," "]
[null,null,null,null,null,null,null,null,null," "]
[null,null,null,null,null,null,null,null,null," "]
[null,null,null,null,null,null,null,null,null," "]
[null,null,null,null,null,null,null,null,null," "]
[null,null,null,null,null,null,null,null,null," "]
[null,null,null,null,null,null,null,null,null," "]
[null,null,null,null,null,null,null,null,null," "]
[null,null,null,null,null,null,null,null,null," "]
[null,null,null,null,null,null,null,null,null," "]
[null,null,null,null,null,null,null,null,null," "]
[null,null,null,null,null,null,null,null,null," "]
[null,null,null,null,null,null,null,null,null," "]
[null,null,null,null,null,null,null,null,null," "]
[null,null,null,null,null,null,null,null,null," "]
[null,null,null,null,null,null,null,null,null," "]
[null,null,null,null,null,null,null,null,null," "]
[null,null,null,null,null,null,null,null,null," "]
[null,null,null,null,null,null,null,null,null," "]
[null,null,null,null,null,null,null,null,null," "]
[null,null,null,null,null,null,null,null,null," "]
[null,null,null,null,null,null,null,null,null," "]
[null,null,null,null,null,null,null,null,null," "]
[null,null,null,null,null,null,null,null,null," "]
[null,null,null,null,null,null,null,null,null," "]
[null,null,null,null,null,null,null,null,null," "]
[null,null,null,null,null,null,null,null,null," "]
[null,null,null,null,null,null,null,null,null," "]
[null,null,null,null,null,null,null,null,null," "]
[null,null,null,null,null,null,null,null,null," "]
[null,null,null,null,null,null,null,null,null," "]
[null,null,null,null,null,null,null,null,null," "]
[null,null,null,null,null,null,null,null,null," "]
[null,null,null,null,null,null,null,null,null," "]
[null,null,null,null,null,null,null,null,null," "]
[null,null,null,null,null,null,null,null,null," "]
[null,null,null,null,null,null,null,null,null," "]
[null,null,null,null,null,null,null,null,null," "]
[null,null,null,null,null,null,null,null,null," "]
[null,null,null,null,null,null,null,null,null," "]
[null,null,null,null,null,null,null,null,null," "]
[null,null,null,null,null,null,null,null,null," "]
[null,null,null,null,null,null,null,null,null," "]
[null,null,null,null,null,null,null,null,null," "]
[null,null,null,null,null,null,null,null,null," "]
[null,null,null,null,null,null,null,null,null," "]
[null,null,null,null,null,null,null,null,null," "]
[null,null,null,null,null,null,null,null,null," "]
[null,null,null,null,null,null,null,null,null," "]
[null,null,null,null,null,null,null,null,null," "]
[null,null,null,null,null,null,null,null,null," "]
[null,null,null,null,null,null,null,null,null," "]
[null,null,null,null,null,null,null,null,null," "]
[null,null,null,null,null,null,null,null,null," "]
[null,null,null,null,null,null,null,null,null," "]
[null,null,null,null,null,null,null,null,null," "]
[null,null,null,null,null,null,null,null,null," "]
[null,null,null,null,null,null,null,null,null," "]
[null,null,null,null,null,null,null,null,null," "]
[null,null,null,null,null,null,null,null,null," "]
[null,null,null,null,null,null,null,null,null," "]
[null,null,null,null,null,null,null,null,null," "]
[null,null,null,null,null,null,null,null,null," "]
[null,null,null,null,null,null,null,null,null," "]
[null,null,null,null,null,null,null,null,null," "]
[null,null,null,null,null,null,null,null,null," "]
[null,null,null,null,null,null,null,null,null," "]
[null,null,null,null,null,null,null,null,null," "]
[null,null,null,null,null,null,null,null,null," "]
[null,null,null,null,null,null,null,null,null," "]
[null,null,null,null,null,null,null,null,null," "]
[null,null,null,null,null,null,null,null,null," "]
[null,null,null,null,null,null,null,null,null," "]
[null,null,null,null,null,null,null,null,null," "]
[null,null,null,null,null,null,null,null,null," "]
[null,null,null,null,null,null,null,null,null," "]
[null,null,null,null,null,null,null,null,null," "]
[null,null,null,null,null,null,null,null,null," "]
[null,null,null,null,null,null,null,null,null," "]
[null,null,null,null,null,null,null,null,null," "]
[null,null,null,null,null,null,null,null,null," "]
[null,null,null,null,null,null,null,null,null," "]
[null,null,null,null,null,null,null,null,null," "]
[null,null,null,null,null,null,null,null,null," "]
[null,null,null,null,null,null,null,null,null," "]
[null,null,null,null,null,null,null,null,null," "]
[null,null,null,null,null,null,null,null,null," "]
[null,null,null,null,null,null,null,null,null," "]
[null,null,null,null,null,null,null,null,null," "]
[null,null,null,null,null,null,null,null,null," "]
[null,null,null,null,null,null,null,null,null," "]
[null,null,null,null,null,null,null,null,null," "]
[null,null,null,null,null,null,null,null,null," "]
[null,null,null,null,null,null,null,null,null," "]
[null,null,null,null,null,null,null,null,null," "]
[null,null,null,null,null,null,null,null,null," "]
[null,null,null,null,null,null,null,null,null," "]
[null,null,null,null,null,null,null,null,null," "]
[null,null,null,null,null,null,null,null,null," "]
[null,null,null,null,null,null,null,null,null," "]
[null,null,null,null,null,null,null,null,null," "]
[null,null,null,null,null,null,null,null,null," "]
[null,null,null,null,null,null,null,null,null," "]
[null,null,null,null,null,null,null,null,null," "]
[null,null,null,null,null,null,null,null,null," "]
[null,null,null,null,null,null,null,null,null," "]
[null,null,null,null,null,null,null,null,null," "]
[null,null,null,null,null,null,null,null,null," "]
[null,null,null,null,null,null,null,null,null," "]
[null,null,null,null,null,null,null,null,null," "]
[null,null,null,null,null,null,null,null,null," "]
[null,null,null,null,null,null,null,null,null," "]
[null,null,null,null,null,null,null,null,null," "]
[null,null,null,null,null,null,null,null,null," "]
[null,null,null,null,null,null,null,null,null," "]
[null,null,null,null,null,null,null,null,null," "]
[null,null,null,null,null,null,null,null,null," "]
[null,null,null,null,null,null,null,null,null," "]
[null,null,null,null,null,null,null,null,null," "]
[null,null,null,null,null,null,null,null,null," "]
[null,null,null,null,null,null,null,null,null," "]
[null,null,null,null,null,null,null,null,null," "]
[null,null,null,null,null,null,null,null,null," "]
[null,null,null,null,null,null,null,null,null," "]
[null,null,null,null,null,null,null,null,null," "]
[null,null,null,null,null,null,null,null,null," "]
[null,null,null,null,null,null,null,null,null," "]
[null,null,null,null,null,null,null,null,null," "]
[null,null,null,null,null,null,null,null,null," "]
[null,null,null,null,null,null,null,null,null," "]
[null,null,null,null,null,null,null,null,null," "]
[null,null,null,null,null,null,null,null,null," "]
[null,null,null,null,null,null,null,null,null," "]
[null,null,null,null,null,null,null,null,null," "]
[null,null,null,null,null,null,null,null,null," "]
[null,null,null,null,null,null,null,null,null," "]
[null,null,null,null,null,null,null,null,null," "]
[null,null,null,null,null,null,null,null,null," "]
[null,null,null,null,null,null,null,null,null," "]
[null,null,null,null,null,null,null,null,null," "]
[null,null,null,null,null,null,null,null,null," "]
[null,null,null,null,null,null,null,null,null," "]
[null,null,null,null,null,null,null,null,null," "]
[null,null,null,null,null,null,null,null,null," "]
[null,null,null,null,null,null,null,null,null," "]
[null,null,null,null,null,null,null,null,null," "]
[null,null,null,null,null,null,null,null,null," "]
[null,null,null,null,null,null,null,null,null," "]
[null,null,null,null,null,null,null,null,null," "]
[null,null,null,null,null,null,null,null,null," "]
[null,null,null,null,null,null,null,null,null," "]
[null,null,null,null,null,null,null,null,null," "]
[null,null,null,null,null,null,null,null,null," "]
[null,null,null,null,null,null,null,null,null," "]
[null,null,null,null,null,null,null,null,null," "]
[null,null,null,null,null,null,null,null,null," "]
[null,null,null,null,null,null,null,null,null," "]
[null,null,null,null,null,null,null,null,null," "]
[null,null,null,null,null,null,null,null,null," "]
[null,null,null,null,null,null,null,null,null," "]
[null,null,null,null,null,null,null,null,null," "]
[null,null,null,null,null,null,null,null,null," "]
[null,null,null,null,null,null,null,null,null," "]
[null,null,null,null,null,null,null,null,null," "]
[null,null,null,null,null,null,null,null,null," "]
[null,null,null,null,null,null,null,null,null," "]
[null,null,null,null,null,null,null,null,null," "]
[null,null,null,null,null,null,null,null,null," "]
[null,null,null,null,null,null,null,null,null," "]
[null,null,null,null,null,null,null,null,null," "]
[null,null,null,null,null,null,null,null,null," "]
[null,null,null,null,null,null,null,null,null," "]
[null,null,null,null,null,null,null,null,null," "]
[null,null,null,null,null,null,null,null,null," "]
[null,null,null,null,null,null,null,null,null," "]
[null,null,null,null,null,null,null,null,null," "]
[null,null,null,null,null,null,null,null,null," "]
[null,null,null,null,null,null,null,null,null," "]
[null,null,null,null,null,null,null,null,null," "]
[null,null,null,null,null,null,null,null,null," "]
[null,null,null,null,null,null,null,null,null," "]
[null,null,null,null,null,null,null,null,null," "]
[null,null,null,null,null,null,null,null,null," "]
[null,null,null,null,null,null,null,null,null," "]
[null,null,null,null,null,null,null,null,null," "]
[null,null,null,null,null,null,null,null,null," "]
[null,null,null,null,null,null,null,null,null," "]
[null,null,null,null,null,null,null,null,null," "]
[null,null,null,null,null,null,null,null,null," "]
[null,null,null,null,null,null,null,null,null," "]
[null,null,null,null,null,null,null,null,null," "]
[null,null,null,null,null,null,null,null,null," "]
[null,null,null,null,null,null,null,null,null," "]
[null,null,null,null,null,null,null,null,null," "]
[null,null,null,null,null,null,null,null,null," "]
[null,null,null,null,null,null,null,null,null," "]
[null,null,null,null,null,null,null,null,null," "]
[null,null,null,null,null,null,null,null,null," "]
[null,null,null,null,null,null,null,null,null," "]
[null,null,null,null,null,null,null,null,null," "]
[null,null,null,null,null,null,null,null,null," "]
[null,null,null,null,null,null,null,null,null," "]
[null,null,null,null,null,null,null,null,null," "]
[null,null,null,null,null,null,null,null,null," "]
[null,null,null,null,null,null,null,null,null," "]
[null,null,null,null,null,null,null,null,null," "]
[null,null,null,null,null,null,null,null,null," "]
[null,null,null,null,null,null,null,null,null," "]
[null,null,null,null,null,null,null,null,null," "]
[null,null,null,null,null,null,null,null,null," "]
[null,null,null,null,null,null,null,null,null," "]
[null,null,null,null,null,null,null,null,null," "]
[null,null,null,null,null,null,null,null,null," "]
[null,null,null,null,null,null,null,null,null," "]
[null,null,null,null,null,null,null,null,null," "]
[null,null,null,null,null,null,null,null,null," "]
[null,null,null,null,null,null,null,null,null," "]
[null,null,null,null,null,null,null,null,null," "]
[null,null,null,null,null,null,null,null,null," "]
[null,null,null,null,null,null,null,null,null," "]
[null,null,null,null,null,null,null,null,null," "]
[null,null,null,null,null,null,null,null,null," "]
[null,null,null,null,null,null,null,null,null," "]
[null,null,null,null,null,null,null,null,null," "]
[null,null,null,null,null,null,null,null,null," "]
[null,null,null,null,null,null,null,null,null," "]
[null,null,null,null,null,null,null,null,null," "]
[null,null,null,null,null,null,null,null,null," "]
[null,null,null,null,null,null,null,null,null," "]
[null,null,null,null,null,null,null,null,null," "]
[null,null,null,null,null,null,null,null,null," "]
[null,null,null,null,null,null,null,null,null," "]
[null,null,null,null,null,null,null,null,null," "]
[null,null,null,null,null,null,null,null,null," "]
[null,null,null,null,null,null,null,null,null," "]
[null,null,null,null,null,null,null,null,null," "]
[null,null,null,null,null,null,null,null,null," "]
[null,null,null,null,null,null,null,null,null," "]
[null,null,null,null,null,null,null,null,null," "]
[null,null,null,null,null,null,null,null,null," "]
[null,null,null,null,null,null,null,null,null," "]
[null,null,null,null,null,null,null,null,null," "]
[null,null,null,null,null,null,null,null,null," "]
[null,null,null,null,null,null,null,null,null," "]
[null,null,null,null,null,null,null,null,null," "]
[null,null,null,null,null,null,null,null,null," "]
[null,null,null,null,null,null,null,null,null," "]
[null,null,null,null,null,null,null,null,null," "]
[null,null,null,null,null,null,null,null,null," "]
[null,null,null,null,null,null,null,null,null," "]
[null,null,null,null,null,null,null,null,null," "]
[null,null,null,null,null,null,null,null,null," "]
[null,null,null,null,null,null,null,null,null," "]
[null,null,null,null,null,null,null,null,null," "]
[null,null,null,null,null,null,null,null,null," "]
[null,null,null,null,null,null,null,null,null," "]
[null,null,null,null,null,null,null,null,null," "]
[null,null,null,null,null,null,null,null,null," "]
[null,null,null,null,null,null,null,null,null," "]
[null,null,null,null,null,null,null,null,null," "]
[null,null,null,null,null,null,null,null,null," "]
[null,null,null,null,null,null,null,null,null," "]
[null,null,null,null,null,null,null,null,null," "]
[null,null,null,null,null,null,null,null,null," "]
[null,null,null,null,null,null,null,null,null," "]
[null,null,null,null,null,null,null,null,null," "]
[null,null,null,null,null,null,null,null,null," "]
[null,null,null,null,null,null,null,null,null," "]
[null,null,null,null,null,null,null,null,null," "]
[null,null,null,null,null,null,null,null,null," "]
[null,null,null,null,null,null,null,null,null," "]
[null,null,null,null,null,null,null,null,null," "]
[null,null,null,null,null,null,null,null,null," "]
[null,null,null,null,null,null,null,null,null," "]
[null,null,null,null,null,null,null,null,null," "]
[null,null,null,null,null,null,null,null,null," "]
[null,null,null,null,null,null,null,null,null," "]
[null,null,null,null,null,null,null,null,null," "]
[null,null,null,null,null,null,null,null,null," "]
[null,null,null,null,null,null,null,null,null," "]
[null,null,null,null,null,null,null,null,null," "]
[null,null,null,null,null,null,null,null,null," "]
[null,null,null,null,null,null,null,null,null," "]
[null,null,null,null,null,null,null,null,null," "]
[null,null,null,null,null,null,null,null,null," "]
[null,null,null,null,null,null,null,null,null," "]
[null,null,null,null,null,null,null,null,null," "]
[null,null,null,null,null,null,null,null,null," "]
[null,null,null,null,null,null,null,null,null," "]
[null,null,null,null,null,null,null,null,null," "]
[null,null,null,null,null,null,null,null,null," "]
[null,null,null,null,null,null,null,null,null," "]
[null,null,null,null,null,null,null,null,null," "]
[null,null,null,null,null,null,null,null,null," "]
[null,null,null,null,null,null,null,null,null," "]
[null,null,null,null,null,null,null,null,null," "]
[null,null,null,null,null,null,null,null,null," "]
[null,null,null,null,null,null,null,null,null," "]
[null,null,null,null,null,null,null,null,null," "]
[null,null,null,null,null,null,null,null,null," "]
[null,null,null,null,null,null,null,null,null," "]
[null,null,null,null,null,null,null,null,null," "]
[null,null,null,null,null,null,null,null,null," "]
[null,null,null,null,null,null,null,null,null," "]
[null,null,null,null,null,null,null,null,null," "]
[null,null,null,null,null,null,null,null,null," "]
[null,null,null,null,null,null,null,null,null," "]
[null,null,null,null,null,null,null,null,null," "]
[null,null,null,null,null,null,null,null,null," "]
[null,null,null,null,null,null,null,null,null," "]
[null,null,null,null,null,null,null,null,null," "]
[null,null,null,null,null,null,null,null,null," "]
[null,null,null,null,null,null,null,null,null," "]
[null,null,null,null,null,null,null,null,null," "]
[null,null,null,null,null,null,null,null,null," "]
[null,null,null,null,null,null,null,null,null," "]
[null,null,null,null,null,null,null,null,null," "]
[null,null,null,null,null,null,null,null,null," "]
[null,null,null,null,null,null,null,null,null," "]
[null,null,null,null,null,null,null,null,null," "]
[null,null,null,null,null,null,null,null,null," "]
[null,null,null,null,null,null,null,null,null," "]
[null,null,null,null,null,null,null,null,null," "]
[null,null,null,null,null,null,null,null,null," "]
[null,null,null,null,null,null,null,null,null," "]
[null,null,null,null,null,null,null,null,null," "]
[null,null,null,null,null,null,null,null,null," "]
[null,null,null,null,null,null,null,null,null," "]
[null,null,null,null,null,null,null,null,null," "]
[null,null,null,null,null,null,null,null,null," "]
[null,null,null,null,null,null,null,null,null," "]
[null,null,null,null,null,null,null,null,null," "]
[null,null,null,null,null,null,null,null,null," "]
[null,null,null,null,null,null,null,null,null," "]
[null,null,null,null,null,null,null,null,null," "]
[null,null,null,null,null,null,null,null,null," "]
[null,null,null,null,null,null,null,null,null," "]
[null,null,null,null,null,null,null,null,null," "]
[null,null,null,null,null,null,null,null,null," "]
[null,null,null,null,null,null,null,null,null," "]
[null,null,null,null,null,null,null,null,null," "]
[null,null,null,null,null,null,null,null,null," "]
[null,null,null,null,null,null,null,null,null," "]
[null,null,null,null,null,null,null,null,null," "]
[null,null,null,null,null,null,null,null,null," "]
[null,null,null,null,null,null,null,null,null," "]
[null,null,null,null,null,null,null,null,null," "]
[null,null,null,null,null,null,null,null,null," "]
[null,null,null,null,null,null,null,null,null," "]
[null,null,null,null,null,null,null,null,null," "]
[null,null,null,null,null,null,null,null,null," "]
[null,null,null,null,null,null,null,null,null," "]
[null,null,null,null,null,null,null,null,null," "]
[null,null,null,null,null,null,null,null,null," "]
[null,null,null,null,null,null,null,null,null," "]
[null,null,null,null,null,null,null,null,null," "]
[null,null,null,null,null,null,null,null,null," "]
[null,null,null,null,null,null,null,null,null," "]
[null,null,null,null,null,null,null,null,null," "]
[null,null,null,null,null,null,null,null,null," "]
[null,null,null,null,null,null,null,null,null," "]
[null,null,null,null,null,null,null,null,null," "]
[null,null,null,null,null,null,null,null,null," "]
[null,null,null,null,null,null,null,null,null," "]
[null,null,null,null,null,null,null,null,null," "]
[null,null,null,null,null,null,null,null,null," "]
[null,null,null,null,null,null,null,null,null," "]
[null,null,null,null,null,null,null,null,null," "]
[null,null,null,null,null,null,null,null,null," "]
[null,null,null,null,null,null,null,null,null," "]
[null,null,null,null,null,null,null,null,null," "]
[null,null,null,null,null,null,null,null,null," "]
[null,null,null,null,null,null,null,null,null," "]
[null,null,null,null,null,null,null,null,null," "]
[null,null,null,null,null,null,null,null,null," "]
[null,null,null,null,null,null,null,null,null," "]
[null,null,null,null,null,null,null,null,null," "]
[null,null,null,null,null,null,null,null,null," "]
[null,null,null,null,null,null,null,null,null," "]
[null,null,null,null,null,null,null,null,null," "]
[null,null,null,null,null,null,null,null,null," "]
[null,null,null,null,null,null,null,null,null," "]
[null,null,null,null,null,null,null,null,null," "]
[null,null,null,null,null,null,null,null,null," "]
[null,null,null,null,null,null,null,null,null," "]
[null,null,null,null,null,null,null,null,null," "]
[null,null,null,null,null,null,null,null,null," "]
[null,null,null,null,null,null,null,null,null," "]
[null,null,null,null,null,null,null,null,null," "]
[null,null,null,null,null,null,null,null,null," "]
[null,null,null,null,null,null,null,null,null," "]
[null,null,null,null,null,null,null,null,null," "]
[null,null,null,null,null,null,null,null,null," "]
[null,null,null,null,null,null,null,null,null," "]
[null,null,null,null,null,null,null,null,null," "]
[null,null,null,null,null,null,null,null,null," "]
[null,null,null,null,null,null,null,null,null," "]
[null,null,null,null,null,null,null,null,null," "]
[null,null,null,null,null,null,null,null,null," "]
[null,null,null,null,null,null,null,null,null," "]
[null,null,null,null,null,null,null,null,null," "]
[null,null,null,null,null,null,null,null,null," "]
[null,null,null,null,null,null,null,null,null," "]
[null,null,null,null,null,null,null,null,null," "]
[null,null,null,null,null,null,null,null,null," "]
[null,null,null,null,null,null,null,null,null," "]
[null,null,null,null,null,null,null,null,null," "]
[null,null,null,null,null,null,null,null,null," "]
[null,null,null,null,null,null,null,null,null," "]
[null,null,null,null,null,null,null,null,null," "]
[null,null,null,null,null,null,null,null,null," "]
[null,null,null,null,null,null,null,null,null," "]
[null,null,null,null,null,null,null,null,null," "]
[null,null,null,null,null,null,null,null,null," "]
[null,null,null,null,null,null,null,null,null," "]
[null,null,null,null,null,null,null,null,null," "]
[null,null,null,null,null,null,null,null,null," "]
[null,null,null,null,null,null,null,null,null," "]
[null,null,null,null,null,null,null,null,null," "]
[null,null,null,null,null,null,null,null,null," "]
[null,null,null,null,null,null,null,null,null," "]
[null,null,null,null,null,null,null,null,null," "]
[null,null,null,null,null,null,null,null,null," "]
[null,null,null,null,null,null,null,null,null," "]
[null,null,null,null,null,null,null,null,null," "]
[null,null,null,null,null,null,null,null,null," "]
[null,null,null,null,null,null,null,null,null," "]
[null,null,null,null,null,null,null,null,null," "]
[null,null,null,null,null,null,null,null,null," "]
[null,null,null,null,null,null,null,null,null," "]
[null,null,null,null,null,null,null,null,null," "]
[null,null,null,null,null,null,null,null,null," "]
[null,null,null,null,null,null,null,null,null," "]
[null,null,null,null,null,null,null,null,null," "]
[null,null,null,null,null,null,null,null,null," "]
[null,null,null,null,null,null,null,null,null," "]
[null,null,null,null,null,null,null,null,null," "]
[null,null,null,null,null,null,null,null,null," "]
[null,null,null,null,null,null,null,null,null," "]
[null,null,null,null,null,null,null,null,null," "]
[null,null,null,null,null,null,null,null,null," "]
[null,null,null,null,null,null,null,null,null," "]
[null,null,null,null,null,null,null,null,null," "]
[null,null,null,null,null,null,null,null,null," "]
[null,null,null,null,null,null,null,null,null," "]
[null,null,null,null,null,null,null,null,null," "]
[null,null,null,null,null,null,null,null,null," "]
[null,null,null,null,null,null,null,null,null," "]
[null,null,null,null,null,null,null,null,null," "]
[null,null,null,null,null,null,null,null,null," "]
[null,null,null,null,null,null,null,null,null," "]
[null,null,null,null,null,null,null,null,null," "]
[null,null,null,null,null,null,null,null,null," "]
[null,null,null,null,null,null,null,null,null," "]
[null,null,null,null,null,null,null,null,null," "]
[null,null,null,null,null,null,null,null,null," "]
[null,null,null,null,null,null,null,null,null," "]
[null,null,null,null,null,null,null,null,null," "]
[null,null,null,null,null,null,null,null,null," "]
[null,null,null,null,null,null,null,null,null," "]
[null,null,null,null,null,null,null,null,null," "]
[null,null,null,null,null,null,null,null,null," "]
[null,null,null,null,null,null,null,null,null," "]
[null,null,null,null,null,null,null,null,null," "]
[null,null,null,null,null,null,null,null,null," "]
[null,null,null,null,null,null,null,null,null," "]
[null,null,null,null,null,null,null,null,null," "]
[null,null,null,null,null,null,null,null,null," "]
[null,null,null,null,null,null,null,null,null," "]
[null,null,null,null,null,null,null,null,null," "]
[null,null,null,null,null,null,null,null,null," "]
[null,null,null,null,null,null,null,null,null," "]
[null,null,null,null,null,null,null,null,null," "]
[null,null,null,null,null,null,null,null,null," "]
[null,null,null,null,null,null,null,null,null," "]
[null,null,null,null,null,null,null,null,null," "]
[null,null,null,null,null,null,null,null,null," "]
[null,null,null,null,null,null,null,null,null," "]
[null,null,null,null,null,null,null,null,null," "]
[null,null,null,null,null,null,null,null,null," "]
[null,null,null,null,null,null,null,null,null," "]
[null,null,null,null,null,null,null,null,null," "]
[null,null,null,null,null,null,null,null,null," "]
[null,null,null,null,null,null,null,null,null," "]
[null,null,null,null,null,null,null,null,null," "]
[null,null,null,null,null,null,null,null,null," "]
[null,null,null,null,null,null,null,null,null," "]
[null,null,null,null,null,null,null,null,null," "]
[null,null,null,null,null,null,null,null,null," "]
[null,null,null,null,null,null,null,null,null," "]
[null,null,null,null,null,null,null,null,null," "]
[null,null,null,null,null,null,null,null,null," "]
[null,null,null,null,null,null,null,null,null," "]
[null,null,null,null,null,null,null,null,null," "]
[null,null,null,null,null,null,null,null,null," "]
[null,null,null,null,null,null,null,null,null," "]
[null,null,null,null,null,null,null,null,null," "]
[null,null,null,null,null,null,null,null,null," "]
[null,null,null,null,null,null,null,null,null," "]
[null,null,null,null,null,null,null,null,null," "]
[null,null,null,null,null,null,null,null,null," "]
[null,null,null,null,null,null,null,null,null," "]
[null,null,null,null,null,null,null,null,null," "]
[null,null,null,null,null,null,null,null,null," "]
[null,null,null,null,null,null,null,null,null," "]
[null,null,null,null,null,null,null,null,null," "]
[null,null,null,null,null,null,null,null,null," "]
[null,null,null,null,null,null,null,null,null," "]
[null,null,null,null,null,null,null,null,null," "]
[null,null,null,null,null,null,null,null,null," "]
[null,null,null,null,null,null,null,null,null," "]
[null,null,null,null,null,null,null,null,null," "]
[null,null,null,null,null,null,null,null,null," "]
[null,null,null,null,null,null,null,null,null," "]
[null,null,null,null,null,null,null,null,null," "]
[null,null,null,null,null,null,null,null,null," "]
[null,null,null,null,null,null,null,null,null," "]
[null,null,null,null,null,null,null,null,null," "]
[null,null,null,null,null,null,null,null,null," "]
[null,null,null,null,null,null,null,null,null," "]
[null,null,null,null,null,null,null,null,null," "]
[null,null,null,null,null,null,null,null,null," "]
[null,null,null,null,null,null,null,null,null," "]
[null,null,null,null,null,null,null,null,null," "]
[null,null,null,null,null,null,null,null,null," "]
[null,null,null,null,null,null,null,null,null," "]
[null,null,null,null,null,null,null,null,null," "]
[null,null,null,null,null,null,null,null,null," "]
[null,null,null,null,null,null,null,null,null," "]
[null,null,null,null,null,null,null,null,null," "]
[null,null,null,null,null,null,null,null,null," "]
[null,null,null,null,null,null,null,null,null," "]
[null,null,null,null,null,null,null,null,null," "]
[null,null,null,null,null,null,null,null,null," "]
[null,null,null,null,null,null,null,null,null," "]
[null,null,null,null,null,null,null,null,null," "]
[null,null,null,null,null,null,null,null,null," "]
[null,null,null,null,null,null,null,null,null," "]
[null,null,null,null,null,null,null,null,null," "]
[null,null,null,null,null,null,null,null,null," "]
[null,null,null,null,null,null,null,null,null," "]
[null,null,null,null,null,null,null,null,null," "]
[null,null,null,null,null,null,null,null,null," "]
[null,null,null,null,null,null,null,null,null," "]
[null,null,null,null,null,null,null,null,null," "]
[null,null,null,null,null,null,null,null,null," "]
[null,null,null,null,null,null,null,null,null," "]
[null,null,null,null,null,null,null,null,null," "]
[null,null,null,null,null,null,null,null,null," "]
[null,null,null,null,null,null,null,null,null," "]
[null,null,null,null,null,null,null,null,null," "]
[null,null,null,null,null,null,null,null,null," "]
[null,null,null,null,null,null,null,null,null," "]
[null,null,null,null,null,null,null,null,null," "]
[null,null,null,null,null,null,null,null,null," "]
[null,null,null,null,null,null,null,null,null," "]
[null,null,null,null,null,null,null,null,null," "]
[null,null,null,null,null,null,null,null,null," "]
[null,null,null,null,null,null,null,null,null," "]
[null,null,null,null,null,null,null,null,null," "]
[null,null,null,null,null,null,null,null,null," "]
[null,null,null,null,null,null,null,null,null," "]
[null,null,null,null,null,null,null,null,null," "]
[null,null,null,null,null,null,null,null,null," "]
[null,null,null,null,null,null,null,null,null," "]
[null,null,null,null,null,null,null,null,null," "]
[null,null,null,null,null,null,null,null,null," "]
[null,null,null,null,null,null,null,null,null," "]
[null,null,null,null,null,null,null,null,null," "]
[null,null,null,null,null,null,null,null,null," "]
[null,null,null,null,null,null,null,null,null," "]
[null,null,null,null,null,null,null,null,null," "]
[null,null,null,null,null,null,null,null,null," "]
[null,null,null,null,null,null,null,null,null," "]
[null,null,null,null,null,null,null,null,null," "]
[null,null,null,null,null,null,null,null,null," "]
[null,null,null,null,null,null,null,null,null," "]
[null,null,null,null,null,null,null,null,null," "]
[null,null,null,null,null,null,null,null,null," "]
[null,null,null,null,null,null,null,null,null," "]
[null,null,null,null,null,null,null,null,null," "]
[null,null,null,null,null,null,null,null,null," "]
[null,null,null,null,null,null,null,null,null," "]
[null,null,null,null,null,null,null,null,null," "]
[null,null,null,null,null,null,null,null,null," "]
[null,null,null,null,null,null,null,null,null," "]
[null,null,null,null,null,null,null,null,null," "]
[null,null,null,null,null,null,null,null,null," "]
[null,null,null,null,null,null,null,null,null," "]
[null,null,null,null,null,null,null,null,null," "]
[null,null,null,null,null,null,null,null,null," "]
[null,null,null,null,null,null,null,null,null," "]
[null,null,null,null,null,null,null,null,null," "]
[null,null,null,null,null,null,null,null,null," "]
[null,null,null,null,null,null,null,null,null," "]
[null,null,null,null,null,null,null,null,null," "]
[null,null,null,null,null,null,null,null,null," "]
[null,null,null,null,null,null,null,null,null," "]
[null,null,null,null,null,null,null,null,null," "]
[null,null,null,null,null,null,null,null,null," "]
[null,null,null,null,null,null,null,null,null," "]
[null,null,null,null,null,null,null,null,null," "]
[null,null,null,null,null,null,null,null,null," "]
[null,null,null,null,null,null,null,null,null," "]
[null,null,null,null,null,null,null,null,null," "]
[null,null,null,null,null,null,null,null,null," "]
[null,null,null,null,null,null,null,null,null," "]
[null,null,null,null,null,null,null,null,null," "]
[null,null,null,null,null,null,null,null,null," "]
[null,null,null,null,null,null,null,null,null," "]
[null,null,null,null,null,null,null,null,null," "]
[null,null,null,null,null,null,null,null,null," "]
[null,null,null,null,null,null,null,null,null," "]
[null,null,null,null,null,null,null,null,null," "]
[null,null,null,null,null,null,null,null,null," "]
[null,null,null,null,null,null,null,null,null," "]
[null,null,null,null,null,null,null,null,null," "]
[null,null,null,null,null,null,null,null,null," "]
[null,null,null,null,null,null,null,null,null," "]
[null,null,null,null,null,null,null,null,null," "]
[null,null,null,null,null,null,null,null,null," "]
[null,null,null,null,null,null,null,null,null," "]
[null,null,null,null,null,null,null,null,null," "]
[null,null,null,null,null,null,null,null,null," "]
[null,null,null,null,null,null,null,null,null," "]
[null,null,null,null,null,null,null,null,null," "]
[null,null,null,null,null,null,null,null,null," "]
[null,null,null,null,null,null,null,null,null," "]
[null,null,null,null,null,null,null,null,null," "]
[null,null,null,null,null,null,null,null,null," "]
[null,null,null,null,null,null,null,null,null," "]
[null,null,null,null,null,null,null,null,null," "]
[null,null,null,null,null,null,null,null,null," "]
[null,null,null,null,null,null,null,null,null," "]
[null,null,null,null,null,null,null,null,null," "]
[null,null,null,null,null,null,null,null,null," "]
[null,null,null,null,null,null,null,null,null," "]
[null,null,null,null,null,null,null,null,null," "]
[null,null,null,null,null,null,null,null,null," "]
[null,null,null,null,null,null,null,null,null," "]
[null,null,null,null,null,null,null,null,null," "]
[null,null,null,null,null,null,null,null,null," "]
[null,null,null,null,null,null,null,null,null," "]
[null,null,null,null,null,null,null,null,null," "]
[null,null,null,null,null,null,null,null,null," "]
[null,null,null,null,null,null,null,null,null," "]
[null,null,null,null,null,null,null,null,null," "]
[null,null,null,null,null,null,null,null,null," "]
[null,null,null,null,null,null,null,null,null," "]
[null,null,null,null,null,null,null,null,null," "]
[null,null,null,null,null,null,null,null,null," "]
[null,null,null,null,null,null,null,null,null," "]
[null,null,null,null,null,null,null,null,null," "]
[null,null,null,null,null,null,null,null,null," "]
[null,null,null,null,null,null,null,null,null," "]
[null,null,null,null,null,null,null,null,null," "]
[null,null,null,null,null,null,null,null,null," "]
[null,null,null,null,null,null,null,null,null," "]
[null,null,null,null,null,null,null,null,null," "]
[null,null,null,null,null,null,null,null,null," "]
[null,null,null,null,null,null,null,null,null," "]
[null,null,null,null,null,null,null,null,null," "]
[null,null,null,null,null,null,null,null,null," "]
[null,null,null,null,null,null,null,null,null," "]
[null,null,null,null,null,null,null,null,null," "]
[null,null,null,null,null,null,null,null,null," "]
[null,null,null,null,null,null,null,null,null," "]
[null,null,null,null,null,null,null,null,null," "]
[null,null,null,null,null,null,null,null,null," "]
[null,null,null,null,null,null,null,null,null," "]
[null,null,null,null,null,null,null,null,null," "]
[null,null,null,null,null,null,null,null,null," "]
[null,null,null,null,null,null,null,null,null," "]
[null,null,null,null,null,null,null,null,null," "]
[null,null,null,null,null,null,null,null,null," "]
[null,null,null,null,null,null,null,null,null," "]
[null,null,null,null,null,null,null,null,null," "]
[null,null,null,null,null,null,null,null,null," "]
[null,null,null,null,null,null,null,null,null," "]
[null,null,null,null,null,null,null,null,null," "]
[null,null,null,null,null,null,null,null,null," "]
[null,null,null,null,null,null,null,null,null," "]
[null,null,null,null,null,null,null,null,null," "]
[null,null,null,null,null,null,null,null,null," "]
[null,null,null,null,null,null,null,null,null," "]
[null,null,null,null,null,null,null,null,null," "]
[null,null,null,null,null,null,null,null,null," "]
[null,null,null,null,null,null,null,null,null," "]
[null,null,null,null,null,null,null,null,null," "]
[null,null,null,null,null,null,null,null,null," "]
[null,null,null,null,null,null,null,null,null," "]
[null,null,null,null,null,null,null,null,null," "]
[null,null,null,null,null,null,null,null,null," "]
[null,null,null,null,null,null,null,null,null," "]
[null,null,null,null,null,null,null,null,null," "]
[null,null,null,null,null,null,null,null,null," "]
[null,null,null,null,null,null,null,null,null," "]
[null,null,null,null,null,null,null,null,null," "]
[null,null,null,null,null,null,null,null,null," "]
[null,null,null,null,null,null,null,null,null," "]
[null,null,null,null,null,null,null,null,null," "]
[null,null,null,null,null,null,null,null,null," "]
[null,null,null,null,null,null,null,null,null," "]
[null,null,null,null,null,null,null,null,null," "]
[null,null,null,null,null,null,null,null,null," "]
[null,null,null,null,null,null,null,null,null," "]
[null,null,null,null,null,null,null,null,null," "]
[null,null,null,null,null,null,null,null,null," "]
[null,null,null,null,null,null,null,null,null," "]
[null,null,null,null,null,null,null,null,null," "]
[null,null,null,null,null,null,null,null,null," "]
[null,null,null,null,null,null,null,null,null," "]
[null,null,null,null,null,null,null,null,null," "]
[null,null,null,null,null,null,null,null,null," "]
[null,null,null,null,null,null,null,null,null," "]
[null,null,null,null,null,null,null,null,null," "]
[null,null,null,null,null,null,null,null,null," "]
[null,null,null,null,null,null,null,null,null," "]
[null,null,null,null,null,null,null,null,null," "]
[null,null,null,null,null,null,null,null,null," "]
[null,null,null,null,null,null,null,null,null," "]
[null,null,null,null,null,null,null,null,null," "]
[null,null,null,null,null,null,null,null,null," "]
[null,null,null,null,null,null,null,null,null," "]
[null,null,null,null,null,null,null,null,null," "]
[null,null,null,null,null,null,null,null,null," "]
[null,null,null,null,null,null,null,null,null," "]
[null,null,null,null,null,null,null,null,null," "]
[null,null,null,null,null,null,null,null,null," "]
[null,null,null,null,null,null,null,null,null," "]
[null,null,null,null,null,null,null,null,null," "]
[null,null,null,null,null,null,null,null,null," "]
[null,null,null,null,null,null,null,null,null," "]
[null,null,null,null,null,null,null,null,null," "]
[null,null,null,null,null,null,null,null,null," "]

{"sheet":"Setup","index":1,"n_rows":28,"n_cols":14,"rows_kept":28,"cut":false,"hidden":false,"merged":[[28,1,28,7],[29,1,29,7],[30,1,30,7],[31,1,31,7],[2,1,2,7],[25,2,25,7],[10,2,10,7],[8,2,8,6],[9,2,9,6]]}
[null,"STATrider / Setup"]
[]
[null,"Available Time For Training",null,null,null,null,null,null,null,"Favorite Events"]
[null,"Avg. time per day:",1,"h",30,"min",null,{"$f":"Available_Annual_Hours","v":360},null,"Date","Event","City / Venue","State"]
[null,"Days per week:",5,null,null,null,null,{"$f":"Available_Annual_Hours","v":360},null,null,null,null,null,"."]
[null,"Training start date:",2,"/",28,"/",2022,{"$f":"Weeks_Available","v":25},null,null,null,null,null,"."]
[null,"Race goal date:",8,"/",20,"/",2022,{"$f":"Weeks_Available","v":25},null,null,null,null,null,"."]
[null,"Rider height:",6,"ft",0,{"$f":"IF(ISBLANK(HeightUnit)=TRUE,\"\",IF(HeightUnit=\"ft\",\"in\",\"cm\"))","v":"in"},null,null,null,null,null,null,null,"."]
[null,"First week:",{"$f":"IF(AND(StartYear<>\"\",StartMonth<>\"\",StartDay<>\"\")=TRUE,IFERROR(MONDAYDATE(DATE(StartYear,StartMonth,StartDay)),\"\"),\"\")","v":"2022-02-28"},null,null,null,null,null,null,null,null,null,null,"."]
[null,"Last week:",{"$f":"IF(AND(RaceYear<>\"\",RaceMonth<>\"\",RaceDay<>\"\")=TRUE,IFERROR(MONDAYDATE(DATE(RaceYear,RaceMonth,RaceDay)),\"\"),\"\")","v":"2022-08-15"},null,null,null,null,null,null,null,null,null,null,"."]
[null,"Advanced Setup (Optional)","Reset Charts / Targets",null,null,null,null,null,null,null,null,null,null,"."]
[null,"Weeks available for training:",{"$f":"IFERROR((_xlfn.DAYS(LastWeek,FirstWeek)/7)+1,0)","v":25}]
[null,"Estimated annual hours:",{"$f":"INT(((HoursPerDay + (MinPerDay / 60)) * DaysPerWeek * 48))","v":360}]
[null,"Number of Weeks / Period"]
[null,"Period","Max","B1","Min","B2","Plan","W."]
[null,"Race",2,{"$f":"IF(Number_of_Weeks[[#This Row],[Max]]<Number_of_Weeks[[#This Row],[Min]],0,1)","v":1},1,{"$f":"IF(Number_of_Weeks[[#This Row],[Max]]<Number_of_Weeks[[#This Row],[Min]],0,1)","v":1},2,8]
[null,"Peak",2,{"$f":"IF(Number_of_Weeks[[#This Row],[Max]]<Number_of_Weeks[[#This Row],[Min]],0,1)","v":1},1,{"$f":"IF(Number_of_Weeks[[#This Row],[Max]]<Number_of_Weeks[[#This Row],[Min]],0,1)","v":1},2,7]
[null,"Build II",4,{"$f":"IF(Number_of_Weeks[[#This Row],[Max]]<Number_of_Weeks[[#This Row],[Min]],0,1)","v":1},0,{"$f":"IF(Number_of_Weeks[[#This Row],[Max]]<Number_of_Weeks[[#This Row],[Min]],0,1)","v":1},4,6]
[null,"Build I",4,{"$f":"IF(Number_of_Weeks[[#This Row],[Max]]<Number_of_Weeks[[#This Row],[Min]],0,1)","v":1},0,{"$f":"IF(Number_of_Weeks[[#This Row],[Max]]<Number_of_Weeks[[#This Row],[Min]],0,1)","v":1},4,5]
[null,"Base III",4,{"$f":"IF(Number_of_Weeks[[#This Row],[Max]]<Number_of_Weeks[[#This Row],[Min]],0,1)","v":1},0,{"$f":"IF(Number_of_Weeks[[#This Row],[Max]]<Number_of_Weeks[[#This Row],[Min]],0,1)","v":1},4,4]
[null,"Base II",4,{"$f":"IF(Number_of_Weeks[[#This Row],[Max]]<Number_of_Weeks[[#This Row],[Min]],0,1)","v":1},0,{"$f":"IF(Number_of_Weeks[[#This Row],[Max]]<Number_of_Weeks[[#This Row],[Min]],0,1)","v":1},4,3]
[null,"Base I",4,{"$f":"IF(Number_of_Weeks[[#This Row],[Max]]<Number_of_Weeks[[#This Row],[Min]],0,1)","v":1},0,{"$f":"IF(Number_of_Weeks[[#This Row],[Max]]<Number_of_Weeks[[#This Row],[Min]],0,1)","v":1},1,2]
[null,"Prep.",4,{"$f":"IF(Number_of_Weeks[[#This Row],[Max]]<Number_of_Weeks[[#This Row],[Min]],0,1)","v":1},0,{"$f":"IF(Number_of_Weeks[[#This Row],[Max]]<Number_of_Weeks[[#This Row],[Min]],0,1)","v":1},0,1]
[null,"Total",{"$f":"SUM(Number_of_Weeks[Max])","v":28},null,{"$f":"SUM(Number_of_Weeks[Min])","v":2},null,{"$f":"SUM(Number_of_Weeks[Plan])","v":21},{"$f":"SUMPRODUCT(Period_Weight,Number_of_Weeks[Plan])","v":104}]
[null,"Weight unit"]
[null,"BMI goal*","*For adults 20 years old and older - CDC.GOV"]
[null,"Min BMI",21,{"$f":"IF(BMI_min>BMI_max,0,1)","v":1}]
[null,"Max BMI",22.4,{"$f":"IF(BMI_min>BMI_max,0,1)","v":1}]

{"sheet":"Calendar","index":2,"n_rows":36,"n_cols":38,"rows_kept":36,"cut":false,"hidden":false,"merged":[]}
[null,"STATrider / Calendar"]
[null,"Season 2022 / 2022"]
[]
[]
[]
[]
[]
[]
[]
[]
[]
[]
[]
[]
[null,"Wk","Date","Period","Event","Event Date","Plan. Hrs","Mon","Tue","Wed","Thu","Fri","Sat","Sun","Actual Hrs","Cal.","Cal. Goal","Power","Power Goal","Weight","Weight Goal","HR","HR Goal","Period2","Plan. Hrs Chart","Cal. Goal Chart","HR Goal Chart","Weight Goal Chart","Power Goal Chart","BMI","Speed","Elevation","Distance","Climber Index","Cal/hour","Today Week","Plan. Hrs2","Actual Hrs2"]
[null,null,null,null,null,null,null,null,null,null,null,null,null,null,null,null,null,null,null,{"$f":"IF(ISBLANK(VLOOKUP(Calendar[[#This Row],[Date]],WeightTable[],2,FALSE))=TRUE,NA(),VLOOKUP(Calendar[[#This Row],[Date]],WeightTable[],IF(WeightUnit=\"lb\",2,3),FALSE))","v":{"$error":"#N/A"}},{"$f":"IF(ISBLANK(INDEX(TargetsTable[],MATCH(Calendar[[#This Row],[Date]],TargetsTable[Date],0),MATCH(Calendar[#Headers],TargetsTable[#Headers],0)))=TRUE,NA(),INDEX(TargetsTable[],MATCH(Calendar[[#This Row],[Date]],TargetsTable[Date],0),MATCH(Calendar[#Headers],TargetsTable[#Headers],0)))","v":{"$error":"#N/A"}},{"$f":"IF(ISBLANK(VLOOKUP(Calendar[[#This Row],[Date]],UploadQuery[],MATCH(\"Heart Rate\",UploadQuery[#Headers],0),FALSE))=TRUE,NA(),VLOOKUP(Calendar[[#This Row],[Date]],UploadQuery[],MATCH(\"Heart Rate\",UploadQuery[#Headers],0),FALSE))","v":{"$error":"#N/A"}},{"$f":"IF(ISBLANK(INDEX(TargetsTable[],MATCH(Calendar[[#This Row],[Date]],TargetsTable[Date],0),MATCH(Calendar[#Headers],TargetsTable[#Headers],0)))=TRUE,NA(),INDEX(TargetsTable[],MATCH(Calendar[[#This Row],[Date]],TargetsTable[Date],0),MATCH(Calendar[#Headers],TargetsTable[#Headers],0)))","v":{"$error":"#N/A"}},{"$f":"Calendar[[#This Row],[Period]]","v":0},{"$f":"IFERROR(IF(Calendar[[#This Row],[Plan. Hrs]]<Calendar[[#This Row],[Actual Hrs]],0,Calendar[[#This Row],[Plan. Hrs]]-Calendar[[#This Row],[Actual Hrs]]),Calendar[[#This Row],[Plan. Hrs]])","v":0},{"$f":"IFERROR(IF(Calendar[[#This Row],[Cal. Goal]]<Calendar[[#This Row],[Cal.]],0,Calendar[[#This Row],[Cal. Goal]]-Calendar[[#This Row],[Cal.]]),Calendar[[#This Row],[Cal. Goal]])","v":0},null,null,null,{"$f":"BMIf(Calendar[[#This Row],[Weight]],ActualHeight)","v":{"$error":"#N/A"}},{"$f":"VLOOKUP(Calendar[[#This Row],[Date]],UploadQuery[],MATCH(\"Speed\",UploadQuery[#Headers],0),FALSE)","v":{"$error":"#N/A"}},{"$f":"VLOOKUP(Calendar[[#This Row],[Date]],UploadQuery[],MATCH(\"Elev Gain\",UploadQuery[#Headers],0),FALSE)","v":{"$error":"#N/A"}},{"$f":"VLOOKUP(Calendar[[#This Row],[Date]],UploadQuery[],MATCH(\"Distance\",UploadQuery[#Headers],0),FALSE)","v":{"$error":"#N/A"}},{"$f":"VLOOKUP(Calendar[[#This Row],[Date]],UploadQuery[],MATCH(\"Climber Index\",UploadQuery[#Headers],0),FALSE)","v":{"$error":"#N/A"}},{"$f":"VLOOKUP(Calendar[[#This Row],[Date]],UploadQuery[],MATCH(\"Cal/hour\",UploadQuery[#Headers],0),FALSE)","v":{"$error":"#N/A"}},{"$f":"IF(YEAR(Calendar[[#This Row],[Date]])=YEAR(TodayDate),IF(WEEKNUM(Calendar[[#This Row],[Date]],21)=WEEKNUM(TodayDate,21),IFERROR(MAX(Calendar[[#This Row],[Actual Hrs]],Calendar[[#This Row],[Plan. Hrs]])+(2/24),Calendar[[#This Row],[Plan. Hrs]]+(2/24)),-1),-1)","v":-1},{"$f":"SUM(Calendar[[#This Row],[Mon]:[Sun]])","v":0},{"$f":"VLOOKUP(Calendar[[#This Row],[Date]],UploadQuery[],MATCH(\"Activity Time\",UploadQuery[#Headers],0),FALSE)","v":{"$error":"#N/A"}}]
[null,null,null,null,null,null,null,null,null,null,null,null,null,null,null,null,null,null,null,{"$f":"IF(ISBLANK(VLOOKUP(Calendar[[#This Row],[Date]],WeightTable[],2,FALSE))=TRUE,NA(),VLOOKUP(Calendar[[#This Row],[Date]],WeightTable[],IF(WeightUnit=\"lb\",2,3),FALSE))","v":{"$error":"#N/A"}},{"$f":"IF(ISBLANK(INDEX(TargetsTable[],MATCH(Calendar[[#This Row],[Date]],TargetsTable[Date],0),MATCH(Calendar[#Headers],TargetsTable[#Headers],0)))=TRUE,NA(),INDEX(TargetsTable[],MATCH(Calendar[[#This Row],[Date]],TargetsTable[Date],0),MATCH(Calendar[#Headers],TargetsTable[#Headers],0)))","v":{"$error":"#N/A"}},{"$f":"IF(ISBLANK(VLOOKUP(Calendar[[#This Row],[Date]],UploadQuery[],MATCH(\"Heart Rate\",UploadQuery[#Headers],0),FALSE))=TRUE,NA(),VLOOKUP(Calendar[[#This Row],[Date]],UploadQuery[],MATCH(\"Heart Rate\",UploadQuery[#Headers],0),FALSE))","v":{"$error":"#N/A"}},{"$f":"IF(ISBLANK(INDEX(TargetsTable[],MATCH(Calendar[[#This Row],[Date]],TargetsTable[Date],0),MATCH(Calendar[#Headers],TargetsTable[#Headers],0)))=TRUE,NA(),INDEX(TargetsTable[],MATCH(Calendar[[#This Row],[Date]],TargetsTable[Date],0),MATCH(Calendar[#Headers],TargetsTable[#Headers],0)))","v":{"$error":"#N/A"}},{"$f":"Calendar[[#This Row],[Period]]","v":0},{"$f":"IFERROR(IF(Calendar[[#This Row],[Plan. Hrs]]<Calendar[[#This Row],[Actual Hrs]],0,Calendar[[#This Row],[Plan. Hrs]]-Calendar[[#This Row],[Actual Hrs]]),Calendar[[#This Row],[Plan. Hrs]])","v":0},{"$f":"IFERROR(IF(Calendar[[#This Row],[Cal. Goal]]<Calendar[[#This Row],[Cal.]],0,Calendar[[#This Row],[Cal. Goal]]-Calendar[[#This Row],[Cal.]]),Calendar[[#This Row],[Cal. Goal]])","v":0},null,null,null,{"$f":"BMIf(Calendar[[#This Row],[Weight]],ActualHeight)","v":{"$error":"#N/A"}},{"$f":"VLOOKUP(Calendar[[#This Row],[Date]],UploadQuery[],MATCH(\"Speed\",UploadQuery[#Headers],0),FALSE)","v":{"$error":"#N/A"}},{"$f":"VLOOKUP(Calendar[[#This Row],[Date]],UploadQuery[],MATCH(\"Elev Gain\",UploadQuery[#Headers],0),FALSE)","v":{"$error":"#N/A"}},{"$f":"VLOOKUP(Calendar[[#This Row],[Date]],UploadQuery[],MATCH(\"Distance\",UploadQuery[#Headers],0),FALSE)","v":{"$error":"#N/A"}},{"$f":"VLOOKUP(Calendar[[#This Row],[Date]],UploadQuery[],MATCH(\"Climber Index\",UploadQuery[#Headers],0),FALSE)","v":{"$error":"#N/A"}},{"$f":"VLOOKUP(Calendar[[#This Row],[Date]],UploadQuery[],MATCH(\"Cal/hour\",UploadQuery[#Headers],0),FALSE)","v":{"$error":"#N/A"}},{"$f":"IF(YEAR(Calendar[[#This Row],[Date]])=YEAR(TodayDate),IF(WEEKNUM(Calendar[[#This Row],[Date]],21)=WEEKNUM(TodayDate,21),IFERROR(MAX(Calendar[[#This Row],[Actual Hrs]],Calendar[[#This Row],[Plan. Hrs]])+(2/24),Calendar[[#This Row],[Plan. Hrs]]+(2/24)),-1),-1)","v":-1},{"$f":"SUM(Calendar[[#This Row],[Mon]:[Sun]])","v":0},{"$f":"VLOOKUP(Calendar[[#This Row],[Date]],UploadQuery[],MATCH(\"Activity Time\",UploadQuery[#Headers],0),FALSE)","v":{"$error":"#N/A"}}]
[null,null,null,null,null,null,null,null,null,null,null,null,null,null,null,null,null,null,null,{"$f":"IF(ISBLANK(VLOOKUP(Calendar[[#This Row],[Date]],WeightTable[],2,FALSE))=TRUE,NA(),VLOOKUP(Calendar[[#This Row],[Date]],WeightTable[],IF(WeightUnit=\"lb\",2,3),FALSE))","v":{"$error":"#N/A"}},{"$f":"IF(ISBLANK(INDEX(TargetsTable[],MATCH(Calendar[[#This Row],[Date]],TargetsTable[Date],0),MATCH(Calendar[#Headers],TargetsTable[#Headers],0)))=TRUE,NA(),INDEX(TargetsTable[],MATCH(Calendar[[#This Row],[Date]],TargetsTable[Date],0),MATCH(Calendar[#Headers],TargetsTable[#Headers],0)))","v":{"$error":"#N/A"}},{"$f":"IF(ISBLANK(VLOOKUP(Calendar[[#This Row],[Date]],UploadQuery[],MATCH(\"Heart Rate\",UploadQuery[#Headers],0),FALSE))=TRUE,NA(),VLOOKUP(Calendar[[#This Row],[Date]],UploadQuery[],MATCH(\"Heart Rate\",UploadQuery[#Headers],0),FALSE))","v":{"$error":"#N/A"}},{"$f":"IF(ISBLANK(INDEX(TargetsTable[],MATCH(Calendar[[#This Row],[Date]],TargetsTable[Date],0),MATCH(Calendar[#Headers],TargetsTable[#Headers],0)))=TRUE,NA(),INDEX(TargetsTable[],MATCH(Calendar[[#This Row],[Date]],TargetsTable[Date],0),MATCH(Calendar[#Headers],TargetsTable[#Headers],0)))","v":{"$error":"#N/A"}},{"$f":"Calendar[[#This Row],[Period]]","v":0},{"$f":"IFERROR(IF(Calendar[[#This Row],[Plan. Hrs]]<Calendar[[#This Row],[Actual Hrs]],0,Calendar[[#This Row],[Plan. Hrs]]-Calendar[[#This Row],[Actual Hrs]]),Calendar[[#This Row],[Plan. Hrs]])","v":0},{"$f":"IFERROR(IF(Calendar[[#This Row],[Cal. Goal]]<Calendar[[#This Row],[Cal.]],0,Calendar[[#This Row],[Cal. Goal]]-Calendar[[#This Row],[Cal.]]),Calendar[[#This Row],[Cal. Goal]])","v":0},null,null,null,{"$f":"BMIf(Calendar[[#This Row],[Weight]],ActualHeight)","v":{"$error":"#N/A"}},{"$f":"VLOOKUP(Calendar[[#This Row],[Date]],UploadQuery[],MATCH(\"Speed\",UploadQuery[#Headers],0),FALSE)","v":{"$error":"#N/A"}},{"$f":"VLOOKUP(Calendar[[#This Row],[Date]],UploadQuery[],MATCH(\"Elev Gain\",UploadQuery[#Headers],0),FALSE)","v":{"$error":"#N/A"}},{"$f":"VLOOKUP(Calendar[[#This Row],[Date]],UploadQuery[],MATCH(\"Distance\",UploadQuery[#Headers],0),FALSE)","v":{"$error":"#N/A"}},{"$f":"VLOOKUP(Calendar[[#This Row],[Date]],UploadQuery[],MATCH(\"Climber Index\",UploadQuery[#Headers],0),FALSE)","v":{"$error":"#N/A"}},{"$f":"VLOOKUP(Calendar[[#This Row],[Date]],UploadQuery[],MATCH(\"Cal/hour\",UploadQuery[#Headers],0),FALSE)","v":{"$error":"#N/A"}},{"$f":"IF(YEAR(Calendar[[#This Row],[Date]])=YEAR(TodayDate),IF(WEEKNUM(Calendar[[#This Row],[Date]],21)=WEEKNUM(TodayDate,21),IFERROR(MAX(Calendar[[#This Row],[Actual Hrs]],Calendar[[#This Row],[Plan. Hrs]])+(2/24),Calendar[[#This Row],[Plan. Hrs]]+(2/24)),-1),-1)","v":-1},{"$f":"SUM(Calendar[[#This Row],[Mon]:[Sun]])","v":0},{"$f":"VLOOKUP(Calendar[[#This Row],[Date]],UploadQuery[],MATCH(\"Activity Time\",UploadQuery[#Headers],0),FALSE)","v":{"$error":"#N/A"}}]
[null,null,null,null,null,null,null,null,null,null,null,null,null,null,null,null,null,null,null,{"$f":"IF(ISBLANK(VLOOKUP(Calendar[[#This Row],[Date]],WeightTable[],2,FALSE))=TRUE,NA(),VLOOKUP(Calendar[[#This Row],[Date]],WeightTable[],IF(WeightUnit=\"lb\",2,3),FALSE))","v":{"$error":"#N/A"}},{"$f":"IF(ISBLANK(INDEX(TargetsTable[],MATCH(Calendar[[#This Row],[Date]],TargetsTable[Date],0),MATCH(Calendar[#Headers],TargetsTable[#Headers],0)))=TRUE,NA(),INDEX(TargetsTable[],MATCH(Calendar[[#This Row],[Date]],TargetsTable[Date],0),MATCH(Calendar[#Headers],TargetsTable[#Headers],0)))","v":{"$error":"#N/A"}},{"$f":"IF(ISBLANK(VLOOKUP(Calendar[[#This Row],[Date]],UploadQuery[],MATCH(\"Heart Rate\",UploadQuery[#Headers],0),FALSE))=TRUE,NA(),VLOOKUP(Calendar[[#This Row],[Date]],UploadQuery[],MATCH(\"Heart Rate\",UploadQuery[#Headers],0),FALSE))","v":{"$error":"#N/A"}},{"$f":"IF(ISBLANK(INDEX(TargetsTable[],MATCH(Calendar[[#This Row],[Date]],TargetsTable[Date],0),MATCH(Calendar[#Headers],TargetsTable[#Headers],0)))=TRUE,NA(),INDEX(TargetsTable[],MATCH(Calendar[[#This Row],[Date]],TargetsTable[Date],0),MATCH(Calendar[#Headers],TargetsTable[#Headers],0)))","v":{"$error":"#N/A"}},{"$f":"Calendar[[#This Row],[Period]]","v":0},{"$f":"IFERROR(IF(Calendar[[#This Row],[Plan. Hrs]]<Calendar[[#This Row],[Actual Hrs]],0,Calendar[[#This Row],[Plan. Hrs]]-Calendar[[#This Row],[Actual Hrs]]),Calendar[[#This Row],[Plan. Hrs]])","v":0},{"$f":"IFERROR(IF(Calendar[[#This Row],[Cal. Goal]]<Calendar[[#This Row],[Cal.]],0,Calendar[[#This Row],[Cal. Goal]]-Calendar[[#This Row],[Cal.]]),Calendar[[#This Row],[Cal. Goal]])","v":0},null,null,null,{"$f":"BMIf(Calendar[[#This Row],[Weight]],ActualHeight)","v":{"$error":"#N/A"}},{"$f":"VLOOKUP(Calendar[[#This Row],[Date]],UploadQuery[],MATCH(\"Speed\",UploadQuery[#Headers],0),FALSE)","v":{"$error":"#N/A"}},{"$f":"VLOOKUP(Calendar[[#This Row],[Date]],UploadQuery[],MATCH(\"Elev Gain\",UploadQuery[#Headers],0),FALSE)","v":{"$error":"#N/A"}},{"$f":"VLOOKUP(Calendar[[#This Row],[Date]],UploadQuery[],MATCH(\"Distance\",UploadQuery[#Headers],0),FALSE)","v":{"$error":"#N/A"}},{"$f":"VLOOKUP(Calendar[[#This Row],[Date]],UploadQuery[],MATCH(\"Climber Index\",UploadQuery[#Headers],0),FALSE)","v":{"$error":"#N/A"}},{"$f":"VLOOKUP(Calendar[[#This Row],[Date]],UploadQuery[],MATCH(\"Cal/hour\",UploadQuery[#Headers],0),FALSE)","v":{"$error":"#N/A"}},{"$f":"IF(YEAR(Calendar[[#This Row],[Date]])=YEAR(TodayDate),IF(WEEKNUM(Calendar[[#This Row],[Date]],21)=WEEKNUM(TodayDate,21),IFERROR(MAX(Calendar[[#This Row],[Actual Hrs]],Calendar[[#This Row],[Plan. Hrs]])+(2/24),Calendar[[#This Row],[Plan. Hrs]]+(2/24)),-1),-1)","v":-1},{"$f":"SUM(Calendar[[#This Row],[Mon]:[Sun]])","v":0},{"$f":"VLOOKUP(Calendar[[#This Row],[Date]],UploadQuery[],MATCH(\"Activity Time\",UploadQuery[#Headers],0),FALSE)","v":{"$error":"#N/A"}}]
[null,null,null,null,null,null,null,null,null,null,null,null,null,null,null,null,null,null,null,{"$f":"IF(ISBLANK(VLOOKUP(Calendar[[#This Row],[Date]],WeightTable[],2,FALSE))=TRUE,NA(),VLOOKUP(Calendar[[#This Row],[Date]],WeightTable[],IF(WeightUnit=\"lb\",2,3),FALSE))","v":{"$error":"#N/A"}},{"$f":"IF(ISBLANK(INDEX(TargetsTable[],MATCH(Calendar[[#This Row],[Date]],TargetsTable[Date],0),MATCH(Calendar[#Headers],TargetsTable[#Headers],0)))=TRUE,NA(),INDEX(TargetsTable[],MATCH(Calendar[[#This Row],[Date]],TargetsTable[Date],0),MATCH(Calendar[#Headers],TargetsTable[#Headers],0)))","v":{"$error":"#N/A"}},{"$f":"IF(ISBLANK(VLOOKUP(Calendar[[#This Row],[Date]],UploadQuery[],MATCH(\"Heart Rate\",UploadQuery[#Headers],0),FALSE))=TRUE,NA(),VLOOKUP(Calendar[[#This Row],[Date]],UploadQuery[],MATCH(\"Heart Rate\",UploadQuery[#Headers],0),FALSE))","v":{"$error":"#N/A"}},{"$f":"IF(ISBLANK(INDEX(TargetsTable[],MATCH(Calendar[[#This Row],[Date]],TargetsTable[Date],0),MATCH(Calendar[#Headers],TargetsTable[#Headers],0)))=TRUE,NA(),INDEX(TargetsTable[],MATCH(Calendar[[#This Row],[Date]],TargetsTable[Date],0),MATCH(Calendar[#Headers],TargetsTable[#Headers],0)))","v":{"$error":"#N/A"}},{"$f":"Calendar[[#This Row],[Period]]","v":0},{"$f":"IFERROR(IF(Calendar[[#This Row],[Plan. Hrs]]<Calendar[[#This Row],[Actual Hrs]],0,Calendar[[#This Row],[Plan. Hrs]]-Calendar[[#This Row],[Actual Hrs]]),Calendar[[#This Row],[Plan. Hrs]])","v":0},{"$f":"IFERROR(IF(Calendar[[#This Row],[Cal. Goal]]<Calendar[[#This Row],[Cal.]],0,Calendar[[#This Row],[Cal. Goal]]-Calendar[[#This Row],[Cal.]]),Calendar[[#This Row],[Cal. Goal]])","v":0},null,null,null,{"$f":"BMIf(Calendar[[#This Row],[Weight]],ActualHeight)","v":{"$error":"#N/A"}},{"$f":"VLOOKUP(Calendar[[#This Row],[Date]],UploadQuery[],MATCH(\"Speed\",UploadQuery[#Headers],0),FALSE)","v":{"$error":"#N/A"}},{"$f":"VLOOKUP(Calendar[[#This Row],[Date]],UploadQuery[],MATCH(\"Elev Gain\",UploadQuery[#Headers],0),FALSE)","v":{"$error":"#N/A"}},{"$f":"VLOOKUP(Calendar[[#This Row],[Date]],UploadQuery[],MATCH(\"Distance\",UploadQuery[#Headers],0),FALSE)","v":{"$error":"#N/A"}},{"$f":"VLOOKUP(Calendar[[#This Row],[Date]],UploadQuery[],MATCH(\"Climber Index\",UploadQuery[#Headers],0),FALSE)","v":{"$error":"#N/A"}},{"$f":"VLOOKUP(Calendar[[#This Row],[Date]],UploadQuery[],MATCH(\"Cal/hour\",UploadQuery[#Headers],0),FALSE)","v":{"$error":"#N/A"}},{"$f":"IF(YEAR(Calendar[[#This Row],[Date]])=YEAR(TodayDate),IF(WEEKNUM(Calendar[[#This Row],[Date]],21)=WEEKNUM(TodayDate,21),IFERROR(MAX(Calendar[[#This Row],[Actual Hrs]],Calendar[[#This Row],[Plan. Hrs]])+(2/24),Calendar[[#This Row],[Plan. Hrs]]+(2/24)),-1),-1)","v":-1},{"$f":"SUM(Calendar[[#This Row],[Mon]:[Sun]])","v":0},{"$f":"VLOOKUP(Calendar[[#This Row],[Date]],UploadQuery[],MATCH(\"Activity Time\",UploadQuery[#Headers],0),FALSE)","v":{"$error":"#N/A"}}]
[null,null,null,null,null,null,null,null,null,null,null,null,null,null,null,null,null,null,null,{"$f":"IF(ISBLANK(VLOOKUP(Calendar[[#This Row],[Date]],WeightTable[],2,FALSE))=TRUE,NA(),VLOOKUP(Calendar[[#This Row],[Date]],WeightTable[],IF(WeightUnit=\"lb\",2,3),FALSE))","v":{"$error":"#N/A"}},{"$f":"IF(ISBLANK(INDEX(TargetsTable[],MATCH(Calendar[[#This Row],[Date]],TargetsTable[Date],0),MATCH(Calendar[#Headers],TargetsTable[#Headers],0)))=TRUE,NA(),INDEX(TargetsTable[],MATCH(Calendar[[#This Row],[Date]],TargetsTable[Date],0),MATCH(Calendar[#Headers],TargetsTable[#Headers],0)))","v":{"$error":"#N/A"}},{"$f":"IF(ISBLANK(VLOOKUP(Calendar[[#This Row],[Date]],UploadQuery[],MATCH(\"Heart Rate\",UploadQuery[#Headers],0),FALSE))=TRUE,NA(),VLOOKUP(Calendar[[#This Row],[Date]],UploadQuery[],MATCH(\"Heart Rate\",UploadQuery[#Headers],0),FALSE))","v":{"$error":"#N/A"}},{"$f":"IF(ISBLANK(INDEX(TargetsTable[],MATCH(Calendar[[#This Row],[Date]],TargetsTable[Date],0),MATCH(Calendar[#Headers],TargetsTable[#Headers],0)))=TRUE,NA(),INDEX(TargetsTable[],MATCH(Calendar[[#This Row],[Date]],TargetsTable[Date],0),MATCH(Calendar[#Headers],TargetsTable[#Headers],0)))","v":{"$error":"#N/A"}},{"$f":"Calendar[[#This Row],[Period]]","v":0},{"$f":"IFERROR(IF(Calendar[[#This Row],[Plan. Hrs]]<Calendar[[#This Row],[Actual Hrs]],0,Calendar[[#This Row],[Plan. Hrs]]-Calendar[[#This Row],[Actual Hrs]]),Calendar[[#This Row],[Plan. Hrs]])","v":0},{"$f":"IFERROR(IF(Calendar[[#This Row],[Cal. Goal]]<Calendar[[#This Row],[Cal.]],0,Calendar[[#This Row],[Cal. Goal]]-Calendar[[#This Row],[Cal.]]),Calendar[[#This Row],[Cal. Goal]])","v":0},null,null,null,{"$f":"BMIf(Calendar[[#This Row],[Weight]],ActualHeight)","v":{"$error":"#N/A"}},{"$f":"VLOOKUP(Calendar[[#This Row],[Date]],UploadQuery[],MATCH(\"Speed\",UploadQuery[#Headers],0),FALSE)","v":{"$error":"#N/A"}},{"$f":"VLOOKUP(Calendar[[#This Row],[Date]],UploadQuery[],MATCH(\"Elev Gain\",UploadQuery[#Headers],0),FALSE)","v":{"$error":"#N/A"}},{"$f":"VLOOKUP(Calendar[[#This Row],[Date]],UploadQuery[],MATCH(\"Distance\",UploadQuery[#Headers],0),FALSE)","v":{"$error":"#N/A"}},{"$f":"VLOOKUP(Calendar[[#This Row],[Date]],UploadQuery[],MATCH(\"Climber Index\",UploadQuery[#Headers],0),FALSE)","v":{"$error":"#N/A"}},{"$f":"VLOOKUP(Calendar[[#This Row],[Date]],UploadQuery[],MATCH(\"Cal/hour\",UploadQuery[#Headers],0),FALSE)","v":{"$error":"#N/A"}},{"$f":"IF(YEAR(Calendar[[#This Row],[Date]])=YEAR(TodayDate),IF(WEEKNUM(Calendar[[#This Row],[Date]],21)=WEEKNUM(TodayDate,21),IFERROR(MAX(Calendar[[#This Row],[Actual Hrs]],Calendar[[#This Row],[Plan. Hrs]])+(2/24),Calendar[[#This Row],[Plan. Hrs]]+(2/24)),-1),-1)","v":-1},{"$f":"SUM(Calendar[[#This Row],[Mon]:[Sun]])","v":0},{"$f":"VLOOKUP(Calendar[[#This Row],[Date]],UploadQuery[],MATCH(\"Activity Time\",UploadQuery[#Headers],0),FALSE)","v":{"$error":"#N/A"}}]
[null,null,null,null,null,null,null,null,null,null,null,null,null,null,null,null,null,null,null,{"$f":"IF(ISBLANK(VLOOKUP(Calendar[[#This Row],[Date]],WeightTable[],2,FALSE))=TRUE,NA(),VLOOKUP(Calendar[[#This Row],[Date]],WeightTable[],IF(WeightUnit=\"lb\",2,3),FALSE))","v":{"$error":"#N/A"}},{"$f":"IF(ISBLANK(INDEX(TargetsTable[],MATCH(Calendar[[#This Row],[Date]],TargetsTable[Date],0),MATCH(Calendar[#Headers],TargetsTable[#Headers],0)))=TRUE,NA(),INDEX(TargetsTable[],MATCH(Calendar[[#This Row],[Date]],TargetsTable[Date],0),MATCH(Calendar[#Headers],TargetsTable[#Headers],0)))","v":{"$error":"#N/A"}},{"$f":"IF(ISBLANK(VLOOKUP(Calendar[[#This Row],[Date]],UploadQuery[],MATCH(\"Heart Rate\",UploadQuery[#Headers],0),FALSE))=TRUE,NA(),VLOOKUP(Calendar[[#This Row],[Date]],UploadQuery[],MATCH(\"Heart Rate\",UploadQuery[#Headers],0),FALSE))","v":{"$error":"#N/A"}},{"$f":"IF(ISBLANK(INDEX(TargetsTable[],MATCH(Calendar[[#This Row],[Date]],TargetsTable[Date],0),MATCH(Calendar[#Headers],TargetsTable[#Headers],0)))=TRUE,NA(),INDEX(TargetsTable[],MATCH(Calendar[[#This Row],[Date]],TargetsTable[Date],0),MATCH(Calendar[#Headers],TargetsTable[#Headers],0)))","v":{"$error":"#N/A"}},{"$f":"Calendar[[#This Row],[Period]]","v":0},{"$f":"IFERROR(IF(Calendar[[#This Row],[Plan. Hrs]]<Calendar[[#This Row],[Actual Hrs]],0,Calendar[[#This Row],[Plan. Hrs]]-Calendar[[#This Row],[Actual Hrs]]),Calendar[[#This Row],[Plan. Hrs]])","v":0},{"$f":"IFERROR(IF(Calendar[[#This Row],[Cal. Goal]]<Calendar[[#This Row],[Cal.]],0,Calendar[[#This Row],[Cal. Goal]]-Calendar[[#This Row],[Cal.]]),Calendar[[#This Row],[Cal. Goal]])","v":0},null,null,null,{"$f":"BMIf(Calendar[[#This Row],[Weight]],ActualHeight)","v":{"$error":"#N/A"}},{"$f":"VLOOKUP(Calendar[[#This Row],[Date]],UploadQuery[],MATCH(\"Speed\",UploadQuery[#Headers],0),FALSE)","v":{"$error":"#N/A"}},{"$f":"VLOOKUP(Calendar[[#This Row],[Date]],UploadQuery[],MATCH(\"Elev Gain\",UploadQuery[#Headers],0),FALSE)","v":{"$error":"#N/A"}},{"$f":"VLOOKUP(Calendar[[#This Row],[Date]],UploadQuery[],MATCH(\"Distance\",UploadQuery[#Headers],0),FALSE)","v":{"$error":"#N/A"}},{"$f":"VLOOKUP(Calendar[[#This Row],[Date]],UploadQuery[],MATCH(\"Climber Index\",UploadQuery[#Headers],0),FALSE)","v":{"$error":"#N/A"}},{"$f":"VLOOKUP(Calendar[[#This Row],[Date]],UploadQuery[],MATCH(\"Cal/hour\",UploadQuery[#Headers],0),FALSE)","v":{"$error":"#N/A"}},{"$f":"IF(YEAR(Calendar[[#This Row],[Date]])=YEAR(TodayDate),IF(WEEKNUM(Calendar[[#This Row],[Date]],21)=WEEKNUM(TodayDate,21),IFERROR(MAX(Calendar[[#This Row],[Actual Hrs]],Calendar[[#This Row],[Plan. Hrs]])+(2/24),Calendar[[#This Row],[Plan. Hrs]]+(2/24)),-1),-1)","v":-1},{"$f":"SUM(Calendar[[#This Row],[Mon]:[Sun]])","v":0},{"$f":"VLOOKUP(Calendar[[#This Row],[Date]],UploadQuery[],MATCH(\"Activity Time\",UploadQuery[#Headers],0),FALSE)","v":{"$error":"#N/A"}}]
[null,null,null,null,null,null,null,null,null,null,null,null,null,null,null,null,null,null,null,{"$f":"IF(ISBLANK(VLOOKUP(Calendar[[#This Row],[Date]],WeightTable[],2,FALSE))=TRUE,NA(),VLOOKUP(Calendar[[#This Row],[Date]],WeightTable[],IF(WeightUnit=\"lb\",2,3),FALSE))","v":{"$error":"#N/A"}},{"$f":"IF(ISBLANK(INDEX(TargetsTable[],MATCH(Calendar[[#This Row],[Date]],TargetsTable[Date],0),MATCH(Calendar[#Headers],TargetsTable[#Headers],0)))=TRUE,NA(),INDEX(TargetsTable[],MATCH(Calendar[[#This Row],[Date]],TargetsTable[Date],0),MATCH(Calendar[#Headers],TargetsTable[#Headers],0)))","v":{"$error":"#N/A"}},{"$f":"IF(ISBLANK(VLOOKUP(Calendar[[#This Row],[Date]],UploadQuery[],MATCH(\"Heart Rate\",UploadQuery[#Headers],0),FALSE))=TRUE,NA(),VLOOKUP(Calendar[[#This Row],[Date]],UploadQuery[],MATCH(\"Heart Rate\",UploadQuery[#Headers],0),FALSE))","v":{"$error":"#N/A"}},{"$f":"IF(ISBLANK(INDEX(TargetsTable[],MATCH(Calendar[[#This Row],[Date]],TargetsTable[Date],0),MATCH(Calendar[#Headers],TargetsTable[#Headers],0)))=TRUE,NA(),INDEX(TargetsTable[],MATCH(Calendar[[#This Row],[Date]],TargetsTable[Date],0),MATCH(Calendar[#Headers],TargetsTable[#Headers],0)))","v":{"$error":"#N/A"}},{"$f":"Calendar[[#This Row],[Period]]","v":0},{"$f":"IFERROR(IF(Calendar[[#This Row],[Plan. Hrs]]<Calendar[[#This Row],[Actual Hrs]],0,Calendar[[#This Row],[Plan. Hrs]]-Calendar[[#This Row],[Actual Hrs]]),Calendar[[#This Row],[Plan. Hrs]])","v":0},{"$f":"IFERROR(IF(Calendar[[#This Row],[Cal. Goal]]<Calendar[[#This Row],[Cal.]],0,Calendar[[#This Row],[Cal. Goal]]-Calendar[[#This Row],[Cal.]]),Calendar[[#This Row],[Cal. Goal]])","v":0},null,null,null,{"$f":"BMIf(Calendar[[#This Row],[Weight]],ActualHeight)","v":{"$error":"#N/A"}},{"$f":"VLOOKUP(Calendar[[#This Row],[Date]],UploadQuery[],MATCH(\"Speed\",UploadQuery[#Headers],0),FALSE)","v":{"$error":"#N/A"}},{"$f":"VLOOKUP(Calendar[[#This Row],[Date]],UploadQuery[],MATCH(\"Elev Gain\",UploadQuery[#Headers],0),FALSE)","v":{"$error":"#N/A"}},{"$f":"VLOOKUP(Calendar[[#This Row],[Date]],UploadQuery[],MATCH(\"Distance\",UploadQuery[#Headers],0),FALSE)","v":{"$error":"#N/A"}},{"$f":"VLOOKUP(Calendar[[#This Row],[Date]],UploadQuery[],MATCH(\"Climber Index\",UploadQuery[#Headers],0),FALSE)","v":{"$error":"#N/A"}},{"$f":"VLOOKUP(Calendar[[#This Row],[Date]],UploadQuery[],MATCH(\"Cal/hour\",UploadQuery[#Headers],0),FALSE)","v":{"$error":"#N/A"}},{"$f":"IF(YEAR(Calendar[[#This Row],[Date]])=YEAR(TodayDate),IF(WEEKNUM(Calendar[[#This Row],[Date]],21)=WEEKNUM(TodayDate,21),IFERROR(MAX(Calendar[[#This Row],[Actual Hrs]],Calendar[[#This Row],[Plan. Hrs]])+(2/24),Calendar[[#This Row],[Plan. Hrs]]+(2/24)),-1),-1)","v":-1},{"$f":"SUM(Calendar[[#This Row],[Mon]:[Sun]])","v":0},{"$f":"VLOOKUP(Calendar[[#This Row],[Date]],UploadQuery[],MATCH(\"Activity Time\",UploadQuery[#Headers],0),FALSE)","v":{"$error":"#N/A"}}]
[null,null,null,null,null,null,null,null,null,null,null,null,null,null,null,null,null,null,null,{"$f":"IF(ISBLANK(VLOOKUP(Calendar[[#This Row],[Date]],WeightTable[],2,FALSE))=TRUE,NA(),VLOOKUP(Calendar[[#This Row],[Date]],WeightTable[],IF(WeightUnit=\"lb\",2,3),FALSE))","v":{"$error":"#N/A"}},{"$f":"IF(ISBLANK(INDEX(TargetsTable[],MATCH(Calendar[[#This Row],[Date]],TargetsTable[Date],0),MATCH(Calendar[#Headers],TargetsTable[#Headers],0)))=TRUE,NA(),INDEX(TargetsTable[],MATCH(Calendar[[#This Row],[Date]],TargetsTable[Date],0),MATCH(Calendar[#Headers],TargetsTable[#Headers],0)))","v":{"$error":"#N/A"}},{"$f":"IF(ISBLANK(VLOOKUP(Calendar[[#This Row],[Date]],UploadQuery[],MATCH(\"Heart Rate\",UploadQuery[#Headers],0),FALSE))=TRUE,NA(),VLOOKUP(Calendar[[#This Row],[Date]],UploadQuery[],MATCH(\"Heart Rate\",UploadQuery[#Headers],0),FALSE))","v":{"$error":"#N/A"}},{"$f":"IF(ISBLANK(INDEX(TargetsTable[],MATCH(Calendar[[#This Row],[Date]],TargetsTable[Date],0),MATCH(Calendar[#Headers],TargetsTable[#Headers],0)))=TRUE,NA(),INDEX(TargetsTable[],MATCH(Calendar[[#This Row],[Date]],TargetsTable[Date],0),MATCH(Calendar[#Headers],TargetsTable[#Headers],0)))","v":{"$error":"#N/A"}},{"$f":"Calendar[[#This Row],[Period]]","v":0},{"$f":"IFERROR(IF(Calendar[[#This Row],[Plan. Hrs]]<Calendar[[#This Row],[Actual Hrs]],0,Calendar[[#This Row],[Plan. Hrs]]-Calendar[[#This Row],[Actual Hrs]]),Calendar[[#This Row],[Plan. Hrs]])","v":0},{"$f":"IFERROR(IF(Calendar[[#This Row],[Cal. Goal]]<Calendar[[#This Row],[Cal.]],0,Calendar[[#This Row],[Cal. Goal]]-Calendar[[#This Row],[Cal.]]),Calendar[[#This Row],[Cal. Goal]])","v":0},null,null,null,{"$f":"BMIf(Calendar[[#This Row],[Weight]],ActualHeight)","v":{"$error":"#N/A"}},{"$f":"VLOOKUP(Calendar[[#This Row],[Date]],UploadQuery[],MATCH(\"Speed\",UploadQuery[#Headers],0),FALSE)","v":{"$error":"#N/A"}},{"$f":"VLOOKUP(Calendar[[#This Row],[Date]],UploadQuery[],MATCH(\"Elev Gain\",UploadQuery[#Headers],0),FALSE)","v":{"$error":"#N/A"}},{"$f":"VLOOKUP(Calendar[[#This Row],[Date]],UploadQuery[],MATCH(\"Distance\",UploadQuery[#Headers],0),FALSE)","v":{"$error":"#N/A"}},{"$f":"VLOOKUP(Calendar[[#This Row],[Date]],UploadQuery[],MATCH(\"Climber Index\",UploadQuery[#Headers],0),FALSE)","v":{"$error":"#N/A"}},{"$f":"VLOOKUP(Calendar[[#This Row],[Date]],UploadQuery[],MATCH(\"Cal/hour\",UploadQuery[#Headers],0),FALSE)","v":{"$error":"#N/A"}},{"$f":"IF(YEAR(Calendar[[#This Row],[Date]])=YEAR(TodayDate),IF(WEEKNUM(Calendar[[#This Row],[Date]],21)=WEEKNUM(TodayDate,21),IFERROR(MAX(Calendar[[#This Row],[Actual Hrs]],Calendar[[#This Row],[Plan. Hrs]])+(2/24),Calendar[[#This Row],[Plan. Hrs]]+(2/24)),-1),-1)","v":-1},{"$f":"SUM(Calendar[[#This Row],[Mon]:[Sun]])","v":0},{"$f":"VLOOKUP(Calendar[[#This Row],[Date]],UploadQuery[],MATCH(\"Activity Time\",UploadQuery[#Headers],0),FALSE)","v":{"$error":"#N/A"}}]
[null,null,null,null,null,null,null,null,null,null,null,null,null,null,null,null,null,null,null,{"$f":"IF(ISBLANK(VLOOKUP(Calendar[[#This Row],[Date]],WeightTable[],2,FALSE))=TRUE,NA(),VLOOKUP(Calendar[[#This Row],[Date]],WeightTable[],IF(WeightUnit=\"lb\",2,3),FALSE))","v":{"$error":"#N/A"}},{"$f":"IF(ISBLANK(INDEX(TargetsTable[],MATCH(Calendar[[#This Row],[Date]],TargetsTable[Date],0),MATCH(Calendar[#Headers],TargetsTable[#Headers],0)))=TRUE,NA(),INDEX(TargetsTable[],MATCH(Calendar[[#This Row],[Date]],TargetsTable[Date],0),MATCH(Calendar[#Headers],TargetsTable[#Headers],0)))","v":{"$error":"#N/A"}},{"$f":"IF(ISBLANK(VLOOKUP(Calendar[[#This Row],[Date]],UploadQuery[],MATCH(\"Heart Rate\",UploadQuery[#Headers],0),FALSE))=TRUE,NA(),VLOOKUP(Calendar[[#This Row],[Date]],UploadQuery[],MATCH(\"Heart Rate\",UploadQuery[#Headers],0),FALSE))","v":{"$error":"#N/A"}},{"$f":"IF(ISBLANK(INDEX(TargetsTable[],MATCH(Calendar[[#This Row],[Date]],TargetsTable[Date],0),MATCH(Calendar[#Headers],TargetsTable[#Headers],0)))=TRUE,NA(),INDEX(TargetsTable[],MATCH(Calendar[[#This Row],[Date]],TargetsTable[Date],0),MATCH(Calendar[#Headers],TargetsTable[#Headers],0)))","v":{"$error":"#N/A"}},{"$f":"Calendar[[#This Row],[Period]]","v":0},{"$f":"IFERROR(IF(Calendar[[#This Row],[Plan. Hrs]]<Calendar[[#This Row],[Actual Hrs]],0,Calendar[[#This Row],[Plan. Hrs]]-Calendar[[#This Row],[Actual Hrs]]),Calendar[[#This Row],[Plan. Hrs]])","v":0},{"$f":"IFERROR(IF(Calendar[[#This Row],[Cal. Goal]]<Calendar[[#This Row],[Cal.]],0,Calendar[[#This Row],[Cal. Goal]]-Calendar[[#This Row],[Cal.]]),Calendar[[#This Row],[Cal. Goal]])","v":0},null,null,null,{"$f":"BMIf(Calendar[[#This Row],[Weight]],ActualHeight)","v":{"$error":"#N/A"}},{"$f":"VLOOKUP(Calendar[[#This Row],[Date]],UploadQuery[],MATCH(\"Speed\",UploadQuery[#Headers],0),FALSE)","v":{"$error":"#N/A"}},{"$f":"VLOOKUP(Calendar[[#This Row],[Date]],UploadQuery[],MATCH(\"Elev Gain\",UploadQuery[#Headers],0),FALSE)","v":{"$error":"#N/A"}},{"$f":"VLOOKUP(Calendar[[#This Row],[Date]],UploadQuery[],MATCH(\"Distance\",UploadQuery[#Headers],0),FALSE)","v":{"$error":"#N/A"}},{"$f":"VLOOKUP(Calendar[[#This Row],[Date]],UploadQuery[],MATCH(\"Climber Index\",UploadQuery[#Headers],0),FALSE)","v":{"$error":"#N/A"}},{"$f":"VLOOKUP(Calendar[[#This Row],[Date]],UploadQuery[],MATCH(\"Cal/hour\",UploadQuery[#Headers],0),FALSE)","v":{"$error":"#N/A"}},{"$f":"IF(YEAR(Calendar[[#This Row],[Date]])=YEAR(TodayDate),IF(WEEKNUM(Calendar[[#This Row],[Date]],21)=WEEKNUM(TodayDate,21),IFERROR(MAX(Calendar[[#This Row],[Actual Hrs]],Calendar[[#This Row],[Plan. Hrs]])+(2/24),Calendar[[#This Row],[Plan. Hrs]]+(2/24)),-1),-1)","v":-1},{"$f":"SUM(Calendar[[#This Row],[Mon]:[Sun]])","v":0},{"$f":"VLOOKUP(Calendar[[#This Row],[Date]],UploadQuery[],MATCH(\"Activity Time\",UploadQuery[#Headers],0),FALSE)","v":{"$error":"#N/A"}}]
[null,null,null,null,null,null,null,null,null,null,null,null,null,null,null,null,null,null,null,{"$f":"IF(ISBLANK(VLOOKUP(Calendar[[#This Row],[Date]],WeightTable[],2,FALSE))=TRUE,NA(),VLOOKUP(Calendar[[#This Row],[Date]],WeightTable[],IF(WeightUnit=\"lb\",2,3),FALSE))","v":{"$error":"#N/A"}},{"$f":"IF(ISBLANK(INDEX(TargetsTable[],MATCH(Calendar[[#This Row],[Date]],TargetsTable[Date],0),MATCH(Calendar[#Headers],TargetsTable[#Headers],0)))=TRUE,NA(),INDEX(TargetsTable[],MATCH(Calendar[[#This Row],[Date]],TargetsTable[Date],0),MATCH(Calendar[#Headers],TargetsTable[#Headers],0)))","v":{"$error":"#N/A"}},{"$f":"IF(ISBLANK(VLOOKUP(Calendar[[#This Row],[Date]],UploadQuery[],MATCH(\"Heart Rate\",UploadQuery[#Headers],0),FALSE))=TRUE,NA(),VLOOKUP(Calendar[[#This Row],[Date]],UploadQuery[],MATCH(\"Heart Rate\",UploadQuery[#Headers],0),FALSE))","v":{"$error":"#N/A"}},{"$f":"IF(ISBLANK(INDEX(TargetsTable[],MATCH(Calendar[[#This Row],[Date]],TargetsTable[Date],0),MATCH(Calendar[#Headers],TargetsTable[#Headers],0)))=TRUE,NA(),INDEX(TargetsTable[],MATCH(Calendar[[#This Row],[Date]],TargetsTable[Date],0),MATCH(Calendar[#Headers],TargetsTable[#Headers],0)))","v":{"$error":"#N/A"}},{"$f":"Calendar[[#This Row],[Period]]","v":0},{"$f":"IFERROR(IF(Calendar[[#This Row],[Plan. Hrs]]<Calendar[[#This Row],[Actual Hrs]],0,Calendar[[#This Row],[Plan. Hrs]]-Calendar[[#This Row],[Actual Hrs]]),Calendar[[#This Row],[Plan. Hrs]])","v":0},{"$f":"IFERROR(IF(Calendar[[#This Row],[Cal. Goal]]<Calendar[[#This Row],[Cal.]],0,Calendar[[#This Row],[Cal. Goal]]-Calendar[[#This Row],[Cal.]]),Calendar[[#This Row],[Cal. Goal]])","v":0},null,null,null,{"$f":"BMIf(Calendar[[#This Row],[Weight]],ActualHeight)","v":{"$error":"#N/A"}},{"$f":"VLOOKUP(Calendar[[#This Row],[Date]],UploadQuery[],MATCH(\"Speed\",UploadQuery[#Headers],0),FALSE)","v":{"$error":"#N/A"}},{"$f":"VLOOKUP(Calendar[[#This Row],[Date]],UploadQuery[],MATCH(\"Elev Gain\",UploadQuery[#Headers],0),FALSE)","v":{"$error":"#N/A"}},{"$f":"VLOOKUP(Calendar[[#This Row],[Date]],UploadQuery[],MATCH(\"Distance\",UploadQuery[#Headers],0),FALSE)","v":{"$error":"#N/A"}},{"$f":"VLOOKUP(Calendar[[#This Row],[Date]],UploadQuery[],MATCH(\"Climber Index\",UploadQuery[#Headers],0),FALSE)","v":{"$error":"#N/A"}},{"$f":"VLOOKUP(Calendar[[#This Row],[Date]],UploadQuery[],MATCH(\"Cal/hour\",UploadQuery[#Headers],0),FALSE)","v":{"$error":"#N/A"}},{"$f":"IF(YEAR(Calendar[[#This Row],[Date]])=YEAR(TodayDate),IF(WEEKNUM(Calendar[[#This Row],[Date]],21)=WEEKNUM(TodayDate,21),IFERROR(MAX(Calendar[[#This Row],[Actual Hrs]],Calendar[[#This Row],[Plan. Hrs]])+(2/24),Calendar[[#This Row],[Plan. Hrs]]+(2/24)),-1),-1)","v":-1},{"$f":"SUM(Calendar[[#This Row],[Mon]:[Sun]])","v":0},{"$f":"VLOOKUP(Calendar[[#This Row],[Date]],UploadQuery[],MATCH(\"Activity Time\",UploadQuery[#Headers],0),FALSE)","v":{"$error":"#N/A"}}]
[null,null,null,null,null,null,null,null,null,null,null,null,null,null,null,null,null,null,null,{"$f":"IF(ISBLANK(VLOOKUP(Calendar[[#This Row],[Date]],WeightTable[],2,FALSE))=TRUE,NA(),VLOOKUP(Calendar[[#This Row],[Date]],WeightTable[],IF(WeightUnit=\"lb\",2,3),FALSE))","v":{"$error":"#N/A"}},{"$f":"IF(ISBLANK(INDEX(TargetsTable[],MATCH(Calendar[[#This Row],[Date]],TargetsTable[Date],0),MATCH(Calendar[#Headers],TargetsTable[#Headers],0)))=TRUE,NA(),INDEX(TargetsTable[],MATCH(Calendar[[#This Row],[Date]],TargetsTable[Date],0),MATCH(Calendar[#Headers],TargetsTable[#Headers],0)))","v":{"$error":"#N/A"}},{"$f":"IF(ISBLANK(VLOOKUP(Calendar[[#This Row],[Date]],UploadQuery[],MATCH(\"Heart Rate\",UploadQuery[#Headers],0),FALSE))=TRUE,NA(),VLOOKUP(Calendar[[#This Row],[Date]],UploadQuery[],MATCH(\"Heart Rate\",UploadQuery[#Headers],0),FALSE))","v":{"$error":"#N/A"}},{"$f":"IF(ISBLANK(INDEX(TargetsTable[],MATCH(Calendar[[#This Row],[Date]],TargetsTable[Date],0),MATCH(Calendar[#Headers],TargetsTable[#Headers],0)))=TRUE,NA(),INDEX(TargetsTable[],MATCH(Calendar[[#This Row],[Date]],TargetsTable[Date],0),MATCH(Calendar[#Headers],TargetsTable[#Headers],0)))","v":{"$error":"#N/A"}},{"$f":"Calendar[[#This Row],[Period]]","v":0},{"$f":"IFERROR(IF(Calendar[[#This Row],[Plan. Hrs]]<Calendar[[#This Row],[Actual Hrs]],0,Calendar[[#This Row],[Plan. Hrs]]-Calendar[[#This Row],[Actual Hrs]]),Calendar[[#This Row],[Plan. Hrs]])","v":0},{"$f":"IFERROR(IF(Calendar[[#This Row],[Cal. Goal]]<Calendar[[#This Row],[Cal.]],0,Calendar[[#This Row],[Cal. Goal]]-Calendar[[#This Row],[Cal.]]),Calendar[[#This Row],[Cal. Goal]])","v":0},null,null,null,{"$f":"BMIf(Calendar[[#This Row],[Weight]],ActualHeight)","v":{"$error":"#N/A"}},{"$f":"VLOOKUP(Calendar[[#This Row],[Date]],UploadQuery[],MATCH(\"Speed\",UploadQuery[#Headers],0),FALSE)","v":{"$error":"#N/A"}},{"$f":"VLOOKUP(Calendar[[#This Row],[Date]],UploadQuery[],MATCH(\"Elev Gain\",UploadQuery[#Headers],0),FALSE)","v":{"$error":"#N/A"}},{"$f":"VLOOKUP(Calendar[[#This Row],[Date]],UploadQuery[],MATCH(\"Distance\",UploadQuery[#Headers],0),FALSE)","v":{"$error":"#N/A"}},{"$f":"VLOOKUP(Calendar[[#This Row],[Date]],UploadQuery[],MATCH(\"Climber Index\",UploadQuery[#Headers],0),FALSE)","v":{"$error":"#N/A"}},{"$f":"VLOOKUP(Calendar[[#This Row],[Date]],UploadQuery[],MATCH(\"Cal/hour\",UploadQuery[#Headers],0),FALSE)","v":{"$error":"#N/A"}},{"$f":"IF(YEAR(Calendar[[#This Row],[Date]])=YEAR(TodayDate),IF(WEEKNUM(Calendar[[#This Row],[Date]],21)=WEEKNUM(TodayDate,21),IFERROR(MAX(Calendar[[#This Row],[Actual Hrs]],Calendar[[#This Row],[Plan. Hrs]])+(2/24),Calendar[[#This Row],[Plan. Hrs]]+(2/24)),-1),-1)","v":-1},{"$f":"SUM(Calendar[[#This Row],[Mon]:[Sun]])","v":0},{"$f":"VLOOKUP(Calendar[[#This Row],[Date]],UploadQuery[],MATCH(\"Activity Time\",UploadQuery[#Headers],0),FALSE)","v":{"$error":"#N/A"}}]
[null,null,null,null,null,null,null,null,null,null,null,null,null,null,null,null,null,null,null,{"$f":"IF(ISBLANK(VLOOKUP(Calendar[[#This Row],[Date]],WeightTable[],2,FALSE))=TRUE,NA(),VLOOKUP(Calendar[[#This Row],[Date]],WeightTable[],IF(WeightUnit=\"lb\",2,3),FALSE))","v":{"$error":"#N/A"}},{"$f":"IF(ISBLANK(INDEX(TargetsTable[],MATCH(Calendar[[#This Row],[Date]],TargetsTable[Date],0),MATCH(Calendar[#Headers],TargetsTable[#Headers],0)))=TRUE,NA(),INDEX(TargetsTable[],MATCH(Calendar[[#This Row],[Date]],TargetsTable[Date],0),MATCH(Calendar[#Headers],TargetsTable[#Headers],0)))","v":{"$error":"#N/A"}},{"$f":"IF(ISBLANK(VLOOKUP(Calendar[[#This Row],[Date]],UploadQuery[],MATCH(\"Heart Rate\",UploadQuery[#Headers],0),FALSE))=TRUE,NA(),VLOOKUP(Calendar[[#This Row],[Date]],UploadQuery[],MATCH(\"Heart Rate\",UploadQuery[#Headers],0),FALSE))","v":{"$error":"#N/A"}},{"$f":"IF(ISBLANK(INDEX(TargetsTable[],MATCH(Calendar[[#This Row],[Date]],TargetsTable[Date],0),MATCH(Calendar[#Headers],TargetsTable[#Headers],0)))=TRUE,NA(),INDEX(TargetsTable[],MATCH(Calendar[[#This Row],[Date]],TargetsTable[Date],0),MATCH(Calendar[#Headers],TargetsTable[#Headers],0)))","v":{"$error":"#N/A"}},{"$f":"Calendar[[#This Row],[Period]]","v":0},{"$f":"IFERROR(IF(Calendar[[#This Row],[Plan. Hrs]]<Calendar[[#This Row],[Actual Hrs]],0,Calendar[[#This Row],[Plan. Hrs]]-Calendar[[#This Row],[Actual Hrs]]),Calendar[[#This Row],[Plan. Hrs]])","v":0},{"$f":"IFERROR(IF(Calendar[[#This Row],[Cal. Goal]]<Calendar[[#This Row],[Cal.]],0,Calendar[[#This Row],[Cal. Goal]]-Calendar[[#This Row],[Cal.]]),Calendar[[#This Row],[Cal. Goal]])","v":0},null,null,null,{"$f":"BMIf(Calendar[[#This Row],[Weight]],ActualHeight)","v":{"$error":"#N/A"}},{"$f":"VLOOKUP(Calendar[[#This Row],[Date]],UploadQuery[],MATCH(\"Speed\",UploadQuery[#Headers],0),FALSE)","v":{"$error":"#N/A"}},{"$f":"VLOOKUP(Calendar[[#This Row],[Date]],UploadQuery[],MATCH(\"Elev Gain\",UploadQuery[#Headers],0),FALSE)","v":{"$error":"#N/A"}},{"$f":"VLOOKUP(Calendar[[#This Row],[Date]],UploadQuery[],MATCH(\"Distance\",UploadQuery[#Headers],0),FALSE)","v":{"$error":"#N/A"}},{"$f":"VLOOKUP(Calendar[[#This Row],[Date]],UploadQuery[],MATCH(\"Climber Index\",UploadQuery[#Headers],0),FALSE)","v":{"$error":"#N/A"}},{"$f":"VLOOKUP(Calendar[[#This Row],[Date]],UploadQuery[],MATCH(\"Cal/hour\",UploadQuery[#Headers],0),FALSE)","v":{"$error":"#N/A"}},{"$f":"IF(YEAR(Calendar[[#This Row],[Date]])=YEAR(TodayDate),IF(WEEKNUM(Calendar[[#This Row],[Date]],21)=WEEKNUM(TodayDate,21),IFERROR(MAX(Calendar[[#This Row],[Actual Hrs]],Calendar[[#This Row],[Plan. Hrs]])+(2/24),Calendar[[#This Row],[Plan. Hrs]]+(2/24)),-1),-1)","v":-1},{"$f":"SUM(Calendar[[#This Row],[Mon]:[Sun]])","v":0},{"$f":"VLOOKUP(Calendar[[#This Row],[Date]],UploadQuery[],MATCH(\"Activity Time\",UploadQuery[#Headers],0),FALSE)","v":{"$error":"#N/A"}}]
[null,null,null,null,null,null,null,null,null,null,null,null,null,null,null,null,null,null,null,{"$f":"IF(ISBLANK(VLOOKUP(Calendar[[#This Row],[Date]],WeightTable[],2,FALSE))=TRUE,NA(),VLOOKUP(Calendar[[#This Row],[Date]],WeightTable[],IF(WeightUnit=\"lb\",2,3),FALSE))","v":{"$error":"#N/A"}},{"$f":"IF(ISBLANK(INDEX(TargetsTable[],MATCH(Calendar[[#This Row],[Date]],TargetsTable[Date],0),MATCH(Calendar[#Headers],TargetsTable[#Headers],0)))=TRUE,NA(),INDEX(TargetsTable[],MATCH(Calendar[[#This Row],[Date]],TargetsTable[Date],0),MATCH(Calendar[#Headers],TargetsTable[#Headers],0)))","v":{"$error":"#N/A"}},{"$f":"IF(ISBLANK(VLOOKUP(Calendar[[#This Row],[Date]],UploadQuery[],MATCH(\"Heart Rate\",UploadQuery[#Headers],0),FALSE))=TRUE,NA(),VLOOKUP(Calendar[[#This Row],[Date]],UploadQuery[],MATCH(\"Heart Rate\",UploadQuery[#Headers],0),FALSE))","v":{"$error":"#N/A"}},{"$f":"IF(ISBLANK(INDEX(TargetsTable[],MATCH(Calendar[[#This Row],[Date]],TargetsTable[Date],0),MATCH(Calendar[#Headers],TargetsTable[#Headers],0)))=TRUE,NA(),INDEX(TargetsTable[],MATCH(Calendar[[#This Row],[Date]],TargetsTable[Date],0),MATCH(Calendar[#Headers],TargetsTable[#Headers],0)))","v":{"$error":"#N/A"}},{"$f":"Calendar[[#This Row],[Period]]","v":0},{"$f":"IFERROR(IF(Calendar[[#This Row],[Plan. Hrs]]<Calendar[[#This Row],[Actual Hrs]],0,Calendar[[#This Row],[Plan. Hrs]]-Calendar[[#This Row],[Actual Hrs]]),Calendar[[#This Row],[Plan. Hrs]])","v":0},{"$f":"IFERROR(IF(Calendar[[#This Row],[Cal. Goal]]<Calendar[[#This Row],[Cal.]],0,Calendar[[#This Row],[Cal. Goal]]-Calendar[[#This Row],[Cal.]]),Calendar[[#This Row],[Cal. Goal]])","v":0},null,null,null,{"$f":"BMIf(Calendar[[#This Row],[Weight]],ActualHeight)","v":{"$error":"#N/A"}},{"$f":"VLOOKUP(Calendar[[#This Row],[Date]],UploadQuery[],MATCH(\"Speed\",UploadQuery[#Headers],0),FALSE)","v":{"$error":"#N/A"}},{"$f":"VLOOKUP(Calendar[[#This Row],[Date]],UploadQuery[],MATCH(\"Elev Gain\",UploadQuery[#Headers],0),FALSE)","v":{"$error":"#N/A"}},{"$f":"VLOOKUP(Calendar[[#This Row],[Date]],UploadQuery[],MATCH(\"Distance\",UploadQuery[#Headers],0),FALSE)","v":{"$error":"#N/A"}},{"$f":"VLOOKUP(Calendar[[#This Row],[Date]],UploadQuery[],MATCH(\"Climber Index\",UploadQuery[#Headers],0),FALSE)","v":{"$error":"#N/A"}},{"$f":"VLOOKUP(Calendar[[#This Row],[Date]],UploadQuery[],MATCH(\"Cal/hour\",UploadQuery[#Headers],0),FALSE)","v":{"$error":"#N/A"}},{"$f":"IF(YEAR(Calendar[[#This Row],[Date]])=YEAR(TodayDate),IF(WEEKNUM(Calendar[[#This Row],[Date]],21)=WEEKNUM(TodayDate,21),IFERROR(MAX(Calendar[[#This Row],[Actual Hrs]],Calendar[[#This Row],[Plan. Hrs]])+(2/24),Calendar[[#This Row],[Plan. Hrs]]+(2/24)),-1),-1)","v":-1},{"$f":"SUM(Calendar[[#This Row],[Mon]:[Sun]])","v":0},{"$f":"VLOOKUP(Calendar[[#This Row],[Date]],UploadQuery[],MATCH(\"Activity Time\",UploadQuery[#Headers],0),FALSE)","v":{"$error":"#N/A"}}]
[null,null,null,null,null,null,null,null,null,null,null,null,null,null,null,null,null,null,null,{"$f":"IF(ISBLANK(VLOOKUP(Calendar[[#This Row],[Date]],WeightTable[],2,FALSE))=TRUE,NA(),VLOOKUP(Calendar[[#This Row],[Date]],WeightTable[],IF(WeightUnit=\"lb\",2,3),FALSE))","v":{"$error":"#N/A"}},{"$f":"IF(ISBLANK(INDEX(TargetsTable[],MATCH(Calendar[[#This Row],[Date]],TargetsTable[Date],0),MATCH(Calendar[#Headers],TargetsTable[#Headers],0)))=TRUE,NA(),INDEX(TargetsTable[],MATCH(Calendar[[#This Row],[Date]],TargetsTable[Date],0),MATCH(Calendar[#Headers],TargetsTable[#Headers],0)))","v":{"$error":"#N/A"}},{"$f":"IF(ISBLANK(VLOOKUP(Calendar[[#This Row],[Date]],UploadQuery[],MATCH(\"Heart Rate\",UploadQuery[#Headers],0),FALSE))=TRUE,NA(),VLOOKUP(Calendar[[#This Row],[Date]],UploadQuery[],MATCH(\"Heart Rate\",UploadQuery[#Headers],0),FALSE))","v":{"$error":"#N/A"}},{"$f":"IF(ISBLANK(INDEX(TargetsTable[],MATCH(Calendar[[#This Row],[Date]],TargetsTable[Date],0),MATCH(Calendar[#Headers],TargetsTable[#Headers],0)))=TRUE,NA(),INDEX(TargetsTable[],MATCH(Calendar[[#This Row],[Date]],TargetsTable[Date],0),MATCH(Calendar[#Headers],TargetsTable[#Headers],0)))","v":{"$error":"#N/A"}},{"$f":"Calendar[[#This Row],[Period]]","v":0},{"$f":"IFERROR(IF(Calendar[[#This Row],[Plan. Hrs]]<Calendar[[#This Row],[Actual Hrs]],0,Calendar[[#This Row],[Plan. Hrs]]-Calendar[[#This Row],[Actual Hrs]]),Calendar[[#This Row],[Plan. Hrs]])","v":0},{"$f":"IFERROR(IF(Calendar[[#This Row],[Cal. Goal]]<Calendar[[#This Row],[Cal.]],0,Calendar[[#This Row],[Cal. Goal]]-Calendar[[#This Row],[Cal.]]),Calendar[[#This Row],[Cal. Goal]])","v":0},null,null,null,{"$f":"BMIf(Calendar[[#This Row],[Weight]],ActualHeight)","v":{"$error":"#N/A"}},{"$f":"VLOOKUP(Calendar[[#This Row],[Date]],UploadQuery[],MATCH(\"Speed\",UploadQuery[#Headers],0),FALSE)","v":{"$error":"#N/A"}},{"$f":"VLOOKUP(Calendar[[#This Row],[Date]],UploadQuery[],MATCH(\"Elev Gain\",UploadQuery[#Headers],0),FALSE)","v":{"$error":"#N/A"}},{"$f":"VLOOKUP(Calendar[[#This Row],[Date]],UploadQuery[],MATCH(\"Distance\",UploadQuery[#Headers],0),FALSE)","v":{"$error":"#N/A"}},{"$f":"VLOOKUP(Calendar[[#This Row],[Date]],UploadQuery[],MATCH(\"Climber Index\",UploadQuery[#Headers],0),FALSE)","v":{"$error":"#N/A"}},{"$f":"VLOOKUP(Calendar[[#This Row],[Date]],UploadQuery[],MATCH(\"Cal/hour\",UploadQuery[#Headers],0),FALSE)","v":{"$error":"#N/A"}},{"$f":"IF(YEAR(Calendar[[#This Row],[Date]])=YEAR(TodayDate),IF(WEEKNUM(Calendar[[#This Row],[Date]],21)=WEEKNUM(TodayDate,21),IFERROR(MAX(Calendar[[#This Row],[Actual Hrs]],Calendar[[#This Row],[Plan. Hrs]])+(2/24),Calendar[[#This Row],[Plan. Hrs]]+(2/24)),-1),-1)","v":-1},{"$f":"SUM(Calendar[[#This Row],[Mon]:[Sun]])","v":0},{"$f":"VLOOKUP(Calendar[[#This Row],[Date]],UploadQuery[],MATCH(\"Activity Time\",UploadQuery[#Headers],0),FALSE)","v":{"$error":"#N/A"}}]
[null,null,null,null,null,null,null,null,null,null,null,null,null,null,null,null,null,null,null,{"$f":"IF(ISBLANK(VLOOKUP(Calendar[[#This Row],[Date]],WeightTable[],2,FALSE))=TRUE,NA(),VLOOKUP(Calendar[[#This Row],[Date]],WeightTable[],IF(WeightUnit=\"lb\",2,3),FALSE))","v":{"$error":"#N/A"}},{"$f":"IF(ISBLANK(INDEX(TargetsTable[],MATCH(Calendar[[#This Row],[Date]],TargetsTable[Date],0),MATCH(Calendar[#Headers],TargetsTable[#Headers],0)))=TRUE,NA(),INDEX(TargetsTable[],MATCH(Calendar[[#This Row],[Date]],TargetsTable[Date],0),MATCH(Calendar[#Headers],TargetsTable[#Headers],0)))","v":{"$error":"#N/A"}},{"$f":"IF(ISBLANK(VLOOKUP(Calendar[[#This Row],[Date]],UploadQuery[],MATCH(\"Heart Rate\",UploadQuery[#Headers],0),FALSE))=TRUE,NA(),VLOOKUP(Calendar[[#This Row],[Date]],UploadQuery[],MATCH(\"Heart Rate\",UploadQuery[#Headers],0),FALSE))","v":{"$error":"#N/A"}},{"$f":"IF(ISBLANK(INDEX(TargetsTable[],MATCH(Calendar[[#This Row],[Date]],TargetsTable[Date],0),MATCH(Calendar[#Headers],TargetsTable[#Headers],0)))=TRUE,NA(),INDEX(TargetsTable[],MATCH(Calendar[[#This Row],[Date]],TargetsTable[Date],0),MATCH(Calendar[#Headers],TargetsTable[#Headers],0)))","v":{"$error":"#N/A"}},{"$f":"Calendar[[#This Row],[Period]]","v":0},{"$f":"IFERROR(IF(Calendar[[#This Row],[Plan. Hrs]]<Calendar[[#This Row],[Actual Hrs]],0,Calendar[[#This Row],[Plan. Hrs]]-Calendar[[#This Row],[Actual Hrs]]),Calendar[[#This Row],[Plan. Hrs]])","v":0},{"$f":"IFERROR(IF(Calendar[[#This Row],[Cal. Goal]]<Calendar[[#This Row],[Cal.]],0,Calendar[[#This Row],[Cal. Goal]]-Calendar[[#This Row],[Cal.]]),Calendar[[#This Row],[Cal. Goal]])","v":0},null,null,null,{"$f":"BMIf(Calendar[[#This Row],[Weight]],ActualHeight)","v":{"$error":"#N/A"}},{"$f":"VLOOKUP(Calendar[[#This Row],[Date]],UploadQuery[],MATCH(\"Speed\",UploadQuery[#Headers],0),FALSE)","v":{"$error":"#N/A"}},{"$f":"VLOOKUP(Calendar[[#This Row],[Date]],UploadQuery[],MATCH(\"Elev Gain\",UploadQuery[#Headers],0),FALSE)","v":{"$error":"#N/A"}},{"$f":"VLOOKUP(Calendar[[#This Row],[Date]],UploadQuery[],MATCH(\"Distance\",UploadQuery[#Headers],0),FALSE)","v":{"$error":"#N/A"}},{"$f":"VLOOKUP(Calendar[[#This Row],[Date]],UploadQuery[],MATCH(\"Climber Index\",UploadQuery[#Headers],0),FALSE)","v":{"$error":"#N/A"}},{"$f":"VLOOKUP(Calendar[[#This Row],[Date]],UploadQuery[],MATCH(\"Cal/hour\",UploadQuery[#Headers],0),FALSE)","v":{"$error":"#N/A"}},{"$f":"IF(YEAR(Calendar[[#This Row],[Date]])=YEAR(TodayDate),IF(WEEKNUM(Calendar[[#This Row],[Date]],21)=WEEKNUM(TodayDate,21),IFERROR(MAX(Calendar[[#This Row],[Actual Hrs]],Calendar[[#This Row],[Plan. Hrs]])+(2/24),Calendar[[#This Row],[Plan. Hrs]]+(2/24)),-1),-1)","v":-1},{"$f":"SUM(Calendar[[#This Row],[Mon]:[Sun]])","v":0},{"$f":"VLOOKUP(Calendar[[#This Row],[Date]],UploadQuery[],MATCH(\"Activity Time\",UploadQuery[#Headers],0),FALSE)","v":{"$error":"#N/A"}}]
[null,null,null,null,null,null,null,null,null,null,null,null,null,null,null,null,null,null,null,{"$f":"IF(ISBLANK(VLOOKUP(Calendar[[#This Row],[Date]],WeightTable[],2,FALSE))=TRUE,NA(),VLOOKUP(Calendar[[#This Row],[Date]],WeightTable[],IF(WeightUnit=\"lb\",2,3),FALSE))","v":{"$error":"#N/A"}},{"$f":"IF(ISBLANK(INDEX(TargetsTable[],MATCH(Calendar[[#This Row],[Date]],TargetsTable[Date],0),MATCH(Calendar[#Headers],TargetsTable[#Headers],0)))=TRUE,NA(),INDEX(TargetsTable[],MATCH(Calendar[[#This Row],[Date]],TargetsTable[Date],0),MATCH(Calendar[#Headers],TargetsTable[#Headers],0)))","v":{"$error":"#N/A"}},{"$f":"IF(ISBLANK(VLOOKUP(Calendar[[#This Row],[Date]],UploadQuery[],MATCH(\"Heart Rate\",UploadQuery[#Headers],0),FALSE))=TRUE,NA(),VLOOKUP(Calendar[[#This Row],[Date]],UploadQuery[],MATCH(\"Heart Rate\",UploadQuery[#Headers],0),FALSE))","v":{"$error":"#N/A"}},{"$f":"IF(ISBLANK(INDEX(TargetsTable[],MATCH(Calendar[[#This Row],[Date]],TargetsTable[Date],0),MATCH(Calendar[#Headers],TargetsTable[#Headers],0)))=TRUE,NA(),INDEX(TargetsTable[],MATCH(Calendar[[#This Row],[Date]],TargetsTable[Date],0),MATCH(Calendar[#Headers],TargetsTable[#Headers],0)))","v":{"$error":"#N/A"}},{"$f":"Calendar[[#This Row],[Period]]","v":0},{"$f":"IFERROR(IF(Calendar[[#This Row],[Plan. Hrs]]<Calendar[[#This Row],[Actual Hrs]],0,Calendar[[#This Row],[Plan. Hrs]]-Calendar[[#This Row],[Actual Hrs]]),Calendar[[#This Row],[Plan. Hrs]])","v":0},{"$f":"IFERROR(IF(Calendar[[#This Row],[Cal. Goal]]<Calendar[[#This Row],[Cal.]],0,Calendar[[#This Row],[Cal. Goal]]-Calendar[[#This Row],[Cal.]]),Calendar[[#This Row],[Cal. Goal]])","v":0},null,null,null,{"$f":"BMIf(Calendar[[#This Row],[Weight]],ActualHeight)","v":{"$error":"#N/A"}},{"$f":"VLOOKUP(Calendar[[#This Row],[Date]],UploadQuery[],MATCH(\"Speed\",UploadQuery[#Headers],0),FALSE)","v":{"$error":"#N/A"}},{"$f":"VLOOKUP(Calendar[[#This Row],[Date]],UploadQuery[],MATCH(\"Elev Gain\",UploadQuery[#Headers],0),FALSE)","v":{"$error":"#N/A"}},{"$f":"VLOOKUP(Calendar[[#This Row],[Date]],UploadQuery[],MATCH(\"Distance\",UploadQuery[#Headers],0),FALSE)","v":{"$error":"#N/A"}},{"$f":"VLOOKUP(Calendar[[#This Row],[Date]],UploadQuery[],MATCH(\"Climber Index\",UploadQuery[#Headers],0),FALSE)","v":{"$error":"#N/A"}},{"$f":"VLOOKUP(Calendar[[#This Row],[Date]],UploadQuery[],MATCH(\"Cal/hour\",UploadQuery[#Headers],0),FALSE)","v":{"$error":"#N/A"}},{"$f":"IF(YEAR(Calendar[[#This Row],[Date]])=YEAR(TodayDate),IF(WEEKNUM(Calendar[[#This Row],[Date]],21)=WEEKNUM(TodayDate,21),IFERROR(MAX(Calendar[[#This Row],[Actual Hrs]],Calendar[[#This Row],[Plan. Hrs]])+(2/24),Calendar[[#This Row],[Plan. Hrs]]+(2/24)),-1),-1)","v":-1},{"$f":"SUM(Calendar[[#This Row],[Mon]:[Sun]])","v":0},{"$f":"VLOOKUP(Calendar[[#This Row],[Date]],UploadQuery[],MATCH(\"Activity Time\",UploadQuery[#Headers],0),FALSE)","v":{"$error":"#N/A"}}]
[null,null,null,null,null,null,null,null,null,null,null,null,null,null,null,null,null,null,null,{"$f":"IF(ISBLANK(VLOOKUP(Calendar[[#This Row],[Date]],WeightTable[],2,FALSE))=TRUE,NA(),VLOOKUP(Calendar[[#This Row],[Date]],WeightTable[],IF(WeightUnit=\"lb\",2,3),FALSE))","v":{"$error":"#N/A"}},{"$f":"IF(ISBLANK(INDEX(TargetsTable[],MATCH(Calendar[[#This Row],[Date]],TargetsTable[Date],0),MATCH(Calendar[#Headers],TargetsTable[#Headers],0)))=TRUE,NA(),INDEX(TargetsTable[],MATCH(Calendar[[#This Row],[Date]],TargetsTable[Date],0),MATCH(Calendar[#Headers],TargetsTable[#Headers],0)))","v":{"$error":"#N/A"}},{"$f":"IF(ISBLANK(VLOOKUP(Calendar[[#This Row],[Date]],UploadQuery[],MATCH(\"Heart Rate\",UploadQuery[#Headers],0),FALSE))=TRUE,NA(),VLOOKUP(Calendar[[#This Row],[Date]],UploadQuery[],MATCH(\"Heart Rate\",UploadQuery[#Headers],0),FALSE))","v":{"$error":"#N/A"}},{"$f":"IF(ISBLANK(INDEX(TargetsTable[],MATCH(Calendar[[#This Row],[Date]],TargetsTable[Date],0),MATCH(Calendar[#Headers],TargetsTable[#Headers],0)))=TRUE,NA(),INDEX(TargetsTable[],MATCH(Calendar[[#This Row],[Date]],TargetsTable[Date],0),MATCH(Calendar[#Headers],TargetsTable[#Headers],0)))","v":{"$error":"#N/A"}},{"$f":"Calendar[[#This Row],[Period]]","v":0},{"$f":"IFERROR(IF(Calendar[[#This Row],[Plan. Hrs]]<Calendar[[#This Row],[Actual Hrs]],0,Calendar[[#This Row],[Plan. Hrs]]-Calendar[[#This Row],[Actual Hrs]]),Calendar[[#This Row],[Plan. Hrs]])","v":0},{"$f":"IFERROR(IF(Calendar[[#This Row],[Cal. Goal]]<Calendar[[#This Row],[Cal.]],0,Calendar[[#This Row],[Cal. Goal]]-Calendar[[#This Row],[Cal.]]),Calendar[[#This Row],[Cal. Goal]])","v":0},null,null,null,{"$f":"BMIf(Calendar[[#This Row],[Weight]],ActualHeight)","v":{"$error":"#N/A"}},{"$f":"VLOOKUP(Calendar[[#This Row],[Date]],UploadQuery[],MATCH(\"Speed\",UploadQuery[#Headers],0),FALSE)","v":{"$error":"#N/A"}},{"$f":"VLOOKUP(Calendar[[#This Row],[Date]],UploadQuery[],MATCH(\"Elev Gain\",UploadQuery[#Headers],0),FALSE)","v":{"$error":"#N/A"}},{"$f":"VLOOKUP(Calendar[[#This Row],[Date]],UploadQuery[],MATCH(\"Distance\",UploadQuery[#Headers],0),FALSE)","v":{"$error":"#N/A"}},{"$f":"VLOOKUP(Calendar[[#This Row],[Date]],UploadQuery[],MATCH(\"Climber Index\",UploadQuery[#Headers],0),FALSE)","v":{"$error":"#N/A"}},{"$f":"VLOOKUP(Calendar[[#This Row],[Date]],UploadQuery[],MATCH(\"Cal/hour\",UploadQuery[#Headers],0),FALSE)","v":{"$error":"#N/A"}},{"$f":"IF(YEAR(Calendar[[#This Row],[Date]])=YEAR(TodayDate),IF(WEEKNUM(Calendar[[#This Row],[Date]],21)=WEEKNUM(TodayDate,21),IFERROR(MAX(Calendar[[#This Row],[Actual Hrs]],Calendar[[#This Row],[Plan. Hrs]])+(2/24),Calendar[[#This Row],[Plan. Hrs]]+(2/24)),-1),-1)","v":-1},{"$f":"SUM(Calendar[[#This Row],[Mon]:[Sun]])","v":0},{"$f":"VLOOKUP(Calendar[[#This Row],[Date]],UploadQuery[],MATCH(\"Activity Time\",UploadQuery[#Headers],0),FALSE)","v":{"$error":"#N/A"}}]
[null,null,null,null,null,null,null,null,null,null,null,null,null,null,null,null,null,null,null,{"$f":"IF(ISBLANK(VLOOKUP(Calendar[[#This Row],[Date]],WeightTable[],2,FALSE))=TRUE,NA(),VLOOKUP(Calendar[[#This Row],[Date]],WeightTable[],IF(WeightUnit=\"lb\",2,3),FALSE))","v":{"$error":"#N/A"}},{"$f":"IF(ISBLANK(INDEX(TargetsTable[],MATCH(Calendar[[#This Row],[Date]],TargetsTable[Date],0),MATCH(Calendar[#Headers],TargetsTable[#Headers],0)))=TRUE,NA(),INDEX(TargetsTable[],MATCH(Calendar[[#This Row],[Date]],TargetsTable[Date],0),MATCH(Calendar[#Headers],TargetsTable[#Headers],0)))","v":{"$error":"#N/A"}},{"$f":"IF(ISBLANK(VLOOKUP(Calendar[[#This Row],[Date]],UploadQuery[],MATCH(\"Heart Rate\",UploadQuery[#Headers],0),FALSE))=TRUE,NA(),VLOOKUP(Calendar[[#This Row],[Date]],UploadQuery[],MATCH(\"Heart Rate\",UploadQuery[#Headers],0),FALSE))","v":{"$error":"#N/A"}},{"$f":"IF(ISBLANK(INDEX(TargetsTable[],MATCH(Calendar[[#This Row],[Date]],TargetsTable[Date],0),MATCH(Calendar[#Headers],TargetsTable[#Headers],0)))=TRUE,NA(),INDEX(TargetsTable[],MATCH(Calendar[[#This Row],[Date]],TargetsTable[Date],0),MATCH(Calendar[#Headers],TargetsTable[#Headers],0)))","v":{"$error":"#N/A"}},{"$f":"Calendar[[#This Row],[Period]]","v":0},{"$f":"IFERROR(IF(Calendar[[#This Row],[Plan. Hrs]]<Calendar[[#This Row],[Actual Hrs]],0,Calendar[[#This Row],[Plan. Hrs]]-Calendar[[#This Row],[Actual Hrs]]),Calendar[[#This Row],[Plan. Hrs]])","v":0},{"$f":"IFERROR(IF(Calendar[[#This Row],[Cal. Goal]]<Calendar[[#This Row],[Cal.]],0,Calendar[[#This Row],[Cal. Goal]]-Calendar[[#This Row],[Cal.]]),Calendar[[#This Row],[Cal. Goal]])","v":0},null,null,null,{"$f":"BMIf(Calendar[[#This Row],[Weight]],ActualHeight)","v":{"$error":"#N/A"}},{"$f":"VLOOKUP(Calendar[[#This Row],[Date]],UploadQuery[],MATCH(\"Speed\",UploadQuery[#Headers],0),FALSE)","v":{"$error":"#N/A"}},{"$f":"VLOOKUP(Calendar[[#This Row],[Date]],UploadQuery[],MATCH(\"Elev Gain\",UploadQuery[#Headers],0),FALSE)","v":{"$error":"#N/A"}},{"$f":"VLOOKUP(Calendar[[#This Row],[Date]],UploadQuery[],MATCH(\"Distance\",UploadQuery[#Headers],0),FALSE)","v":{"$error":"#N/A"}},{"$f":"VLOOKUP(Calendar[[#This Row],[Date]],UploadQuery[],MATCH(\"Climber Index\",UploadQuery[#Headers],0),FALSE)","v":{"$error":"#N/A"}},{"$f":"VLOOKUP(Calendar[[#This Row],[Date]],UploadQuery[],MATCH(\"Cal/hour\",UploadQuery[#Headers],0),FALSE)","v":{"$error":"#N/A"}},{"$f":"IF(YEAR(Calendar[[#This Row],[Date]])=YEAR(TodayDate),IF(WEEKNUM(Calendar[[#This Row],[Date]],21)=WEEKNUM(TodayDate,21),IFERROR(MAX(Calendar[[#This Row],[Actual Hrs]],Calendar[[#This Row],[Plan. Hrs]])+(2/24),Calendar[[#This Row],[Plan. Hrs]]+(2/24)),-1),-1)","v":-1},{"$f":"SUM(Calendar[[#This Row],[Mon]:[Sun]])","v":0},{"$f":"VLOOKUP(Calendar[[#This Row],[Date]],UploadQuery[],MATCH(\"Activity Time\",UploadQuery[#Headers],0),FALSE)","v":{"$error":"#N/A"}}]
[null,null,null,null,null,null,null,null,null,null,null,null,null,null,null,null,null,null,null,{"$f":"IF(ISBLANK(VLOOKUP(Calendar[[#This Row],[Date]],WeightTable[],2,FALSE))=TRUE,NA(),VLOOKUP(Calendar[[#This Row],[Date]],WeightTable[],IF(WeightUnit=\"lb\",2,3),FALSE))","v":{"$error":"#N/A"}},{"$f":"IF(ISBLANK(INDEX(TargetsTable[],MATCH(Calendar[[#This Row],[Date]],TargetsTable[Date],0),MATCH(Calendar[#Headers],TargetsTable[#Headers],0)))=TRUE,NA(),INDEX(TargetsTable[],MATCH(Calendar[[#This Row],[Date]],TargetsTable[Date],0),MATCH(Calendar[#Headers],TargetsTable[#Headers],0)))","v":{"$error":"#N/A"}},{"$f":"IF(ISBLANK(VLOOKUP(Calendar[[#This Row],[Date]],UploadQuery[],MATCH(\"Heart Rate\",UploadQuery[#Headers],0),FALSE))=TRUE,NA(),VLOOKUP(Calendar[[#This Row],[Date]],UploadQuery[],MATCH(\"Heart Rate\",UploadQuery[#Headers],0),FALSE))","v":{"$error":"#N/A"}},{"$f":"IF(ISBLANK(INDEX(TargetsTable[],MATCH(Calendar[[#This Row],[Date]],TargetsTable[Date],0),MATCH(Calendar[#Headers],TargetsTable[#Headers],0)))=TRUE,NA(),INDEX(TargetsTable[],MATCH(Calendar[[#This Row],[Date]],TargetsTable[Date],0),MATCH(Calendar[#Headers],TargetsTable[#Headers],0)))","v":{"$error":"#N/A"}},{"$f":"Calendar[[#This Row],[Period]]","v":0},{"$f":"IFERROR(IF(Calendar[[#This Row],[Plan. Hrs]]<Calendar[[#This Row],[Actual Hrs]],0,Calendar[[#This Row],[Plan. Hrs]]-Calendar[[#This Row],[Actual Hrs]]),Calendar[[#This Row],[Plan. Hrs]])","v":0},{"$f":"IFERROR(IF(Calendar[[#This Row],[Cal. Goal]]<Calendar[[#This Row],[Cal.]],0,Calendar[[#This Row],[Cal. Goal]]-Calendar[[#This Row],[Cal.]]),Calendar[[#This Row],[Cal. Goal]])","v":0},null,null,null,{"$f":"BMIf(Calendar[[#This Row],[Weight]],ActualHeight)","v":{"$error":"#N/A"}},{"$f":"VLOOKUP(Calendar[[#This Row],[Date]],UploadQuery[],MATCH(\"Speed\",UploadQuery[#Headers],0),FALSE)","v":{"$error":"#N/A"}},{"$f":"VLOOKUP(Calendar[[#This Row],[Date]],UploadQuery[],MATCH(\"Elev Gain\",UploadQuery[#Headers],0),FALSE)","v":{"$error":"#N/A"}},{"$f":"VLOOKUP(Calendar[[#This Row],[Date]],UploadQuery[],MATCH(\"Distance\",UploadQuery[#Headers],0),FALSE)","v":{"$error":"#N/A"}},{"$f":"VLOOKUP(Calendar[[#This Row],[Date]],UploadQuery[],MATCH(\"Climber Index\",UploadQuery[#Headers],0),FALSE)","v":{"$error":"#N/A"}},{"$f":"VLOOKUP(Calendar[[#This Row],[Date]],UploadQuery[],MATCH(\"Cal/hour\",UploadQuery[#Headers],0),FALSE)","v":{"$error":"#N/A"}},{"$f":"IF(YEAR(Calendar[[#This Row],[Date]])=YEAR(TodayDate),IF(WEEKNUM(Calendar[[#This Row],[Date]],21)=WEEKNUM(TodayDate,21),IFERROR(MAX(Calendar[[#This Row],[Actual Hrs]],Calendar[[#This Row],[Plan. Hrs]])+(2/24),Calendar[[#This Row],[Plan. Hrs]]+(2/24)),-1),-1)","v":-1},{"$f":"SUM(Calendar[[#This Row],[Mon]:[Sun]])","v":0},{"$f":"VLOOKUP(Calendar[[#This Row],[Date]],UploadQuery[],MATCH(\"Activity Time\",UploadQuery[#Headers],0),FALSE)","v":{"$error":"#N/A"}}]
[null,null,null,null,null,null,null,null,null,null,null,null,null,null,null,null,null,null,null,{"$f":"IF(ISBLANK(VLOOKUP(Calendar[[#This Row],[Date]],WeightTable[],2,FALSE))=TRUE,NA(),VLOOKUP(Calendar[[#This Row],[Date]],WeightTable[],IF(WeightUnit=\"lb\",2,3),FALSE))","v":{"$error":"#N/A"}},{"$f":"IF(ISBLANK(INDEX(TargetsTable[],MATCH(Calendar[[#This Row],[Date]],TargetsTable[Date],0),MATCH(Calendar[#Headers],TargetsTable[#Headers],0)))=TRUE,NA(),INDEX(TargetsTable[],MATCH(Calendar[[#This Row],[Date]],TargetsTable[Date],0),MATCH(Calendar[#Headers],TargetsTable[#Headers],0)))","v":{"$error":"#N/A"}},{"$f":"IF(ISBLANK(VLOOKUP(Calendar[[#This Row],[Date]],UploadQuery[],MATCH(\"Heart Rate\",UploadQuery[#Headers],0),FALSE))=TRUE,NA(),VLOOKUP(Calendar[[#This Row],[Date]],UploadQuery[],MATCH(\"Heart Rate\",UploadQuery[#Headers],0),FALSE))","v":{"$error":"#N/A"}},{"$f":"IF(ISBLANK(INDEX(TargetsTable[],MATCH(Calendar[[#This Row],[Date]],TargetsTable[Date],0),MATCH(Calendar[#Headers],TargetsTable[#Headers],0)))=TRUE,NA(),INDEX(TargetsTable[],MATCH(Calendar[[#This Row],[Date]],TargetsTable[Date],0),MATCH(Calendar[#Headers],TargetsTable[#Headers],0)))","v":{"$error":"#N/A"}},{"$f":"Calendar[[#This Row],[Period]]","v":0},{"$f":"IFERROR(IF(Calendar[[#This Row],[Plan. Hrs]]<Calendar[[#This Row],[Actual Hrs]],0,Calendar[[#This Row],[Plan. Hrs]]-Calendar[[#This Row],[Actual Hrs]]),Calendar[[#This Row],[Plan. Hrs]])","v":0},{"$f":"IFERROR(IF(Calendar[[#This Row],[Cal. Goal]]<Calendar[[#This Row],[Cal.]],0,Calendar[[#This Row],[Cal. Goal]]-Calendar[[#This Row],[Cal.]]),Calendar[[#This Row],[Cal. Goal]])","v":0},null,null,null,{"$f":"BMIf(Calendar[[#This Row],[Weight]],ActualHeight)","v":{"$error":"#N/A"}},{"$f":"VLOOKUP(Calendar[[#This Row],[Date]],UploadQuery[],MATCH(\"Speed\",UploadQuery[#Headers],0),FALSE)","v":{"$error":"#N/A"}},{"$f":"VLOOKUP(Calendar[[#This Row],[Date]],UploadQuery[],MATCH(\"Elev Gain\",UploadQuery[#Headers],0),FALSE)","v":{"$error":"#N/A"}},{"$f":"VLOOKUP(Calendar[[#This Row],[Date]],UploadQuery[],MATCH(\"Distance\",UploadQuery[#Headers],0),FALSE)","v":{"$error":"#N/A"}},{"$f":"VLOOKUP(Calendar[[#This Row],[Date]],UploadQuery[],MATCH(\"Climber Index\",UploadQuery[#Headers],0),FALSE)","v":{"$error":"#N/A"}},{"$f":"VLOOKUP(Calendar[[#This Row],[Date]],UploadQuery[],MATCH(\"Cal/hour\",UploadQuery[#Headers],0),FALSE)","v":{"$error":"#N/A"}},{"$f":"IF(YEAR(Calendar[[#This Row],[Date]])=YEAR(TodayDate),IF(WEEKNUM(Calendar[[#This Row],[Date]],21)=WEEKNUM(TodayDate,21),IFERROR(MAX(Calendar[[#This Row],[Actual Hrs]],Calendar[[#This Row],[Plan. Hrs]])+(2/24),Calendar[[#This Row],[Plan. Hrs]]+(2/24)),-1),-1)","v":-1},{"$f":"SUM(Calendar[[#This Row],[Mon]:[Sun]])","v":0},{"$f":"VLOOKUP(Calendar[[#This Row],[Date]],UploadQuery[],MATCH(\"Activity Time\",UploadQuery[#Headers],0),FALSE)","v":{"$error":"#N/A"}}]

{"sheet":"Targets","index":3,"n_rows":24,"n_cols":8,"rows_kept":24,"cut":false,"hidden":false,"merged":[]}
[null,"STATrider / Targets"]
[]
[null,"Wk","Date","Period","Cal. Goal","Weight Goal","HR Goal","Power Goal"]
[null,1]
[null,2]
[null,3]
[null,4]
[null,5]
[null,6]
[null,7]
[null,8]
[null,9]
[null,10]
[null,11]
[null,12]
[null,13]
[null,14]
[null,15]
[null,16]
[null,17]
[null,18]
[null,19]
[null,20]
[null,21]

{"sheet":"Weight","index":4,"n_rows":11,"n_cols":5,"rows_kept":11,"cut":false,"hidden":false,"merged":[]}
[null,"STATrider / Weight"]
[]
[null,"Weight"]
[]
[null,189,"lb"]
[]
[null,"Date"]
[]
[null,"2022-03-21"]
[]
[null,"Date","lb","kg","Wk"]

{"sheet":"Load","index":5,"n_rows":5,"n_cols":25,"rows_kept":5,"cut":false,"hidden":false,"merged":[]}
[null,"STATrider / Load Data"]
[]
[]
[]
[null,"Time Period","Activities","Distance","Activity Time","Activity Calories","Elev Gain","Speed","Heart Rate","Bike Cadence","Power","Climber Index","Cal/hour","Hrs/Activity","Speed/HR","Distance Unit","Time Unit","Calories Unit","Elevation Unit","Speed Unit","Heart Rate Unit","Cadence Unit","Power Unit","WeightTable.lb","WeightTable.kg"]

{"sheet":"Dashboard","index":6,"n_rows":28,"n_cols":22,"rows_kept":28,"cut":false,"hidden":false,"merged":[[2,1,2,2]]}
[null,"STATrider / Dashboard"]
[null,null,null,null,null,null,null,null,null,null,null,null,null,null,null,null,null,null,null,null,null,"\\"]
[null,{"$f":"Season","v":"Season 2022 / 2022"}]
[]
[]
[]
[]
[]
[]
[]
[]
[]
[]
[null,"Events",null,".",null,null,null,null,null,null,null,null,null,null,null,null,"Current Week Plan (hrs)"]
[null,null,null,"."]
[null,null,null,".",null,null,null,null,null,null,null,null,null,null,null,null,"Mon",{"$f":"IF(Actual_Week>0,IFERROR(IF(INDEX(INDIRECT(\"Calendar\"),Actual_Week,MATCH(Q16,INDIRECT(\"Calendar[#Headers]\"),0))=0,\"Rest\",INDEX(INDIRECT(\"Calendar\"),Actual_Week,MATCH(Q16,INDIRECT(\"Calendar[#Headers]\"),0))),\"\"),\"\")","v":{"$error":"#N/A"}},{"$f":"IF(R16=\"Rest\",\"\",R16)","v":{"$error":"#N/A"}}]
[null,null,null,"."]
[null,null,null,".",null,null,null,null,null,null,null,null,null,null,null,null,"Tue",{"$f":"IF(Actual_Week>0,IFERROR(IF(INDEX(INDIRECT(\"Calendar\"),Actual_Week,MATCH(Q18,INDIRECT(\"Calendar[#Headers]\"),0))=0,\"Rest\",INDEX(INDIRECT(\"Calendar\"),Actual_Week,MATCH(Q18,INDIRECT(\"Calendar[#Headers]\"),0))),\"\"),\"\")","v":{"$error":"#N/A"}},{"$f":"IF(R18=\"Rest\",\"\",R18)","v":{"$error":"#N/A"}}]
[null,null,null,"."]
[null,null,null,".",null,null,null,null,null,null,null,null,null,null,null,null,"Wed",{"$f":"IF(Actual_Week>0,IFERROR(IF(INDEX(INDIRECT(\"Calendar\"),Actual_Week,MATCH(Q20,INDIRECT(\"Calendar[#Headers]\"),0))=0,\"Rest\",INDEX(INDIRECT(\"Calendar\"),Actual_Week,MATCH(Q20,INDIRECT(\"Calendar[#Headers]\"),0))),\"\"),\"\")","v":{"$error":"#N/A"}},{"$f":"IF(R20=\"Rest\",\"\",R20)","v":{"$error":"#N/A"}}]
[null,null,null,"."]
[null,null,null,".",null,null,null,null,null,null,null,null,null,null,null,null,"Thu",{"$f":"IF(Actual_Week>0,IFERROR(IF(INDEX(INDIRECT(\"Calendar\"),Actual_Week,MATCH(Q22,INDIRECT(\"Calendar[#Headers]\"),0))=0,\"Rest\",INDEX(INDIRECT(\"Calendar\"),Actual_Week,MATCH(Q22,INDIRECT(\"Calendar[#Headers]\"),0))),\"\"),\"\")","v":{"$error":"#N/A"}},{"$f":"IF(R22=\"Rest\",\"\",R22)","v":{"$error":"#N/A"}}]
[null,null,null,"."]
[null,null,null,".",null,null,null,null,null,null,null,null,null,null,null,null,"Fri",{"$f":"IF(Actual_Week>0,IFERROR(IF(INDEX(INDIRECT(\"Calendar\"),Actual_Week,MATCH(Q24,INDIRECT(\"Calendar[#Headers]\"),0))=0,\"Rest\",INDEX(INDIRECT(\"Calendar\"),Actual_Week,MATCH(Q24,INDIRECT(\"Calendar[#Headers]\"),0))),\"\"),\"\")","v":{"$error":"#N/A"}},{"$f":"IF(R24=\"Rest\",\"\",R24)","v":{"$error":"#N/A"}}]
[null,null,null,"."]
[null,null,null,".",null,null,null,null,null,null,null,null,null,null,null,null,"Sat",{"$f":"IF(Actual_Week>0,IFERROR(IF(INDEX(INDIRECT(\"Calendar\"),Actual_Week,MATCH(Q26,INDIRECT(\"Calendar[#Headers]\"),0))=0,\"Rest\",INDEX(INDIRECT(\"Calendar\"),Actual_Week,MATCH(Q26,INDIRECT(\"Calendar[#Headers]\"),0))),\"\"),\"\")","v":{"$error":"#N/A"}},{"$f":"IF(R26=\"Rest\",\"\",R26)","v":{"$error":"#N/A"}}]
[null,null,null,"."]
[null,null,null,".",null,null,null,null,null,null,null,null,null,null,null,null,"Sun",{"$f":"IF(Actual_Week>0,IFERROR(IF(INDEX(INDIRECT(\"Calendar\"),Actual_Week,MATCH(Q28,INDIRECT(\"Calendar[#Headers]\"),0))=0,\"Rest\",INDEX(INDIRECT(\"Calendar\"),Actual_Week,MATCH(Q28,INDIRECT(\"Calendar[#Headers]\"),0))),\"\"),\"\")","v":{"$error":"#N/A"}},{"$f":"IF(R28=\"Rest\",\"\",R28)","v":{"$error":"#N/A"}}]

{"sheet":"Analytics","index":7,"n_rows":1,"n_cols":2,"rows_kept":1,"cut":false,"hidden":false,"merged":[]}
[null,"STATrider / Analytics"]

{"sheet":"PivotAnalytics4","index":8,"n_rows":3,"n_cols":2,"rows_kept":3,"cut":false,"hidden":true,"merged":[]}
["Row Labels","Sum of Elev Gain"]
["(blank)"]
["Grand Total"]

{"sheet":"Log","index":9,"n_rows":28,"n_cols":21,"rows_kept":28,"cut":false,"hidden":true,"merged":[]}
["Step","hh:mm:ss","Description","% of Overal Time"]
["Overall Time",1.1574076779652387E-5,null,{"$f":"SUM(D3:D14)","v":1}]
["TableCheck",0,"Check if  Target and Calendar table are correct",{"$f":"B3/TotalTime","v":0}]
["Solver",0,"Solver",0]
["Calendar",1.1574076779652387E-5,"Create Calendar",1]
["PivotPlan",0,"PivotPlan",0]
["Conditional rules",0,"ConditionalRulesTime - Period Colors",{"$f":"B7/TotalTime","v":0}]
["ChartPlan",0,"ChartPlan",{"$f":"B8/TotalTime","v":0}]
[]
[]
[]
[]
[]
[]
[]
[]
[]
[]
[]
[]
[]
[]
[]
[]
[]
[]
[]
[null,null,null,null,null,null,null,null,null,null,null,null,null,null,null,null,null,null,null,null,0]

{"sheet":"Gauges","index":10,"n_rows":32,"n_cols":13,"rows_kept":32,"cut":false,"hidden":true,"merged":[[0,0,0,3],[6,0,6,3]]}
["Weeks To Race Chart",null,null,null,null,null,null,null,null,null,null,null,"Charts Legends"]
[]
["Weeks to Race Gap",{"$f":"Total_Weeks_Planned*0.45","v":9.4500000000000011},{"$f":"Total_Weeks_Planned","v":21},null,null,"Today Date","2022-05-23T23:26:59"]
["Actual Week",{"$f":"C4","v":{"$error":"#N/A"}},{"$f":"IF(TodayDate<VLOOKUP(1,INDIRECT(\"Calendar\"),2,FALSE),0,IF(TodayDate>LastWeek,Total_Weeks_Planned,D4))","v":{"$error":"#N/A"}},{"$f":"MATCH(MAX(INDIRECT(\"Calendar[Today Week]\")),INDIRECT(\"Calendar[Today Week]\"),0)","v":1},null,"Actual Height",{"$f":"RIDERHEIGHT(HeightPrimary,HeightSecondary,HeightUnit)","v":72}]
[{"$f":"IF(B5>1,\"Weeks to Race\",IF(B5=1,\"Week to Race\",\"Race Week\"))","v":{"$error":"#N/A"}},{"$f":"Total_Weeks_Planned-Actual_Week","v":{"$error":"#N/A"}},{"$f":"IF(Weeks_To_Race>0,Weeks_To_Race,_xlfn.UNICHAR(127937))","v":{"$error":"#N/A"}}]
[]
["BMI Chart"]
["Actual Weight",{"$f":"D8","v":{"$error":"#N/A"}},{"$f":"WeightUnit","v":"lb"},{"$f":"IFERROR(INDEX(INDIRECT(\"Calendar\"),Actual_Week,MATCH(\"Weight\",INDIRECT(\"Calendar[#Headers]\"),0)),Last_Weight_Update)","v":{"$error":"#N/A"}}]
["Actual BMI",{"$f":"BMIf(Actual_Weight,ActualHeight)","v":{"$error":"#N/A"}},null,{"$f":"IF(C8=\"Kg\",Actual_Weight/(ActualHeight^2),Actual_Weight/(ActualHeight^2)*703)","v":{"$error":"#N/A"}}]
["BMI Min",{"$f":"BMI_min","v":21},null,null,null,"BMIGaugeGroup"]
["BMI Max",{"$f":"BMI_max","v":22.4},null,null,null,"BMILegGroup"]
["Last Week Update",{"$f":"MATCH(2,INDEX(1/(INDIRECT(\"Calendar[Weight]\")<>\"\"),0))","v":{"$error":"#N/A"}}]
["Weight on Last Week",{"$f":"INDEX(INDIRECT(\"Calendar\"),Last_Weight_Week,MATCH(\"Weight\",INDIRECT(\"Calendar[#Headers]\"),0))","v":{"$error":"#N/A"}}]
[]
["BMI Doughnut","Lower Limit","Upper Limit","BMI","Goal"]
["Underweight",0,18.399999999999999,{"$f":"C16-B16","v":18.399999999999999},{"$f":"D16","v":18.399999999999999}]
["Healthy weight",18.5,null,{"$f":"(C19-B17)/2","v":3.1999999999999993},{"$f":"B18-B17","v":2.5}]
["Goal",{"$f":"F18","v":21},{"$f":"G18","v":22.4},null,{"$f":"C18-B18","v":1.3999999999999986},{"$f":"IF(OR(BMI_min<18.5,BMI_min>24.9)=TRUE,18.5,BMI_min)","v":21},{"$f":"IF(OR(BMI_max<18.5,BMI_max>24.9)=TRUE,18.5,BMI_max)","v":22.4}]
["Healthy weight",null,24.9,{"$f":"D17","v":3.1999999999999993},{"$f":"C19-C18","v":2.5}]
["Overweight",25,29.9,{"$f":"C20-B20","v":4.8999999999999986},{"$f":"D20","v":4.8999999999999986}]
["Obese",30,{"$f":"B21+C16","v":48.4},{"$f":"D16-D20","v":13.5},{"$f":"D21","v":13.5}]
["Blank",null,null,{"$f":"SUM(D16:D21)/4","v":10.799999999999999},{"$f":"SUM(E16:E21)/4","v":10.799999999999999}]
[]
["Radius",17.5,null,null,null,"BMI","Angle"]
["Angle (degrees)",{"$f":"C25","v":{"$error":"#N/A"}},{"$f":"G30-G26","v":{"$error":"#N/A"}},null,null,{"$f":"SUM($D$16:$D$22)","v":53.999999999999993},360]
["Cos",{"$f":"COS(RADIANS(B25))","v":{"$error":"#N/A"}},null,null,null,{"$f":"IF(Actual_BMI<=0,0,IF(Actual_BMI>=43.2,43.2,Actual_BMI))","v":{"$error":"#N/A"}},{"$f":"G25*F26/F25","v":{"$error":"#N/A"}}]
["Sen",{"$f":"SIN(RADIANS(B25))","v":{"$error":"#N/A"}}]
["dx",{"$f":"radius*B26","v":{"$error":"#N/A"}},null,null,null,{"$f":"SUM($D$16:$D$22)","v":53.999999999999993},360]
["dy",{"$f":"B27*radius","v":{"$error":"#N/A"}},null,null,null,{"$f":"D16+D17","v":21.599999999999998},{"$f":"G28*F29/F28","v":144}]
["BMI Gauge","X","Y",null,null,"Doughnut Start",{"$f":"IF(ActualBMILimit<=0,90+G29-2,IF(OR(ActualBMILimit<21.6,ActualBMILimit>=43.2),90+G29+3,90+G29))","v":{"$error":"#N/A"}}]
["Center of circle",25,25]
["Circle point",{"$f":"B31+B28","v":{"$error":"#N/A"}},{"$f":"C31+B29","v":{"$error":"#N/A"}}]

{"sheet":"Tables","index":11,"n_rows":76,"n_cols":113,"rows_kept":76,"cut":false,"hidden":true,"merged":[]}
[null,null,null,null,null,null,null,null,null,null,null,null,null,null,null,null,null,null,null,null,null,null,null,null,null,null,null,null,null,null,null,null,null,null,null,null,null,null,null,null,null,null,"Colors for chart series",null,null,null,null,"Chart types",null,null,null,"State Table",null,null,null,"API Table",null,null,null,null,null,null,null,null,null,null,null,null,null,null,null,null,"Event Type Table",null,null,null,null,null,"List",null,"Units Table","Field units",null,null,null,"Events Combobox Values",null,null,"UCI calendar temp path file",null,"lb",null,"For Text Box use",null,null,null,"List for Analytics ComboBoxes",null,"Analytics Fields ComboBoxes Values",null,null,"Analytics Chart and Calculation per field",null,null,null,"For Text Box use",null,"For Text Box use",null,"For Queries - M code use",null,"App status Saved Before Close"]
[]
[null,null,null,null,null,null,null,null,null,null,null,null,null,null,null,null,null,null,null,null,null,null,null,null,null,null,null,null,null,null,null,null,null,null,null,null,null,null,null,null,null,null,"Period","Rcode","Gcode","Bcode",null,"Value","Name","Description",null,"State","Abbreviation","Country",null,"Database","URL","Method","Header Type","Header Value","Event Type","Parameter1","Parameter2","Parameter3","Parameter4","Parameter5","Date","EndDate","Query","Source","QueryName",null,"Type","BikeReg","UCI","OLD-UCI","USA Cycling",null,"Season",null,"Field","Unit","Legend","Format",null,"Box Name","Value",null,"Path",null,"Weight Units",null,{"$f":"_xlfn.UNICHAR(9654)","v":"▶"},null,null,null,"UploadQueryFields",null,"Box Name","Value",null,"Field","Calculation","ChartType",null,{"$f":"_xlfn.UNICHAR(HEX2DEC(\"1F4C2\"))","v":"📂"},null,null,null,"Value"]
[null,null,null,null,null,null,null,null,null,null,null,null,null,null,null,null,null,null,null,null,null,null,null,null,null,null,null,null,null,null,null,null,null,null,null,null,null,null,null,null,null,null,{"$f":"INDEX(Setup!$B$16:$B$23,ROW()-3)","v":"Race"},0,255,0,null,-4098,"xl3DArea","3D Area",null,"ALABAMA","AL","UNITED STATES OF AMERICA",null,"BikeReg",{"$f":"\"https://www.bikereg.com/api/\"","v":"https://www.bikereg.com/api/"},"Get",null,null,{"$f":"VLOOKUP(EventType,EventTypeTable[],MATCH(APITable[[#This Row],[Database]],EventTypeTable[#Headers],0),FALSE)","v":"Road Race"},"search?","states","eventtype","year",null,{"$f":"IF(APITable[[#This Row],[Parameter4]]=\"year\",SeasonSearch,\"11%2F1%2F\"&SeasonSearch-1)","v":"2022"},{"$f":"\"10%2F31%2F\"&SeasonSearch","v":"10%2F31%2F2022"},{"$f":"IF(APITable[[#This Row],[Database]]=\"UCI\",APITable[[#This Row],[Parameter1]]&\"?\"&APITable[[#This Row],[Parameter2]]&\"=\"&APITable[[#This Row],[Event Type]]&\"&\"&APITable[[#This Row],[Parameter4]]&\"=\"&APITable[[#This Row],[Date]],IF(APITable[[#This Row],[Database]]=\"BikeReg\",APITable[[#This Row],[Parameter1]]&APITable[[#This Row],[Parameter2]]&\"=\"&StateAbbreviation&\"&\"&APITable[[#This Row],[Parameter3]]&\"=\"&APITable[[#This Row],[Event Type]]&\"&\"&APITable[[#This Row],[Parameter4]]&\"=\"&APITable[[#This Row],[Date]],APITable[[#This Row],[Parameter1]]&APITable[[#This Row],[Event Type]]&\"&\"&APITable[[#This Row],[Parameter2]]&APITable[[#This Row],[Date]]&\"&\"&APITable[[#This Row],[Parameter3]]&APITable[[#This Row],[EndDate]]&\"&\"&APITable[[#This Row],[Parameter4]]&StateAbbreviation))","v":"search?states=NY&eventtype=Road Race&year=2022"},{"$f":"APITable[[#This Row],[URL]]&APITable[[#This Row],[Query]]","v":"https://www.bikereg.com/api/search?states=NY&eventtype=Road Race&year=2022"},"BikeRegQuery",null,"Road","Road Race","ROA","ROA",19,null,{"$f":"YEAR(TodayDate)-2","v":2020},null,"Activities","Activities","Activities / Week","#,###",null,"APIBox","USA Cycling",null,"C:\\Users\\jorge\\AppData\\Local\\Temp\\UCIMTB.xlsx",null,"lb",null,null,null,"lb",null,"Activities",null,"Pivot1ComboBox1","Activity Calories",null,"Activities",-4157,51,null,{"$f":"_xlfn.UNICHAR(HEX2DEC(\"2b61\"))","v":"⭡"},null,{"$f":"UploadURL[Value]","v":" "},null," ",null,"AppVariable","Status"]
[null,null,null,null,null,null,null,null,null,null,null,null,null,null,null,null,null,null,null,null,null,null,null,null,null,null,null,null,null,null,null,null,null,null,null,null,null,null,null,null,null,null,{"$f":"INDEX(Setup!$B$16:$B$23,ROW()-3)","v":"Peak"},59,89,152,null,78,"xl3DAreaStacked","3D Stacked Area",null,"ALASKA","AK","UNITED STATES OF AMERICA",null,"USA Cycling",{"$f":"\"https://www.usacycling.org/API/events-search/\"","v":"https://www.usacycling.org/API/events-search/"},"Get",null,null,{"$f":"VLOOKUP(EventType,EventTypeTable[],MATCH(APITable[[#This Row],[Database]],EventTypeTable[#Headers],0),FALSE)","v":19},"?name=&discipline=","sub_disciplines=&event_types=&special_calendars=&date_start=","date_end=","location=&state=","&city=&zip=",{"$f":"IF(APITable[[#This Row],[Parameter4]]=\"year\",SeasonSearch,\"11%2F1%2F\"&SeasonSearch-1)","v":"11%2F1%2F2021"},{"$f":"\"10%2F31%2F\"&SeasonSearch","v":"10%2F31%2F2022"},{"$f":"IF(APITable[[#This Row],[Database]]=\"UCI\",APITable[[#This Row],[Parameter1]]&\"?\"&APITable[[#This Row],[Parameter2]]&\"=\"&APITable[[#This Row],[Event Type]]&\"&\"&APITable[[#This Row],[Parameter4]]&\"=\"&APITable[[#This Row],[Date]],IF(APITable[[#This Row],[Database]]=\"BikeReg\",APITable[[#This Row],[Parameter1]]&APITable[[#This Row],[Parameter2]]&\"=\"&StateAbbreviation&\"&\"&APITable[[#This Row],[Parameter3]]&\"=\"&APITable[[#This Row],[Event Type]]&\"&\"&APITable[[#This Row],[Parameter4]]&\"=\"&APITable[[#This Row],[Date]],APITable[[#This Row],[Parameter1]]&APITable[[#This Row],[Event Type]]&\"&\"&APITable[[#This Row],[Parameter2]]&APITable[[#This Row],[Date]]&\"&\"&APITable[[#This Row],[Parameter3]]&APITable[[#This Row],[EndDate]]&\"&\"&APITable[[#This Row],[Parameter4]]&StateAbbreviation))","v":"?name=&discipline=19&sub_disciplines=&event_types=&special_calendars=&date_start=11%2F1%2F2021&date_end=10%2F31%2F2022&location=&state=NY"},{"$f":"APITable[[#This Row],[URL]]&APITable[[#This Row],[Query]]","v":"https://www.usacycling.org/API/events-search/?name=&discipline=19&sub_disciplines=&event_types=&special_calendars=&date_start=11%2F1%2F2021&date_end=10%2F31%2F2022&location=&state=NY"},"USACyclingQuery",null,"Mountain bike","Off Road","MTB","MTB",21,null,{"$f":"YEAR(TodayDate)-1","v":2021},null,"Activity Calories",{"$f":"IFERROR(INDEX(INDIRECT(\"UploadQuery[Calories Unit]\"),MATCH(TRUE,INDEX((INDIRECT(\"UploadQuery[Calories Unit]\")<>\"\"),),0)),\"C\")","v":"C"},"Calories","#,###",null,"EventTypeBox","Road",null,null,null,"kg",null,null,null,"kg",null,"Activity Calories",null,"Pivot1ComboBox2","Cal/hour",null,"Activity Calories",-4157,51,null,{"$f":"_xlfn.UNICHAR(HEX2DEC(\"2b63\"))","v":"⭣"},null,null,null,null,null,"TargetsNeedRefresh",false]
[null,null,null,null,null,null,null,null,null,null,null,null,null,null,null,null,null,null,null,null,null,null,null,null,null,null,null,null,null,null,null,null,null,null,null,null,null,null,null,null,null,null,{"$f":"INDEX(Setup!$B$16:$B$23,ROW()-3)","v":"Build II"},210,31,52,null,79,"xl3DAreaStacked100","100% Stacked Area",null,"ARIZONA","AZ","UNITED STATES OF AMERICA",null,"UCI",{"$f":"\"https://www.uci.org/api/calendar/\"","v":"https://www.uci.org/api/calendar/"},"Get",null,null,{"$f":"VLOOKUP(EventType,EventTypeTable[],MATCH(APITable[[#This Row],[Database]],EventTypeTable[#Headers],0),FALSE)","v":"ROA"},"past","discipline",null,"year",null,{"$f":"IF(APITable[[#This Row],[Parameter4]]=\"year\",SeasonSearch,\"11%2F1%2F\"&SeasonSearch-1)","v":"2022"},null,{"$f":"IF(APITable[[#This Row],[Database]]=\"UCI\",APITable[[#This Row],[Parameter1]]&\"?\"&APITable[[#This Row],[Parameter2]]&\"=\"&APITable[[#This Row],[Event Type]]&\"&\"&APITable[[#This Row],[Parameter4]]&\"=\"&APITable[[#This Row],[Date]],IF(APITable[[#This Row],[Database]]=\"BikeReg\",APITable[[#This Row],[Parameter1]]&APITable[[#This Row],[Parameter2]]&\"=\"&StateAbbreviation&\"&\"&APITable[[#This Row],[Parameter3]]&\"=\"&APITable[[#This Row],[Event Type]]&\"&\"&APITable[[#This Row],[Parameter4]]&\"=\"&APITable[[#This Row],[Date]],APITable[[#This Row],[Parameter1]]&APITable[[#This Row],[Event Type]]&\"&\"&APITable[[#This Row],[Parameter2]]&APITable[[#This Row],[Date]]&\"&\"&APITable[[#This Row],[Parameter3]]&APITable[[#This Row],[EndDate]]&\"&\"&APITable[[#This Row],[Parameter4]]&StateAbbreviation))","v":"past?discipline=ROA&year=2022"},{"$f":"APITable[[#This Row],[URL]]&APITable[[#This Row],[Query]]","v":"https://www.uci.org/api/calendar/past?discipline=ROA&year=2022"},"UCIQuery",null,"Cyclo-cross","Cyclocross","CRO","CRO",23,null,{"$f":"YEAR(TodayDate)","v":2022},null,"Activity Time","Hrs","Hours / Week","[hh]:mm",null,"StateBox","NEW YORK",null,null,null,null,null,null,null,null,null,"Activity Time",null,"Pivot2ComboBox1","Speed",null,"Activity Time",-4157,51,null,null,null,null,null,null,null,"DashboardNeedRefresh",false]
[null,null,null,null,null,null,null,null,null,null,null,null,null,null,null,null,null,null,null,null,null,null,null,null,null,null,null,null,null,null,null,null,null,null,null,null,null,null,null,null,null,null,{"$f":"INDEX(Setup!$B$16:$B$23,ROW()-3)","v":"Build I"},166,31,52,null,60,"xl3DBarClustered","3D Clustered Bar",null,"ARKANSAS","AR","UNITED STATES OF AMERICA",null,null,null,null,null,null,null,null,null,null,null,null,null,null,null,null,null,null,"Track","Track","PIS","PIS",20,null,{"$f":"YEAR(TodayDate)+1","v":2023},null,"Actual Hrs2","Hrs","Hours / Week","[hh]:mm",null,"StateAbbreviation",{"$f":"VLOOKUP(StateSearch,StateTable[],2,FALSE)","v":"NY"},null,null,null,null,null,null,null,null,null,"Bike Cadence",null,"Pivot2ComboBox2","Cal/hour",null,"Bike Cadence",-4106,4,null,null,null,null,null,null,null,"CalendarChartNeedReset",true]
[null,null,null,null,null,null,null,null,null,null,null,null,null,null,null,null,null,null,null,null,null,null,null,null,null,null,null,null,null,null,null,null,null,null,null,null,null,null,null,null,null,null,{"$f":"INDEX(Setup!$B$16:$B$23,ROW()-3)","v":"Base III"},255,170,100,null,61,"xl3DBarStacked","3D Stacked Bar",null,"CALIFORNIA","CA","UNITED STATES OF AMERICA",null,null,null,null,null,null,null,null,null,null,null,null,null,null,null,null,null,null,null,null,null,null,null,null,null,null,"Bike Cadence",{"$f":"IFERROR(INDEX(INDIRECT(\"UploadQuery[Cadence Unit]\"),MATCH(TRUE,INDEX((INDIRECT(\"UploadQuery[Cadence Unit]\")<>\"\"),),0)),\"rpm\")","v":"rpm"},{"$f":"IFERROR(INDEX(INDIRECT(\"UploadQuery[Cadence Unit]\"),MATCH(TRUE,INDEX((INDIRECT(\"UploadQuery[Cadence Unit]\")<>\"\"),),0)),\"rpm\")","v":"rpm"},0,null,"SeasonBox","2022",null,null,null,null,null,null,null,null,null,"Cal/hour",null,"Pivot3ComboBox1","Hrs/Activity",null,"Cal/hour",-4106,4,null,null,null,null,null,null,null,"TargetsChartNeedReset",true]
[null,null,null,null,null,null,null,null,null,null,null,null,null,null,null,null,null,null,null,null,null,null,null,null,null,null,null,null,null,null,null,null,null,null,null,null,null,null,null,null,null,null,{"$f":"INDEX(Setup!$B$16:$B$23,ROW()-3)","v":"Base II"},255,128,80,null,62,"xl3DBarStacked100","3D 100% Stacked Bar",null,"COLORADO","CO","UNITED STATES OF AMERICA",null,null,null,null,null,null,null,null,null,null,null,null,null,null,null,null,null,null,null,null,null,null,null,null,null,null,"Cadence",{"$f":"IFERROR(INDEX(INDIRECT(\"UploadQuery[Cadence Unit]\"),MATCH(TRUE,INDEX((INDIRECT(\"UploadQuery[Cadence Unit]\")<>\"\"),),0)),\"rpm\")","v":"rpm"},{"$f":"IFERROR(INDEX(INDIRECT(\"UploadQuery[Cadence Unit]\"),MATCH(TRUE,INDEX((INDIRECT(\"UploadQuery[Cadence Unit]\")<>\"\"),),0)),\"rpm\")","v":"rpm"},0,null,null,null,null,null,null,null,null,null,null,null,null,"Climber Index",null,"Pivot3ComboBox2","Cal/hour",null,"Climber Index",-4106,4,null,null,null,null,null,null,null,"DashboardChartNeedReset",true]
[null,null,null,null,null,null,null,null,null,null,null,null,null,null,null,null,null,null,null,null,null,null,null,null,null,null,null,null,null,null,null,null,null,null,null,null,null,null,null,null,null,null,{"$f":"INDEX(Setup!$B$16:$B$23,ROW()-3)","v":"Base I"},255,128,0,null,-4100,"xl3DColumn","3D Column",null,"CONNECTICUT","CT","UNITED STATES OF AMERICA",null,"OLD-UCI",{"$f":"\"https://www.uci.org/web-interface/Base/ExportExcelCalendar\"","v":"https://www.uci.org/web-interface/Base/ExportExcelCalendar"},"Post","Content-Type","application/x-www-form-urlencoded",{"$f":"VLOOKUP(EventType,EventTypeTable[],MATCH(APITable[[#This Row],[Database]],EventTypeTable[#Headers],0),FALSE)","v":{"$error":"#VALUE!"}},null,null,null,null,null,{"$f":"IF(APITable[[#This Row],[Parameter4]]=\"year\",SeasonSearch,\"11%2F1%2F\"&SeasonSearch-1)","v":{"$error":"#VALUE!"}},{"$f":"\"10%2F31%2F\"&SeasonSearch","v":"10%2F31%2F2022"},{"$f":"IF(APITable[[#This Row],[Database]]=\"UCI\",APITable[[#This Row],[Parameter1]]&\"?\"&APITable[[#This Row],[Parameter2]]&\"=\"&APITable[[#This Row],[Event Type]]&\"&\"&APITable[[#This Row],[Parameter4]]&\"=\"&APITable[[#This Row],[Date]],IF(APITable[[#This Row],[Database]]=\"BikeReg\",APITable[[#This Row],[Parameter1]]&APITable[[#This Row],[Parameter2]]&\"=\"&StateAbbreviation&\"&\"&APITable[[#This Row],[Parameter3]]&\"=\"&APITable[[#This Row],[Event Type]]&\"&\"&APITable[[#This Row],[Parameter4]]&\"=\"&APITable[[#This Row],[Date]],APITable[[#This Row],[Parameter1]]&APITable[[#This Row],[Event Type]]&\"&\"&APITable[[#This Row],[Parameter2]]&APITable[[#This Row],[Date]]&\"&\"&APITable[[#This Row],[Parameter3]]&APITable[[#This Row],[EndDate]]&\"&\"&APITable[[#This Row],[Parameter4]]&StateAbbreviation&APITable[[#This Row],[Parameter5]]))","v":{"$error":"#VALUE!"}},{"$f":"APITable[[#This Row],[URL]]&APITable[[#This Row],[Query]]","v":{"$error":"#VALUE!"}},"UCIQuery",null,null,null,null,null,null,null,null,null,"Cal.",{"$f":"IFERROR(INDEX(INDIRECT(\"UploadQuery[Calories Unit]\"),MATCH(TRUE,INDEX((INDIRECT(\"UploadQuery[Calories Unit]\")<>\"\"),),0)),\"C\")","v":"C"},"Calories","#,###",null,null,null,null,null,null,null,null,null,null,null,null,"Distance",null,"Pivot4ComboBox1","Elev Gain",null,"Distance",-4157,51,null,null,null,null,null,null,null,"PivotAnalyticsNeedRefresh",true]
[null,null,null,null,null,null,null,null,null,null,null,null,null,null,null,null,null,null,null,null,null,null,null,null,null,null,null,null,null,null,null,null,null,null,null,null,null,null,null,null,null,null,{"$f":"INDEX(Setup!$B$16:$B$23,ROW()-3)","v":"Prep."},255,200,0,null,54,"xl3DColumnClustered","3D Clustered Column",null,"DELAWARE","DE","UNITED STATES OF AMERICA",null,null,null,null,null,null,null,null,null,null,null,null,null,null,null,null,null,null,null,null,null,null,null,null,null,null,"Cal. Goal",{"$f":"IFERROR(INDEX(INDIRECT(\"UploadQuery[Calories Unit]\"),MATCH(TRUE,INDEX((INDIRECT(\"UploadQuery[Calories Unit]\")<>\"\"),),0)),\"C\")","v":"C"},"Calories","#,###",null,null,null,null,null,null,null,null,null,null,null,null,"Elev Gain",null,"Pivot4ComboBox2",null,null,"Elev Gain",-4157,1,null,null,null,null,null,null,null,"PivotPlanNeedRefresh",true]
[null,null,null,null,null,null,null,null,null,null,null,null,null,null,null,null,null,null,null,null,null,null,null,null,null,null,null,null,null,null,null,null,null,null,null,null,null,null,null,null,null,null,"Sum of Cal.",255,128,0,null,55,"xl3DColumnStacked","3D Stacked Column",null,"FLORIDA","FL","UNITED STATES OF AMERICA",null,null,null,null,null,null,null,null,null,null,null,null,null,null,null,null,null,null,null,null,null,null,null,null,null,null,"Cal. Goal Chart",{"$f":"IFERROR(INDEX(INDIRECT(\"UploadQuery[Calories Unit]\"),MATCH(TRUE,INDEX((INDIRECT(\"UploadQuery[Calories Unit]\")<>\"\"),),0)),\"C\")","v":"C"},"Calories","#,###",null,null,null,null,null,null,null,null,null,null,null,null,"Heart Rate",null,null,null,null,"Heart Rate",-4106,4,null,null,null,null,null,null,null,"WeightDashboardChartNeedReset",false]
[null,null,null,null,null,null,null,null,null,null,null,null,null,null,null,null,null,null,null,null,null,null,null,null,null,null,null,null,null,null,null,null,null,null,null,null,null,null,null,null,null,null,"Sum of Cal. Goal Chart",166,166,166,null,56,"xl3DColumnStacked100","3D 100% Stacked Column",null,"GEORGIA","GA","UNITED STATES OF AMERICA",null,null,null,null,null,null,null,null,null,null,null,null,null,null,null,null,null,null,null,null,null,null,null,null,null,null,"Cal/hour",{"$f":"UnitsTable[[#This Row],[Field]]","v":"Cal/hour"},{"$f":"UnitsTable[[#This Row],[Field]]","v":"Cal/hour"},0,null,null,null,null,null,null,null,null,null,null,null,null,"Hrs/Activity",null,null,null,null,"Hrs/Activity",-4106,4,null,null,null,null,null,null,null,"WeightTargetChartNeedReset",false]
[null,null,null,null,null,null,null,null,null,null,null,null,null,null,null,null,null,null,null,null,null,null,null,null,null,null,null,null,null,null,null,null,null,null,null,null,null,null,null,null,null,null,"Sum of Weight",0,255,0,null,-4101,"xl3DLine","3D Line",null,"HAWAII","HI","UNITED STATES OF AMERICA",null,null,null,null,null,null,null,null,null,null,null,null,null,null,null,null,null,null,null,null,null,null,null,null,null,null,"Climber Index",{"$f":"UnitsTable[[#This Row],[Field]]","v":"Climber Index"},{"$f":"UnitsTable[[#This Row],[Field]]","v":"Climber Index"},0,null,null,null,null,null,null,null,null,null,null,null,null,"Power",null,null,null,null,"Power",-4106,4,null,null,null,null,null,null,null,"FavEventsQueryNeedRefresh",false]
[null,null,null,null,null,null,null,null,null,null,null,null,null,null,null,null,null,null,null,null,null,null,null,null,null,null,null,null,null,null,null,null,null,null,null,null,null,null,null,null,null,null,"Sum of Weight Goal",166,166,166,null,-4102,"xl3DPie","3D Pie",null,"IDAHO","ID","UNITED STATES OF AMERICA",null,null,null,null,null,null,null,null,null,null,null,null,null,null,null,null,null,null,null,null,null,null,null,null,null,null,"Distance",{"$f":"IFERROR(INDEX(INDIRECT(\"UploadQuery[Distance Unit]\"),MATCH(TRUE,INDEX((INDIRECT(\"UploadQuery[Distance Unit]\")<>\"\"),),0)),\"mi\")","v":"mi"},{"$f":"IFERROR(INDEX(INDIRECT(\"UploadQuery[Distance Unit]\"),MATCH(TRUE,INDEX((INDIRECT(\"UploadQuery[Distance Unit]\")<>\"\"),),0)),\"mi\")","v":"mi"},"#,###",null,null,null,null,null,null,null,null,null,null,null,null,"Speed",null,null,null,null,"Speed",-4106,4,null,null,null,null,null,null,null,"EventsDashboardQueryNeedRefresh",true]
[null,null,null,null,null,null,null,null,null,null,null,null,null,null,null,null,null,null,null,null,null,null,null,null,null,null,null,null,null,null,null,null,null,null,null,null,null,null,null,null,null,null,"Sum of HR",0,0,255,null,70,"xl3DPieExploded","Exploded 3D Pie",null,"ILLINOIS","IL","UNITED STATES OF AMERICA",null,null,null,null,null,null,null,null,null,null,null,null,null,null,null,null,null,null,null,null,null,null,null,null,null,null,"Elev Gain",{"$f":"IFERROR(INDEX(INDIRECT(\"UploadQuery[Elevation Unit]\"),MATCH(TRUE,INDEX((INDIRECT(\"UploadQuery[Elevation Unit]\")<>\"\"),),0)),\"ft\")","v":"ft"},{"$f":"IFERROR(INDEX(INDIRECT(\"UploadQuery[Elevation Unit]\"),MATCH(TRUE,INDEX((INDIRECT(\"UploadQuery[Elevation Unit]\")<>\"\"),),0)),\"ft\")","v":"ft"},"#,###"]
[null,null,null,null,null,null,null,null,null,null,null,null,null,null,null,null,null,null,null,null,null,null,null,null,null,null,null,null,null,null,null,null,null,null,null,null,null,null,null,null,null,null,"Sum of Speed",255,0,0,null,1,"xlArea","Area",null,"INDIANA","IN","UNITED STATES OF AMERICA",null,null,null,null,null,null,null,null,null,null,null,null,null,null,null,null,null,null,null,null,null,null,null,null,null,null,"Elevation",{"$f":"IFERROR(INDEX(INDIRECT(\"UploadQuery[Elevation Unit]\"),MATCH(TRUE,INDEX((INDIRECT(\"UploadQuery[Elevation Unit]\")<>\"\"),),0)),\"ft\")","v":"ft"},{"$f":"IFERROR(INDEX(INDIRECT(\"UploadQuery[Elevation Unit]\"),MATCH(TRUE,INDEX((INDIRECT(\"UploadQuery[Elevation Unit]\")<>\"\"),),0)),\"ft\")","v":"ft"},"#,###"]
[null,null,null,null,null,null,null,null,null,null,null,null,null,null,null,null,null,null,null,null,null,null,null,null,null,null,null,null,null,null,null,null,null,null,null,null,null,null,null,null,null,null,"Sum of Climber Index",225,104,75,null,76,"xlAreaStacked","Stacked Area",null,"IOWA","IA","UNITED STATES OF AMERICA",null,null,null,null,null,null,null,null,null,null,null,null,null,null,null,null,null,null,null,null,null,null,null,null,null,null,"Heart Rate",{"$f":"IFERROR(INDEX(INDIRECT(\"UploadQuery[Heart Rate Unit]\"),MATCH(TRUE,INDEX((INDIRECT(\"UploadQuery[Heart Rate Unit]\")<>\"\"),),0)),\"bpm\")","v":"bpm"},{"$f":"IFERROR(INDEX(INDIRECT(\"UploadQuery[Heart Rate Unit]\"),MATCH(TRUE,INDEX((INDIRECT(\"UploadQuery[Heart Rate Unit]\")<>\"\"),),0)),\"bpm\")","v":"bpm"},0]
[null,null,null,null,null,null,null,null,null,null,null,null,null,null,null,null,null,null,null,null,null,null,null,null,null,null,null,null,null,null,null,null,null,null,null,null,null,null,null,null,null,null,"Sum of Cal/hour",255,255,0,null,77,"xlAreaStacked100","100% Stacked Area",null,"KANSAS","KS","UNITED STATES OF AMERICA",null,null,null,null,null,null,null,null,null,null,null,null,null,null,null,null,null,null,null,null,null,null,null,null,null,null,"HR",{"$f":"IFERROR(INDEX(INDIRECT(\"UploadQuery[Heart Rate Unit]\"),MATCH(TRUE,INDEX((INDIRECT(\"UploadQuery[Heart Rate Unit]\")<>\"\"),),0)),\"bpm\")","v":"bpm"},{"$f":"IFERROR(INDEX(INDIRECT(\"UploadQuery[Heart Rate Unit]\"),MATCH(TRUE,INDEX((INDIRECT(\"UploadQuery[Heart Rate Unit]\")<>\"\"),),0)),\"bpm\")","v":"bpm"},0]
[null,null,null,null,null,null,null,null,null,null,null,null,null,null,null,null,null,null,null,null,null,null,null,null,null,null,null,null,null,null,null,null,null,null,null,null,null,null,null,null,null,null,"Sum of PlanH Chart",166,166,166,null,57,"xlBarClustered","Clustered Bar",null,"KENTUCKY","KY","UNITED STATES OF AMERICA",null,null,null,null,null,null,null,null,null,null,null,null,null,null,null,null,null,null,null,null,null,null,null,null,null,null,"HR Goal",{"$f":"IFERROR(INDEX(INDIRECT(\"UploadQuery[Heart Rate Unit]\"),MATCH(TRUE,INDEX((INDIRECT(\"UploadQuery[Heart Rate Unit]\")<>\"\"),),0)),\"bpm\")","v":"bpm"},{"$f":"IFERROR(INDEX(INDIRECT(\"UploadQuery[Heart Rate Unit]\"),MATCH(TRUE,INDEX((INDIRECT(\"UploadQuery[Heart Rate Unit]\")<>\"\"),),0)),\"bpm\")","v":"bpm"},0]
[null,null,null,null,null,null,null,null,null,null,null,null,null,null,null,null,null,null,null,null,null,null,null,null,null,null,null,null,null,null,null,null,null,null,null,null,null,null,null,null,null,null,"Sum of Actual Hrs",125,255,125,null,71,"xlBarOfPie","Bar of Pie",null,"LOUISIANA","LA","UNITED STATES OF AMERICA",null,null,null,null,null,null,null,null,null,null,null,null,null,null,null,null,null,null,null,null,null,null,null,null,null,null,"Hrs/Activity","Hrs","Hours / Activity","[hh]:mm"]
[null,null,null,null,null,null,null,null,null,null,null,null,null,null,null,null,null,null,null,null,null,null,null,null,null,null,null,null,null,null,null,null,null,null,null,null,null,null,null,null,null,null,"Sum of Today Week",null,null,null,null,58,"xlBarStacked","Stacked Bar",null,"MAINE","ME","UNITED STATES OF AMERICA",null,null,null,null,null,null,null,null,null,null,null,null,null,null,null,null,null,null,null,null,null,null,null,null,null,null,{"$f":"WeightUnit","v":"lb"},{"$f":"UnitsTable[[#This Row],[Field]]","v":"lb"},{"$f":"UnitsTable[[#This Row],[Unit]]","v":"lb"},{"$f":"\"0.0\"","v":"0.0"}]
[null,null,null,null,null,null,null,null,null,null,null,null,null,null,null,null,null,null,null,null,null,null,null,null,null,null,null,null,null,null,null,null,null,null,null,null,null,null,null,null,null,null,"Goal",166,166,166,null,59,"xlBarStacked100","100% Stacked Bar",null,"MARYLAND","MD","UNITED STATES OF AMERICA",null,null,null,null,null,null,null,null,null,null,null,null,null,null,null,null,null,null,null,null,null,null,null,null,null,null,"Plan. Hrs Chart","Hrs","Hours / Week","[hh]:mm"]
[null,null,null,null,null,null,null,null,null,null,null,null,null,null,null,null,null,null,null,null,null,null,null,null,null,null,null,null,null,null,null,null,null,null,null,null,null,null,null,null,null,null,"Sum of HR Goal",166,166,166,null,15,"xlBubble","Bubble",null,"MASSACHUSETTS","MA","UNITED STATES OF AMERICA",null,null,null,null,null,null,null,null,null,null,null,null,null,null,null,null,null,null,null,null,null,null,null,null,null,null,"Plan. Hrs2","Hrs","Hours / Week","[hh]:mm"]
[null,null,null,null,null,null,null,null,null,null,null,null,null,null,null,null,null,null,null,null,null,null,null,null,null,null,null,null,null,null,null,null,null,null,null,null,null,null,null,null,null,null,"Sum of Power",255,0,0,null,87,"xlBubble3DEffect","Bubble with 3D effects",null,"MICHIGAN","MI","UNITED STATES OF AMERICA",null,null,null,null,null,null,null,null,null,null,null,null,null,null,null,null,null,null,null,null,null,null,null,null,null,null,"Power",{"$f":"IFERROR(INDEX(INDIRECT(\"UploadQuery[Power Unit]\"),MATCH(TRUE,INDEX((INDIRECT(\"UploadQuery[Power Unit]\")<>\"\"),),0)),\"W\")","v":"W"},"Watts","#,###"]
[null,null,null,null,null,null,null,null,null,null,null,null,null,null,null,null,null,null,null,null,null,null,null,null,null,null,null,null,null,null,null,null,null,null,null,null,null,null,null,null,null,null,"Sum of Power Goal",166,166,166,null,51,"xlColumnClustered","Clustered Column",null,"MINNESOTA","MN","UNITED STATES OF AMERICA",null,null,null,null,null,null,null,null,null,null,null,null,null,null,null,null,null,null,null,null,null,null,null,null,null,null,"Power Goal",{"$f":"IFERROR(INDEX(INDIRECT(\"UploadQuery[Power Unit]\"),MATCH(TRUE,INDEX((INDIRECT(\"UploadQuery[Power Unit]\")<>\"\"),),0)),\"W\")","v":"W"},"Watts","#,###"]
[null,null,null,null,null,null,null,null,null,null,null,null,null,null,null,null,null,null,null,null,null,null,null,null,null,null,null,null,null,null,null,null,null,null,null,null,null,null,null,null,null,null,"Cal.",255,128,0,null,52,"xlColumnStacked","Stacked Column",null,"MISSISSIPPI","MS","UNITED STATES OF AMERICA",null,null,null,null,null,null,null,null,null,null,null,null,null,null,null,null,null,null,null,null,null,null,null,null,null,null,"Speed",{"$f":"IFERROR(INDEX(INDIRECT(\"UploadQuery[Speed Unit]\"),MATCH(TRUE,INDEX((INDIRECT(\"UploadQuery[Speed Unit]\")<>\"\"),),0)),\"mph\")","v":"mph"},{"$f":"IFERROR(INDEX(INDIRECT(\"UploadQuery[Speed Unit]\"),MATCH(TRUE,INDEX((INDIRECT(\"UploadQuery[Speed Unit]\")<>\"\"),),0)),\"mph\")","v":"mph"},{"$f":"\"0.0\"","v":"0.0"}]
[null,null,null,null,null,null,null,null,null,null,null,null,null,null,null,null,null,null,null,null,null,null,null,null,null,null,null,null,null,null,null,null,null,null,null,null,null,null,null,null,null,null,"Weight",0,255,0,null,53,"xlColumnStacked100","100% Stacked Column",null,"MISSOURI","MO","UNITED STATES OF AMERICA",null,null,null,null,null,null,null,null,null,null,null,null,null,null,null,null,null,null,null,null,null,null,null,null,null,null,"Today Week","Hrs","Hours / Week","[hh]:mm"]
[null,null,null,null,null,null,null,null,null,null,null,null,null,null,null,null,null,null,null,null,null,null,null,null,null,null,null,null,null,null,null,null,null,null,null,null,null,null,null,null,null,null,"HR",0,0,255,null,102,"xlConeBarClustered","Clustered Cone Bar",null,"MONTANA","MT","UNITED STATES OF AMERICA",null,null,null,null,null,null,null,null,null,null,null,null,null,null,null,null,null,null,null,null,null,null,null,null,null,null,"Weight",{"$f":"WeightUnit","v":"lb"},{"$f":"WeightUnit","v":"lb"},{"$f":"\"0.0\"","v":"0.0"}]
[null,null,null,null,null,null,null,null,null,null,null,null,null,null,null,null,null,null,null,null,null,null,null,null,null,null,null,null,null,null,null,null,null,null,null,null,null,null,null,null,null,null,"Speed",255,0,0,null,103,"xlConeBarStacked","Stacked Cone Bar",null,"NEBRASKA","NE","UNITED STATES OF AMERICA",null,null,null,null,null,null,null,null,null,null,null,null,null,null,null,null,null,null,null,null,null,null,null,null,null,null,"Weight Goal",{"$f":"WeightUnit","v":"lb"},{"$f":"WeightUnit","v":"lb"},{"$f":"\"0.0\"","v":"0.0"}]
[null,null,null,null,null,null,null,null,null,null,null,null,null,null,null,null,null,null,null,null,null,null,null,null,null,null,null,null,null,null,null,null,null,null,null,null,null,null,null,null,null,null,"Climber Index",225,104,75,null,104,"xlConeBarStacked100","100% Stacked Cone Bar",null,"NEVADA","NV","UNITED STATES OF AMERICA"]
[null,null,null,null,null,null,null,null,null,null,null,null,null,null,null,null,null,null,null,null,null,null,null,null,null,null,null,null,null,null,null,null,null,null,null,null,null,null,null,null,null,null,"Cal/hour",255,255,0,null,105,"xlConeCol","3D Cone Column",null,"NEW HAMPSHIRE","NH","UNITED STATES OF AMERICA"]
[null,null,null,null,null,null,null,null,null,null,null,null,null,null,null,null,null,null,null,null,null,null,null,null,null,null,null,null,null,null,null,null,null,null,null,null,null,null,null,null,null,null,"PlanH Chart",166,166,166,null,99,"xlConeColClustered","Clustered Cone Column",null,"NEW JERSEY","NJ","UNITED STATES OF AMERICA"]
[null,null,null,null,null,null,null,null,null,null,null,null,null,null,null,null,null,null,null,null,null,null,null,null,null,null,null,null,null,null,null,null,null,null,null,null,null,null,null,null,null,null,"Activities",null,null,null,null,100,"xlConeColStacked","Stacked Cone Column",null,"NEW MEXICO","NM","UNITED STATES OF AMERICA"]
[null,null,null,null,null,null,null,null,null,null,null,null,null,null,null,null,null,null,null,null,null,null,null,null,null,null,null,null,null,null,null,null,null,null,null,null,null,null,null,null,null,null,"Activity Time",null,null,null,null,101,"xlConeColStacked100","100% Stacked Cone Column",null,"NEW YORK","NY","UNITED STATES OF AMERICA"]
[null,null,null,null,null,null,null,null,null,null,null,null,null,null,null,null,null,null,null,null,null,null,null,null,null,null,null,null,null,null,null,null,null,null,null,null,null,null,null,null,null,null,"Actual Hrs",null,null,null,null,95,"xlCylinderBarClustered","Clustered Cylinder Bar",null,"NORTH CAROLINA","NC","UNITED STATES OF AMERICA"]
[null,null,null,null,null,null,null,null,null,null,null,null,null,null,null,null,null,null,null,null,null,null,null,null,null,null,null,null,null,null,null,null,null,null,null,null,null,null,null,null,null,null,"Bike Cadence",null,null,null,null,96,"xlCylinderBarStacked","Stacked Cylinder Bar",null,"NORTH DAKOTA","ND","UNITED STATES OF AMERICA"]
[null,null,null,null,null,null,null,null,null,null,null,null,null,null,null,null,null,null,null,null,null,null,null,null,null,null,null,null,null,null,null,null,null,null,null,null,null,null,null,null,null,null,"Goal",166,166,166,null,97,"xlCylinderBarStacked100","100% Stacked Cylinder Bar",null,"OHIO","OH","UNITED STATES OF AMERICA"]
[null,null,null,null,null,null,null,null,null,null,null,null,null,null,null,null,null,null,null,null,null,null,null,null,null,null,null,null,null,null,null,null,null,null,null,null,null,null,null,null,null,null,"Climber Index",null,null,null,null,98,"xlCylinderCol","3D Cylinder Column",null,"OKLAHOMA","OK","UNITED STATES OF AMERICA"]
[null,null,null,null,null,null,null,null,null,null,null,null,null,null,null,null,null,null,null,null,null,null,null,null,null,null,null,null,null,null,null,null,null,null,null,null,null,null,null,null,null,null,"Power",255,0,0,null,92,"xlCylinderColClustered","Clustered Cone Column",null,"OREGON","OR","UNITED STATES OF AMERICA"]
[null,null,null,null,null,null,null,null,null,null,null,null,null,null,null,null,null,null,null,null,null,null,null,null,null,null,null,null,null,null,null,null,null,null,null,null,null,null,null,null,null,null,"Distance",null,null,null,null,93,"xlCylinderColStacked","Stacked Cone Column",null,"PENNSYLVANIA","PA","UNITED STATES OF AMERICA"]
[null,null,null,null,null,null,null,null,null,null,null,null,null,null,null,null,null,null,null,null,null,null,null,null,null,null,null,null,null,null,null,null,null,null,null,null,null,null,null,null,null,null,"Hrs/Activity",null,null,null,null,94,"xlCylinderColStacked100","100% Stacked Cylinder Column",null,"RHODE ISLAND","RI","UNITED STATES OF AMERICA"]
[null,null,null,null,null,null,null,null,null,null,null,null,null,null,null,null,null,null,null,null,null,null,null,null,null,null,null,null,null,null,null,null,null,null,null,null,null,null,null,null,null,null,"Elev Gain",null,null,null,null,-4120,"xlDoughnut","Doughnut",null,"SOUTH CAROLINA","SC","UNITED STATES OF AMERICA"]
[null,null,null,null,null,null,null,null,null,null,null,null,null,null,null,null,null,null,null,null,null,null,null,null,null,null,null,null,null,null,null,null,null,null,null,null,null,null,null,null,null,null,null,null,null,null,null,80,"xlDoughnutExploded","Exploded Doughnut",null,"SOUTH DAKOTA","SD","UNITED STATES OF AMERICA"]
[null,null,null,null,null,null,null,null,null,null,null,null,null,null,null,null,null,null,null,null,null,null,null,null,null,null,null,null,null,null,null,null,null,null,null,null,null,null,null,null,null,null,null,null,null,null,null,4,"xlLine","Line",null,"TENNESSEE","TN","UNITED STATES OF AMERICA"]
[null,null,null,null,null,null,null,null,null,null,null,null,null,null,null,null,null,null,null,null,null,null,null,null,null,null,null,null,null,null,null,null,null,null,null,null,null,null,null,null,null,null,null,null,null,null,null,65,"xlLineMarkers","Line with Markers",null,"TEXAS","TX","UNITED STATES OF AMERICA"]
[null,null,null,null,null,null,null,null,null,null,null,null,null,null,null,null,null,null,null,null,null,null,null,null,null,null,null,null,null,null,null,null,null,null,null,null,null,null,null,null,null,null,null,null,null,null,null,66,"xlLineMarkersStacked","Stacked Line with Markers",null,"UTAH","UT","UNITED STATES OF AMERICA"]
[null,null,null,null,null,null,null,null,null,null,null,null,null,null,null,null,null,null,null,null,null,null,null,null,null,null,null,null,null,null,null,null,null,null,null,null,null,null,null,null,null,null,null,null,null,null,null,67,"xlLineMarkersStacked100","100% Stacked Line with Markers",null,"VERMONT","VT","UNITED STATES OF AMERICA"]
[null,null,null,null,null,null,null,null,null,null,null,null,null,null,null,null,null,null,null,null,null,null,null,null,null,null,null,null,null,null,null,null,null,null,null,null,null,null,null,null,null,null,null,null,null,null,null,63,"xlLineStacked","Stacked Line",null,"VIRGINIA","VA","UNITED STATES OF AMERICA"]
[null,null,null,null,null,null,null,null,null,null,null,null,null,null,null,null,null,null,null,null,null,null,null,null,null,null,null,null,null,null,null,null,null,null,null,null,null,null,null,null,null,null,null,null,null,null,null,64,"xlLineStacked100","100% Stacked Line",null,"WASHINGTON","WA","UNITED STATES OF AMERICA"]
[null,null,null,null,null,null,null,null,null,null,null,null,null,null,null,null,null,null,null,null,null,null,null,null,null,null,null,null,null,null,null,null,null,null,null,null,null,null,null,null,null,null,null,null,null,null,null,5,"xlPie","Pie",null,"WEST VIRGINIA","WV","UNITED STATES OF AMERICA"]
[null,null,null,null,null,null,null,null,null,null,null,null,null,null,null,null,null,null,null,null,null,null,null,null,null,null,null,null,null,null,null,null,null,null,null,null,null,null,null,null,null,null,null,null,null,null,null,69,"xlPieExploded","Exploded Pie",null,"WISCONSIN","WI","UNITED STATES OF AMERICA"]
[null,null,null,null,null,null,null,null,null,null,null,null,null,null,null,null,null,null,null,null,null,null,null,null,null,null,null,null,null,null,null,null,null,null,null,null,null,null,null,null,null,null,null,null,null,null,null,68,"xlPieOfPie","Pie of Pie",null,"WYOMING","WY","UNITED STATES OF AMERICA"]
[null,null,null,null,null,null,null,null,null,null,null,null,null,null,null,null,null,null,null,null,null,null,null,null,null,null,null,null,null,null,null,null,null,null,null,null,null,null,null,null,null,null,null,null,null,null,null,109,"xlPyramidBarClustered","Clustered Pyramid Bar",null,"AMERICAN SAMOA","AS","UNITED STATES OF AMERICA"]
[null,null,null,null,null,null,null,null,null,null,null,null,null,null,null,null,null,null,null,null,null,null,null,null,null,null,null,null,null,null,null,null,null,null,null,null,null,null,null,null,null,null,null,null,null,null,null,110,"xlPyramidBarStacked","Stacked Pyramid Bar",null,"DISTRICT OF COLUMBIA","DC","UNITED STATES OF AMERICA"]
[null,null,null,null,null,null,null,null,null,null,null,null,null,null,null,null,null,null,null,null,null,null,null,null,null,null,null,null,null,null,null,null,null,null,null,null,null,null,null,null,null,null,null,null,null,null,null,111,"xlPyramidBarStacked100","100% Stacked Pyramid Bar",null,"FEDERATED STATES OF MICRONESIA","FM","UNITED STATES OF AMERICA"]
[null,null,null,null,null,null,null,null,null,null,null,null,null,null,null,null,null,null,null,null,null,null,null,null,null,null,null,null,null,null,null,null,null,null,null,null,null,null,null,null,null,null,null,null,null,null,null,112,"xlPyramidCol","3D Pyramid Column",null,"GUAM","GU","UNITED STATES OF AMERICA"]
[null,null,null,null,null,null,null,null,null,null,null,null,null,null,null,null,null,null,null,null,null,null,null,null,null,null,null,null,null,null,null,null,null,null,null,null,null,null,null,null,null,null,null,null,null,null,null,106,"xlPyramidColClustered","Clustered Pyramid Column",null,"MARSHALL ISLANDS","MH","UNITED STATES OF AMERICA"]
[null,null,null,null,null,null,null,null,null,null,null,null,null,null,null,null,null,null,null,null,null,null,null,null,null,null,null,null,null,null,null,null,null,null,null,null,null,null,null,null,null,null,null,null,null,null,null,107,"xlPyramidColStacked","Stacked Pyramid Column",null,"NORTHERN MARIANA ISLANDS","MP","UNITED STATES OF AMERICA"]
[null,null,null,null,null,null,null,null,null,null,null,null,null,null,null,null,null,null,null,null,null,null,null,null,null,null,null,null,null,null,null,null,null,null,null,null,null,null,null,null,null,null,null,null,null,null,null,108,"xlPyramidColStacked100","100% Stacked Pyramid Column",null,"PALAU","PW","UNITED STATES OF AMERICA"]
[null,null,null,null,null,null,null,null,null,null,null,null,null,null,null,null,null,null,null,null,null,null,null,null,null,null,null,null,null,null,null,null,null,null,null,null,null,null,null,null,null,null,null,null,null,null,null,-4151,"xlRadar","Radar",null,"PUERTO RICO","PR","UNITED STATES OF AMERICA"]
[null,null,null,null,null,null,null,null,null,null,null,null,null,null,null,null,null,null,null,null,null,null,null,null,null,null,null,null,null,null,null,null,null,null,null,null,null,null,null,null,null,null,null,null,null,null,null,82,"xlRadarFilled","Filled Radar",null,"VIRGIN ISLANDS","VI","UNITED STATES OF AMERICA"]
[null,null,null,null,null,null,null,null,null,null,null,null,null,null,null,null,null,null,null,null,null,null,null,null,null,null,null,null,null,null,null,null,null,null,null,null,null,null,null,null,null,null,null,null,null,null,null,81,"xlRadarMarkers","Radar with Data Markers"]
[null,null,null,null,null,null,null,null,null,null,null,null,null,null,null,null,null,null,null,null,null,null,null,null,null,null,null,null,null,null,null,null,null,null,null,null,null,null,null,null,null,null,null,null,null,null,null,88,"xlStockHLC","High-Low-Close"]
[null,null,null,null,null,null,null,null,null,null,null,null,null,null,null,null,null,null,null,null,null,null,null,null,null,null,null,null,null,null,null,null,null,null,null,null,null,null,null,null,null,null,null,null,null,null,null,89,"xlStockOHLC","Open-High-Low-Close"]
[null,null,null,null,null,null,null,null,null,null,null,null,null,null,null,null,null,null,null,null,null,null,null,null,null,null,null,null,null,null,null,null,null,null,null,null,null,null,null,null,null,null,null,null,null,null,null,90,"xlStockVHLC","Volume-High-Low-Close"]
[null,null,null,null,null,null,null,null,null,null,null,null,null,null,null,null,null,null,null,null,null,null,null,null,null,null,null,null,null,null,null,null,null,null,null,null,null,null,null,null,null,null,null,null,null,null,null,91,"xlStockVOHLC","Volume-Open-High-Low-Close"]
[null,null,null,null,null,null,null,null,null,null,null,null,null,null,null,null,null,null,null,null,null,null,null,null,null,null,null,null,null,null,null,null,null,null,null,null,null,null,null,null,null,null,null,null,null,null,null,83,"xlSurface","3D Surface"]
[null,null,null,null,null,null,null,null,null,null,null,null,null,null,null,null,null,null,null,null,null,null,null,null,null,null,null,null,null,null,null,null,null,null,null,null,null,null,null,null,null,null,null,null,null,null,null,85,"xlSurfaceTopView","Surface (Top View)"]
[null,null,null,null,null,null,null,null,null,null,null,null,null,null,null,null,null,null,null,null,null,null,null,null,null,null,null,null,null,null,null,null,null,null,null,null,null,null,null,null,null,null,null,null,null,null,null,86,"xlSurfaceTopViewWireframe","Surface (Top View wireframe)"]
[null,null,null,null,null,null,null,null,null,null,null,null,null,null,null,null,null,null,null,null,null,null,null,null,null,null,null,null,null,null,null,null,null,null,null,null,null,null,null,null,null,null,null,null,null,null,null,84,"xlSurfaceWireframe","3D Surface (wireframe)"]
[null,null,null,null,null,null,null,null,null,null,null,null,null,null,null,null,null,null,null,null,null,null,null,null,null,null,null,null,null,null,null,null,null,null,null,null,null,null,null,null,null,null,null,null,null,null,null,-4169,"xlXYScatter","Scatter"]
[null,null,null,null,null,null,null,null,null,null,null,null,null,null,null,null,null,null,null,null,null,null,null,null,null,null,null,null,null,null,null,null,null,null,null,null,null,null,null,null,null,null,null,null,null,null,null,74,"xlXYScatterLines","Scatter with Lines"]
[null,null,null,null,null,null,null,null,null,null,null,null,null,null,null,null,null,null,null,null,null,null,null,null,null,null,null,null,null,null,null,null,null,null,null,null,null,null,null,null,null,null,null,null,null,null,null,75,"xlXYScatterLinesNoMarkers","Scatter with Lines and No Data Markers"]
[null,null,null,null,null,null,null,null,null,null,null,null,null,null,null,null,null,null,null,null,null,null,null,null,null,null,null,null,null,null,null,null,null,null,null,null,null,null,null,null,null,null,null,null,null,null,null,72,"xlXYScatterSmooth","Scatter with Smoothed Lines"]
[null,null,null,null,null,null,null,null,null,null,null,null,null,null,null,null,null,null,null,null,null,null,null,null,null,null,null,null,null,null,null,null,null,null,null,null,null,null,null,null,null,null,null,null,null,null,null,73,"xlXYScatterSmoothNoMarkers","Scatter with Smoothed Lines and No Data Markers"]

{"sheet":"PivotAnalytics","index":12,"n_rows":4,"n_cols":8,"rows_kept":4,"cut":false,"hidden":true,"merged":[]}
[null,"Values"]
["Row Labels","Count of Activities","Sum of Activity Time","Sum of Activities","Sum of Distance","Average of Hrs/Activity","Sum of Activity Calories","Sum of Elev Gain"]
["(blank)"]
["Grand Total"]

{"sheet":"PivotAnalytics1","index":13,"n_rows":4,"n_cols":3,"rows_kept":4,"cut":false,"hidden":true,"merged":[]}
[null,"Values"]
["Row Labels","Sum of Activity Calories","Average of Cal/hour"]
["(blank)"]
["Grand Total"]

{"sheet":"PivotAnalytics2","index":14,"n_rows":4,"n_cols":3,"rows_kept":4,"cut":false,"hidden":true,"merged":[]}
[null,"Values"]
["Row Labels","Average of Speed","Average of Cal/hour"]
["(blank)"]
["Grand Total"]

{"sheet":"PivotAnalytics3","index":15,"n_rows":4,"n_cols":3,"rows_kept":4,"cut":false,"hidden":true,"merged":[]}
[null,"Values"]
["Row Labels","Average of Hrs/Activity","Average of Cal/hour"]
["(blank)"]
["Grand Total"]

{"sheet":"PivotPlan","index":16,"n_rows":6,"n_cols":4,"rows_kept":6,"cut":false,"hidden":true,"merged":[]}
[null,"Column Labels"]
[null,"Sum of Today Week","Sum of Actual Hrs2","Sum of Plan. Hrs Chart"]
["Row Labels",0,0,0]
["(blank)"]
["(blank)",-21,{"$error":"#N/A"},0]
["Grand Total",-21,{"$error":"#N/A"},0]

{"sheet":"PivotCal","index":17,"n_rows":5,"n_cols":4,"rows_kept":5,"cut":false,"hidden":true,"merged":[]}
[null,"Values"]
["Row Labels","Sum of Cal.","Sum of Cal. Goal Chart","Sum of Cal/hour"]
["(blank)"]
["(blank)",null,0,{"$error":"#N/A"}]
["Grand Total",null,0,{"$error":"#N/A"}]

{"sheet":"PivotSpeed","index":18,"n_rows":5,"n_cols":3,"rows_kept":5,"cut":false,"hidden":true,"merged":[]}
[null,"Values"]
["Row Labels","Sum of Speed","Sum of Climber Index"]
["(blank)"]
["(blank)",{"$error":"#N/A"},{"$error":"#N/A"}]
["Grand Total",{"$error":"#N/A"},{"$error":"#N/A"}]

{"sheet":"PivotWeight","index":19,"n_rows":5,"n_cols":3,"rows_kept":5,"cut":false,"hidden":true,"merged":[]}
[null,"Values"]
["Row Labels","Sum of Weight","Sum of HR"]
["(blank)"]
["(blank)",{"$error":"#N/A"},{"$error":"#N/A"}]
["Grand Total",{"$error":"#N/A"},{"$error":"#N/A"}]

{"sheet":"PivotAddWeight","index":20,"n_rows":3,"n_cols":2,"rows_kept":3,"cut":false,"hidden":true,"merged":[]}
["Row Labels","Average of lb"]
["(blank)"]
["(blank)"]

{"sheet":"PivotWeightTarget","index":21,"n_rows":5,"n_cols":3,"rows_kept":5,"cut":false,"hidden":true,"merged":[]}
[null,"Values"]
["Row Labels","Sum of Weight","Sum of Weight Goal"]
["(blank)"]
["(blank)",{"$error":"#N/A"},{"$error":"#N/A"}]
["Grand Total",{"$error":"#N/A"},{"$error":"#N/A"}]

{"sheet":"PivotCalTarget","index":22,"n_rows":5,"n_cols":3,"rows_kept":5,"cut":false,"hidden":true,"merged":[]}
[null,"Values"]
["Row Labels","Sum of Cal.","Sum of Cal. Goal Chart"]
["(blank)"]
["(blank)",null,0]
["Grand Total",null,0]

{"sheet":"PivotHRTarget","index":23,"n_rows":5,"n_cols":3,"rows_kept":5,"cut":false,"hidden":true,"merged":[]}
[null,"Values"]
["Row Labels","Sum of HR","Sum of HR Goal"]
["(blank)"]
["(blank)",{"$error":"#N/A"},{"$error":"#N/A"}]
["Grand Total",{"$error":"#N/A"},{"$error":"#N/A"}]

{"sheet":"PivotPowerTarget","index":24,"n_rows":5,"n_cols":3,"rows_kept":5,"cut":false,"hidden":true,"merged":[]}
[null,"Values"]
["Row Labels","Sum of Power","Sum of Power Goal"]
["(blank)"]
["(blank)"]
["Grand Total"]